Workbook

Sheet PORTADA

Sheet CONDICION DE SALUD INICIAL
A2: Base de Datos Intervención Terapeútica Condiciones de Salud - Inicial
A4: DATOS PERSONALES | L4: “SF-12” SOBRE LA CALIDAD DE VIDA SEGÚN PERCEPCIÓN DE SALUD - INICIAL | AL4: Observaciones
A5: Nº | B5: Empresa | C5: Apellidos | D5: Nombres | E5: Cedula | F5: Fecha de evaluación inicial | G5: Fecha de nacimiento | H5: Edad (años) | I5: Presenta algún desorden músculo esquelético | J5: Segmentos Corporales sintomáticos | K5: Nivel de dolor inicial | L5: La siguiente encuesta, es un autocuestionario genérico que permite calcular el perfil de calidad de vida relacionado con la salud | AJ5: Total | AK5: Interpretación
L6: En general, usted diría que su salud es | M6: Calificación | N6: Las siguientes preguntas se refieren a actividades que usted podría hacer en un día normal. Su salud actual, ¿le limita para hacer esas actividades ? Si es así, ¿cuánto? | R6: Durante las 4 últimas semanas, ¿ha tenido alguno de los siguientes problemas en su trabajo o en sus actividades cotidianas, a causa de su salud física? | V6: Durante las 4 últimas semanas, ¿ha tenido alguno de los siguientes problemas en su trabajo o en sus actividades cotidianas, a causa de algún problema emocional (como estar triste, deprimido, o nervioso)? | Z6: Durante las 4 últimas semanas. Hasta qué punto el dolor le ha dificultado su trabajo habitual (incluido el trabajo fuera de casa y las tareas domésticas)? | AA6: Calificación | AB6: Las siguientes preguntas se refieren a cómo se ha sentido y cómo le han ido las cosas durante las 4 últimas semanas. En cada pregunta responda lo que se parezca más a cómo se ha sentido usted. ¿cuánto tiempo? | AH6: Durante las 4 últimas semanas su salud física y emocional le permitió realizar sus actividades sociales sin dificultadades? | AI6: Calificación
N7: Esfuerzos moderados, como mover una mesa, pasar la aspiradora, jugar a los bolos o caminar más de 1 hora | O7: Calificación | P7: Subir varios pisos por la escalera | Q7: Calificación | R7: ¿Hizo menos de lo que hubiera querido hacer? | S7: Calificación | T7: Tuvo que dejar de hacer algunas tareas en su trabajo o en sus actividades cotidianas? | U7: Calificación | V7: Hizo menos de lo que hubiera querido hacer, por algún problema emocional | W7: Calificación | X7: No hizo su trabajo o sus actividades cotidianas tan cuidadosamente como de costumbre, por algún problema emocional? | Y7: Calificación | AB7: Se sintió calmado y tranquilo? | AC7: Calificación | AD7: Tuvo mucha energía? | AE7: Calificación | AF7: Se sintió muy animado y contento? | AG7: Calificación
H8: =(F8-G8)/365 -> 0 | I8: SI | K8: MEDIO | L8: Mala | M8: =IF(L8="Excelente","1",IF(L8="Muy buena","2",IF(L8="Buena","3",IF(L8="Regular","4",IF(L8="Mala","5",IF(L8="","0")))))) -> 5 | N8: Si, me limita un poco | O8: =IF(N8="No, no me limita nada","1",IF(N8="Si, me limita un poco","2",IF(N8="Si, me limita mucho","3",IF(N8="","0")))) -> 2 | P8: Si, me limita mucho | Q8: =IF(P8="No, no me limita nada","1",IF(P8="Si, me limita un poco","2",IF(P8="Si, me limita mucho","3",IF(P8="","0")))) -> 3 | R8: NO | S8: =IF(R8="SI","2",IF(R8="NO","1",IF(R8="","0"))) -> 1 | T8: NO | U8: =IF(T8="SI","2",IF(T8="NO","1",IF(T8="","0"))) -> 1 | V8: NO | W8: =IF(V8="SI","2",IF(V8="NO","1",IF(V8="","0"))) -> 1 | X8: NO | Y8: =IF(X8="SI","2",IF(X8="NO","1",IF(X8="","0"))) -> 1 | Z8: Regular | AA8: =IF(Z8="Nada","1",IF(Z8="Un poco","2",IF(Z8="Regular","3",IF(Z8="Bastante","4",IF(Z8="Mucho","5",IF(Z8="","0")))))) -> 3 | AB8: Casi siempre | AC8: =IF(AB8="Siempre","1",IF(AB8="Casi siempre","2",IF(AB8="Algunas veces","3",IF(AB8="Solo una vez","4",IF(AB8="Nunca","5",IF(AB8="","0")))))) -> 2 | AD8: Nunca | AE8: =IF(AD8="Siempre","1",IF(AD8="Casi siempre","2",IF(AD8="Algunas veces","3",IF(AD8="Solo una vez","4",IF(AD8="Nunca","5",IF(AD8="","0")))))) -> 5 | AF8: Nunca | AG8: =IF(AF8="Siempre","1",IF(AF8="Casi siempre","2",IF(AF8="Algunas veces","3",IF(AF8="Solo una vez","4",IF(AF8="Nunca","5",IF(AF8="","0")))))) -> 5 | AH8: Siempre | AI8: =IF(AH8="Siempre","1",IF(AH8="Casi siempre","2",IF(AH8="Algunas veces","3",IF(AH8="Solo una vez","4",IF(AH8="Nunca","5",IF(AH8="","0")))))) -> 1 | AJ8: =(M8+O8+Q8+S8+U8+W8+Y8+AA8+AC8+AE8+AG8+AI8)+0 -> 30 | AK8: =IF(AJ8=0,"",IF(AJ8<=20,"BUENO",IF(AJ8<=40,"REGULAR",IF(AJ8>=41,"MALO",)))) -> REGULAR
H9: 0 | K9: ALTO | L9: Regular | M9: 4 | N9: Si, me limita mucho | O9: 3 | P9: Si, me limita mucho | Q9: 3 | R9: SI | S9: 2 | T9: SI | U9: 2 | V9: NO | W9: 1 | X9: SI | Y9: 2 | Z9: Regular | AA9: 3 | AB9: Algunas veces | AC9: =IF(AB9="Siempre","1",IF(AB9="Casi siempre","2",IF(AB9="Algunas veces","3",IF(AB9="Solo una vez","4",IF(AB9="Nunca","5",IF(AB9="","0")))))) -> 3 | AD9: Algunas veces | AE9: =IF(AD9="Siempre","1",IF(AD9="Casi siempre","2",IF(AD9="Algunas veces","3",IF(AD9="Solo una vez","4",IF(AD9="Nunca","5",IF(AD9="","0")))))) -> 3 | AF9: Siempre | AG9: =IF(AF9="Siempre","1",IF(AF9="Casi siempre","2",IF(AF9="Algunas veces","3",IF(AF9="Solo una vez","4",IF(AF9="Nunca","5",IF(AF9="","0")))))) -> 1 | AH9: Algunas veces | AI9: =IF(AH9="Siempre","1",IF(AH9="Casi siempre","2",IF(AH9="Algunas veces","3",IF(AH9="Solo una vez","4",IF(AH9="Nunca","5",IF(AH9="","0")))))) -> 3 | AJ9: 30 | AK9: REGULAR
H10: 0 | I10: SI | K10: MEDIO | L10: Buena | M10: 3 | N10: No, no me limita nada | O10: 1 | P10: No, no me limita nada | Q10: 1 | R10: SI | S10: 2 | T10: NO | U10: 1 | V10: NO | W10: 1 | X10: SI | Y10: 2 | Z10: Nada | AA10: 1 | AB10: Algunas veces | AC10: 3 | AD10: Algunas veces | AE10: 3 | AF10: Algunas veces | AG10: 3 | AH10: Nunca | AI10: 5 | AJ10: 26 | AK10: REGULAR
H11: 0 | I11: SI | K11: ALTO | L11: Regular | M11: 4 | N11: Si, me limita un poco | O11: 2 | P11: Si, me limita mucho | Q11: 3 | R11: NO | S11: 1 | T11: NO | U11: 1 | V11: NO | W11: 1 | X11: NO | Y11: 1 | Z11: Regular | AA11: 3 | AB11: Casi siempre | AC11: 2 | AD11: Algunas veces | AE11: 3 | AF11: Algunas veces | AG11: 3 | AH11: Algunas veces | AI11: 3 | AJ11: 27 | AK11: REGULAR
H12: 0 | I12: SI | K12: MEDIO | L12: Muy buena | M12: 2 | N12: No, no me limita nada | O12: 1 | P12: Si, me limita un poco | Q12: 2 | R12: NO | S12: 1 | T12: NO | U12: 1 | V12: NO | W12: 1 | X12: NO | Y12: 1 | Z12: Nada | AA12: 1 | AB12: Casi siempre | AC12: 2 | AD12: Casi siempre | AE12: 2 | AF12: Algunas veces | AG12: 3 | AH12: Nunca | AI12: 5 | AJ12: 22 | AK12: REGULAR
H13: 0 | I13: SI | K13: ALTO | L13: Buena | M13: 3 | N13: No, no me limita nada | O13: 1 | P13: Si, me limita un poco | Q13: 2 | R13: NO | S13: 1 | T13: NO | U13: 1 | V13: NO | W13: 1 | X13: NO | Y13: 1 | Z13: Un poco | AA13: 2 | AB13: Casi siempre | AC13: 2 | AD13: Casi siempre | AE13: 2 | AF13: Algunas veces | AG13: 3 | AH13: Nunca | AI13: 5 | AJ13: 24 | AK13: REGULAR
H14: 0 | I14: SI | K14: MEDIO | M14: 0 | O14: 0 | Q14: 0 | S14: 0 | U14: 0 | W14: 0 | Y14: 0 | AA14: 0 | AC14: 0 | AE14: 0 | AG14: 0 | AI14: 0 | AJ14: 0
H15: 0 | I15: SI | K15: ALTO | L15: Regular | M15: 4 | N15: Si, me limita un poco | O15: 2 | P15: Si, me limita un poco | Q15: 2 | R15: SI | S15: 2 | T15: SI | U15: 2 | V15: SI | W15: 2 | X15: SI | Y15: 2 | Z15: Bastante | AA15: 4 | AB15: Algunas veces | AC15: 3 | AD15: Solo una vez | AE15: 4 | AF15: Algunas veces | AG15: 3 | AH15: Algunas veces | AI15: 3 | AJ15: 33 | AK15: REGULAR
H16: 0 | I16: SI | K16: MEDIO | L16: Regular | M16: 4 | N16: Si, me limita un poco | O16: 2 | P16: Si, me limita mucho | Q16: 3 | R16: NO | S16: 1 | T16: NO | U16: 1 | V16: NO | W16: 1 | X16: NO | Y16: 1 | Z16: Regular | AA16: 3 | AB16: Algunas veces | AC16: 3 | AD16: Algunas veces | AE16: 3 | AF16: Algunas veces | AG16: 3 | AH16: Solo una vez | AI16: 4 | AJ16: 29 | AK16: REGULAR
H17: 0 | I17: SI | K17: ALTO | L17: Buena | M17: 3 | N17: Si, me limita un poco | O17: 2 | P17: Si, me limita un poco | Q17: 2 | R17: SI | S17: 2 | T17: NO | U17: 1 | V17: SI | W17: 2 | X17: NO | Y17: 1 | Z17: Un poco | AA17: 2 | AB17: Algunas veces | AC17: 3 | AD17: Algunas veces | AE17: 3 | AF17: Solo una vez | AG17: 4 | AH17: Algunas veces | AI17: 3 | AJ17: 28 | AK17: REGULAR
H18: 0 | I18: SI | K18: ALTO | L18: Regular | M18: 4 | N18: Si, me limita un poco | O18: 2 | P18: No, no me limita nada | Q18: 1 | R18: NO | S18: 1 | T18: SI | U18: 2 | V18: NO | W18: 1 | X18: NO | Y18: 1 | Z18: Un poco | AA18: 2 | AB18: Casi siempre | AC18: 2 | AD18: Casi siempre | AE18: 2 | AF18: Algunas veces | AG18: 3 | AH18: Algunas veces | AI18: 3 | AJ18: 24 | AK18: REGULAR
H19: 0 | I19: SI | K19: MEDIO | L19: Regular | M19: 4 | N19: Si, me limita un poco | O19: 2 | P19: Si, me limita un poco | Q19: 2 | R19: SI | S19: 2 | T19: SI | U19: 2 | V19: NO | W19: 1 | X19: NO | Y19: 1 | Z19: Regular | AA19: 3 | AB19: Algunas veces | AC19: 3 | AD19: Algunas veces | AE19: 3 | AF19: Algunas veces | AG19: 3 | AH19: Algunas veces | AI19: 3 | AJ19: 29 | AK19: REGULAR
H20: 0 | I20: SI | K20: MEDIO | L20: Excelente | M20: 1 | N20: Si, me limita un poco | O20: 2 | P20: No, no me limita nada | Q20: 1 | R20: NO | S20: 1 | T20: SI | U20: 2 | V20: NO | W20: 1 | X20: NO | Y20: 1 | Z20: Un poco | AA20: 2 | AB20: Siempre | AC20: 1 | AD20: Siempre | AE20: 1 | AF20: Siempre | AG20: 1 | AH20: Nunca | AI20: 5 | AJ20: 19 | AK20: BUENO
H21: 0 | I21: SI | K21: ALTO | L21: Regular | M21: 4 | N21: Si, me limita mucho | O21: 3 | P21: Si, me limita mucho | Q21: 3 | R21: SI | S21: 2 | T21: SI | U21: 2 | V21: SI | W21: 2 | Y21: 0 | Z21: Bastante | AA21: 4 | AB21: Casi siempre | AC21: 2 | AD21: Casi siempre | AE21: 2 | AF21: Algunas veces | AG21: 3 | AH21: Algunas veces | AI21: 3 | AJ21: 30 | AK21: REGULAR
H22: 0 | I22: SI | K22: MEDIO | M22: 0 | O22: 0 | Q22: 0 | S22: 0 | U22: 0 | W22: 0 | Y22: 0 | AA22: 0 | AC22: 0 | AE22: 0 | AG22: 0 | AI22: 0 | AJ22: 0
H23: 0 | I23: SI | K23: MEDIO | M23: 0 | O23: 0 | Q23: 0 | S23: 0 | U23: 0 | W23: 0 | Y23: 0 | AA23: 0 | AC23: 0 | AE23: 0 | AG23: 0 | AI23: 0 | AJ23: 0
H24: 0 | M24: 0 | O24: 0 | Q24: 0 | S24: 0 | U24: 0 | W24: 0 | Y24: 0 | AA24: 0 | AC24: 0 | AE24: 0 | AG24: 0 | AI24: 0 | AJ24: 0
H25: 0 | I25: SI | M25: 0 | O25: 0 | Q25: 0 | S25: 0 | U25: 0 | W25: 0 | Y25: 0 | AA25: 0 | AC25: 0 | AE25: 0 | AG25: 0 | AI25: 0 | AJ25: 0
H26: 0 | I26: SI | M26: 0 | O26: 0 | Q26: 0 | S26: 0 | U26: 0 | W26: 0 | Y26: 0 | AA26: 0 | AC26: 0 | AE26: 0 | AG26: 0 | AI26: 0 | AJ26: 0
H27: 0 | M27: 0 | O27: 0 | Q27: 0 | S27: 0 | U27: 0 | W27: 0 | Y27: 0 | AA27: 0 | AC27: 0 | AE27: 0 | AG27: 0 | AI27: 0 | AJ27: 0

Sheet CAPACIDAD FUNC MMSS INICIAL
A2: Base de Datos Intervención Terapeútica Evaluación capacidad funcional miembros superiores MMSS - Inicial
A4: Nº | B4: Empresa | C4: Apellidos | D4: Nombres | E4: Edad | G4: DOLOR ( PATIENT RATED WRIST EVALUATION (PRWE)) - EVALUACIÓN DEL DOLOR Y FUNCIONALIDAD DE MUÑECA REFERIDA POR EL TRABAJADOR - INICIAL | AC4: THE PATIENT - RATED ELBOW EVALUATION (PREE) - CODO EVALUACIÓN DEL DOLOR Y FUNCIONALIDAD DE CODO REFERIDA POR EL TRABAJADOR - INICIAL | BG4: SHOULDER PAIN DISABILITY INDEX (SPADI) INDICE DE LIMITACIÓN FUNCIONAL POR DOLOR EN HOMBRO - INICIAL | CA4: FUERZA - INICIAL | CN4: FLEXIBILIDAD - INICIAL | CQ4: Observaciones
G5: Descripción Del Dolor | N5: Actividades Especificas | T5: Actividades Cotidianas | Z5: Puntuación total | AA5: Interpretación | AC5: Descripción Del Dolor | AJ5: Actividades Especificas | AX5: Actividades Cotidianas | BB5: Puntuación | BD5: Puntuación total | BE5: Interpretación | BG5: Dolor | BN5: Función | BX5: Puntuación total | BY5: Calificación | CA5: La capacidad de vencer una resistencia externa o reaccionar contra la misma mediante una tensión muscular. | CN5: Capacidad del individuo para aprovechar las posibilidades de movimiento de las articulaciones de la manera más optima posible
G6: Describa el promedio de dolor de muñeca en la última semana remarcando el número que mejor describa su dolor en una escala del 0 al 10. El cero (0) significa ausencia total del dolor y el diez (10) significa el peor dolor que usted haya experimentado o que no puede realizar la actividad a causa del dolor | L6: Puntuación | N6: Describa el grado de dificultad que experimento al realizar cada una de las actividades listadas debajo durante la última semana, marcando el número del 0 al 10 que mejor describa su situación. Cero (0) significa que no experimenta ninguna dificultad y diez (10) significa que no puede realizar la actividad de ninguna manera | T6: Describa el grado de dificultad que experimento durante la última semana al realizar cada una de las actividades listadas a continuación, marcando el número de 0 al 10 que mejor describa su situación. Por “actividades cotidianas” entendemos las actividades que usted realizaba antes de padecer su problema de muñeca. Cero (0) significa que no experimenta ninguna dificultad y diez (10) significa que no puede realizar la actividad de ninguna manera. | X6: Puntuación | AC6: Describa el promedio de dolor de codo en la última semana remarcando el número que mejor describa su dolor en una escala del 0 al 10. El cero (0) significa ausencia total del dolor y el diez (10) significa el peor dolor que usted haya experimentado o que no puede realizar la actividad a causa del dolor | AH6: Puntuación | AJ6: Describa el grado de dificultad que experimento al realizar cada una de las actividades listadas debajo durante la última semana, marcando el número del 0 al 10 que mejor describa su situación. Cero (0) significa que no experimenta ninguna dificultad y diez (10) significa que no puede realizar la actividad de ninguna manera | AX6: Describa el grado de dificultad que experimento durante la última semana al realizar cada una de las actividades listadas a continuación, marcando el número de 0 al 10 que mejor describa su situación. Por “actividades cotidianas” entendemos las actividades que usted realizaba antes de padecer su problema de codo. Cero (0) significa que no experimenta ninguna dificultad y diez (10) significa que no puede realizar la actividad de ninguna manera. | BG6: Describa el promedio de dolor de hombro en la última semana remarcando el número que mejor describa su dolor en una escala del 0 al 10. El cero (0) significa ausencia total del dolor y el diez (10) significa el peor dolor que usted haya experimentado o que no puede realizar la actividad a causa del dolor | BL6: Puntuación | BN6: Describa el grado de dificultad que experimento al realizar cada una de las actividades listadas debajo durante la última semana, marcando el número del 0 al 10 que mejor describa su situación. Cero (0) significa que no experimenta ninguna dificultad y diez (10) significa que no puede realizar la actividad de ninguna manera | BV6: Puntuación | CA6: Nª de Flexiones según la edad MUJER | CF6: Nª de Flexiones según la edad HOMBRE | CK6: Nª de Flexiones Ejecutadas | CL6: Calificación | CN6: Alcance posterior de manos | CO6: Calificación
G7: En reposo | H7: Al realizar una tarea que implica un movimiento repetitivo de muñeca | I7: Al levantar un objeto pesado | J7: Cuando el dolor está en su peor momento | K7: ¿Qué tan seguido experimenta dolor? | N7: Al dar vuelta la manija de la puerta | O7: Al cortar carne con un cuchillo con la mano afectada | P7: Al abrocharse una camisa | Q7: Al levantarse de una silla con la mano afectada | R7: Al cargar 5 kg con la mano afectada | S7: Al usar papel higiénico con la mano afectada | T7: Actividades de cuidado personal (vestirse, lavarse) | U7: Tareas del hogar (tareas de limpieza) | V7: Trabajo (su trabajo habitual) | W7: Actividades de tiempo libre | AC7: En reposo | AD7: Al realizar una tarea que implica un movimiento repetitivo del codo | AE7: Al levantar un objeto pesado | AF7: Cuando el dolor está en su peor momento | AG7: ¿Qué tan seguido experimenta dolor? | AJ7: Al peinarse | AK7: Al comer con tenedor o cuchara | AL7: Al tirar un objeto pesado | AM7: Al levantarse de una silla con la mano afectada | AN7: Al cargar 5 kg con la mano afectada | AO7: Al usar papel higiénico con la mano afectada | AP7: Al utilizar el brazo para levantarse de una silla | AQ7: Al llevar un objeto de 10 libras con el brazo afectado | AR7: Al lanzar un objeto pequeño, como una pelota de tenis | AS7: Al utilizar un teléfono | AT7: Haga hasta botones en la parte delantera de mi camisa | AU7: Al lavar mi hombro opuesta | AV7: Al atarse los zapatos | AW7: Al girar en pomo la puerta y al abrir una puerta | AX7: Actividades de cuidado personal (vestirse, lavarse) | AY7: Tareas del hogar (tareas de limpieza) | AZ7: Trabajo (su trabajo habitual) | BA7: Actividades de tiempo libre | BG7: En su peor momento? | BH7: Cuando esta tumbado en el lado afectado? | BI7: Para llegar a algo en un estante alto? | BJ7: Al tocar la parte posterior de su cuello? | BK7: Al empujar con el brazo afectado? | BN7: Al lavarse el pelo? | BO7: El lavado de la espalda? | BP7: Ponerse en una camiseta? | BQ7: Abotonarse la camisa? | BR7: El ponerse los pantalones? | BS7: La colocación de un objeto en un estante alto? | BT7: Llevar un objeto pesado de 10 libras (4,5 kilogramos)? | BU7: Extraer algo de su bolsillo trasero? | CA7: Excelente | CB7: Bien | CC7: Promedio | CD7: Regular | CE7: Pobre | CF7: Excelente | CG7: Bien | CH7: Promedio | CI7: Regular | CJ7: Pobre
A8: ='CONDICION DE SALUD INICIAL'!A8 -> 0 | B8: ='CONDICION DE SALUD INICIAL'!B8 -> 0 | C8: ='CONDICION DE SALUD INICIAL'!C8 -> 0 | D8: ='CONDICION DE SALUD INICIAL'!D8 -> 0 | E8: ='CONDICION DE SALUD INICIAL'!H8 -> 0 | G8: 0 | H8: 0 | I8: 0 | J8: 0 | K8: 0 | L8: =SUM(G8:K8)*0.01 -> 0 | N8: 0 | O8: 0 | P8: 0 | Q8: 0 | R8: 0 | S8: 0 | T8: 0 | U8: 0 | V8: 0 | W8: 0 | X8: =SUM(N8:W8)/2*0.01 -> 0 | Z8: =SUM(L8,X8) -> 0 | AA8: =IF(Z8=0,"",(IF(Z8<20%,"Limitación funcional mínima",IF(Z8<=65%,"Limitación funcional moderada",IF(Z8>65%,"Limitación funcional alta",))))) ->  | AC8: 0 | AD8: 0 | AE8: 0 | AF8: 0 | AG8: 0 | AH8: =SUM(AC8:AG8)*0.01 -> 0 | AJ8: 0 | AK8: 0 | AL8: 0 | AM8: 0 | AN8: 0 | AO8: 0 | AP8: 0 | AQ8: 0 | AR8: 0 | AS8: 0 | AT8: 0 | AU8: 0 | AV8: 0 | AW8: 0 | AX8: 0 | AY8: 0 | AZ8: 0 | BA8: 0 | BB8: =SUM(AJ8:BA8)/3.6*0.01 -> 0 | BD8: =SUM(AH8,BB8) -> 0 | BE8: =IF(BD8=0,"",IF(BD8<20%,"Limitación funcional mínima",IF(BD8<=65%,"Limitación funcional moderada",IF(BD8>65%,"Limitación funcional alta",)))) ->  | BG8: 0 | BH8: 0 | BI8: 0 | BJ8: 0 | BK8: 0 | BL8: =SUM(BG8:BK8)*0.01 -> 0 | BN8: 0 | BO8: 0 | BP8: 0 | BQ8: 0 | BR8: 0 | BS8: 0 | BT8: 0 | BU8: 0 | BV8: =SUM(BN8:BU8)/1.6*0.01 -> 0 | BX8: =SUM(BL8,BV8) -> 0 | BY8: =IF(BX8=0%,"",(IF(BX8<20%,"Limitación funcional mínima",IF(BX8<=65%,"Limitación funcional moderada",IF(BX8>65%,"Limitación funcional alta",))))) ->  | CA8: =IF(E8<=29,">48",IF(E8<=39,">39",IF(E8<=49,">34",IF(E8<=59,">29",IF(E8>=60,">19",))))) -> >48 | CB8: =IF(E8<=29,"34-48",IF(E8<=39,"25-39",IF(E8<=49,"20-34",IF(E8<=59,"15-29",IF(E8>=60,"5-19",))))) -> 34-48 | CC8: =IF(E8<=29,"17-33",IF(E8<=39,"12-24",IF(E8<=49,"8-19",IF(E8<=59,"6-14",IF(E8>=60,"3-4",))))) -> 17-33 | CD8: =IF(E8<=29,"6-16",IF(E8<=39,"4-11",IF(E8<=49,"3-7",IF(E8<=59,"2-5",IF(E8>=60,"1-2",))))) -> 6-16 | CE8: =IF(E8<=29,"<6",IF(E8<=39,"<4",IF(E8<=49,"<3",IF(E8<=59,"<2",IF(E8>=60,"<1",))))) -> <6 | CF8: =IF(E8<=29,">54",IF(E8<=39,">44",IF(E8<=49,">39",IF(E8<=59,">24",IF(E8>=60,">29",))))) -> >54 | CG8: =IF(E8<=29,"45-54",IF(E8<=39,"35-44",IF(E8<=49,"30-39",IF(E8<=59,"25-34",IF(E8>=60,"20-29",))))) -> 45-54 | CH8: =IF(E8<=29,"35-44",IF(E8<=39,"25-34",IF(E8<=49,"20-29",IF(E8<=59,"15-24",IF(E8>=60,"10-19",))))) -> 35-44 | CI8: =IF(E8<=29,"20-34",IF(E8<=39,"15-24",IF(E8<=49,"12-19",IF(E8<=59,"8-14",IF(E8>=60,"5-9",))))) -> 20-34 | CJ8: =IF(E8<=29,"<20",IF(E8<=39,"<15",IF(E8<=49,"<12",IF(E8<=59,"<8",IF(E8>=60,"<5",))))) -> <20 | CL8: Pobre | CN8: No se logra el contacto entre las manos | CO8: =IF(CN8="Se sobreponen las manos","Buena",IF(CN8="Entran en contacto puntas de los dedos medios","Regular",IF(CN8="No se logra el contacto entre las manos","Mala",))) -> Mala
A9: ='CONDICION DE SALUD INICIAL'!A9 -> 0 | B9: ='CONDICION DE SALUD INICIAL'!B9 -> 0 | C9: ='CONDICION DE SALUD INICIAL'!C9 -> 0 | D9: ='CONDICION DE SALUD INICIAL'!D9 -> 0 | E9: ='CONDICION DE SALUD INICIAL'!H9 -> 0 | G9: 7 | H9: 5 | I9: 7 | J9: 7 | K9: 6 | L9: =SUM(G9:K9)*0.01 -> 0.32 | N9: 5 | O9: 6 | P9: 6 | Q9: 7 | R9: 8 | S9: 8 | T9: 6 | U9: 6 | V9: 6 | W9: 6 | X9: =SUM(N9:W9)/2*0.01 -> 0.32 | Z9: =SUM(L9,X9) -> 0.64 | AA9: =IF(Z9=0,"",(IF(Z9<20%,"Limitación funcional mínima",IF(Z9<=65%,"Limitación funcional moderada",IF(Z9>65%,"Limitación funcional alta",))))) -> Limitación funcional moderada | AC9: 7 | AD9: 6 | AE9: 6 | AF9: 7 | AG9: 6 | AH9: =SUM(AC9:AG9)*0.01 -> 0.32 | AJ9: 5 | AK9: 5 | AL9: 5 | AM9: 7 | AN9: 7 | AO9: 5 | AP9: 5 | AQ9: 5 | AR9: 5 | AS9: 5 | AT9: 5 | AU9: 5 | AV9: 5 | AW9: 5 | AX9: 5 | AY9: 5 | AZ9: 5 | BA9: 5 | BB9: =SUM(AJ9:BA9)/3.6*0.01 -> 0.2611111111 | BD9: =SUM(AH9,BB9) -> 0.5811111111 | BE9: =IF(BD9=0,"",IF(BD9<20%,"Limitación funcional mínima",IF(BD9<=65%,"Limitación funcional moderada",IF(BD9>65%,"Limitación funcional alta",)))) -> Limitación funcional moderada | BG9: 8 | BH9: 8 | BI9: 7 | BJ9: 6 | BK9: 7 | BL9: =SUM(BG9:BK9)*0.01 -> 0.36 | BN9: 6 | BO9: 6 | BP9: 6 | BQ9: 4 | BR9: 4 | BS9: 7 | BT9: 8 | BU9: 8 | BV9: =SUM(BN9:BU9)/1.6*0.01 -> 0.30625 | BX9: =SUM(BL9,BV9) -> 0.66625 | BY9: =IF(BX9=0%,"",(IF(BX9<20%,"Limitación funcional mínima",IF(BX9<=65%,"Limitación funcional moderada",IF(BX9>65%,"Limitación funcional alta",))))) -> Limitación funcional alta | CA9: >48 | CB9: 34-48 | CC9: 17-33 | CD9: 6-16 | CE9: <6 | CF9: >54 | CG9: 45-54 | CH9: 35-44 | CI9: 20-34 | CJ9: <20 | CO9: 0
A10: ='CONDICION DE SALUD INICIAL'!A10 -> 0 | B10: ='CONDICION DE SALUD INICIAL'!B10 -> 0 | C10: ='CONDICION DE SALUD INICIAL'!C10 -> 0 | D10: ='CONDICION DE SALUD INICIAL'!D10 -> 0 | E10: ='CONDICION DE SALUD INICIAL'!H10 -> 0 | G10: 0 | H10: 3 | I10: 3 | J10: 5 | K10: 3 | L10: 0.14 | N10: 0 | O10: 2 | P10: 0 | Q10: 0 | R10: 2 | S10: 0 | T10: 0 | U10: 0 | V10: 1 | W10: 0 | X10: 0.025 | Z10: 0.165 | AA10: Limitación funcional mínima | AC10: 0 | AD10: 0 | AE10: 0 | AF10: 0 | AG10: 0 | AH10: 0 | AJ10: 0 | AK10: 0 | AL10: 0 | AM10: 0 | AN10: 0 | AO10: 0 | AP10: 0 | AQ10: 0 | AR10: 0 | AS10: 0 | AT10: 0 | AU10: 0 | AV10: 0 | AW10: 0 | AX10: 0 | AY10: 0 | AZ10: 0 | BA10: 0 | BB10: 0 | BD10: 0 | BG10: 0 | BH10: 0 | BI10: 0 | BJ10: 0 | BK10: 0 | BL10: 0 | BN10: 0 | BO10: 0 | BP10: 0 | BQ10: 0 | BR10: 0 | BS10: 0 | BT10: 0 | BU10: 0 | BV10: 0 | BX10: 0 | CA10: >48 | CB10: 34-48 | CC10: 17-33 | CD10: 6-16 | CE10: <6 | CF10: >54 | CG10: 45-54 | CH10: 35-44 | CI10: 20-34 | CJ10: <20 | CN10: Entran en contacto puntas de los dedos medios | CO10: Regular
A11: ='CONDICION DE SALUD INICIAL'!A11 -> 0 | B11: ='CONDICION DE SALUD INICIAL'!B11 -> 0 | C11: ='CONDICION DE SALUD INICIAL'!C11 -> 0 | D11: ='CONDICION DE SALUD INICIAL'!D11 -> 0 | E11: ='CONDICION DE SALUD INICIAL'!H11 -> 0 | G11: 6 | H11: 9 | I11: 9 | J11: 9 | K11: 9 | L11: 0.42 | N11: 8 | O11: 9 | P11: 8 | Q11: 9 | R11: 9 | S11: 8 | T11: 0 | U11: 9 | V11: 10 | W11: 8 | X11: 0.39 | Z11: 0.81 | AA11: Limitación funcional alta | AC11: 7 | AD11: 9 | AE11: 10 | AF11: 10 | AG11: 9 | AH11: 0.45 | AJ11: 6 | AK11: 5 | AL11: 10 | AM11: 10 | AN11: 9 | AO11: 7 | AP11: 9 | AQ11: 10 | AR11: 9 | AS11: 6 | AT11: 6 | AU11: 8 | AV11: 8 | AW11: 8 | AX11: 6 | AY11: 9 | AZ11: 9 | BA11: 8 | BB11: 0.3972222222 | BD11: 0.8472222222 | BE11: Limitación funcional alta | BG11: 9 | BH11: 9 | BI11: 10 | BJ11: 9 | BK11: 9 | BL11: 0.46 | BN11: 8 | BO11: 9 | BP11: 8 | BQ11: 7 | BR11: 7 | BS11: 10 | BT11: 10 | BU11: 9 | BV11: 0.425 | BX11: 0.885 | BY11: Limitación funcional alta | CA11: >48 | CB11: 34-48 | CC11: 17-33 | CD11: 6-16 | CE11: <6 | CF11: >54 | CG11: 45-54 | CH11: 35-44 | CI11: 20-34 | CJ11: <20 | CN11: No se logra el contacto entre las manos | CO11: Mala
A12: ='CONDICION DE SALUD INICIAL'!A12 -> 0 | B12: ='CONDICION DE SALUD INICIAL'!B12 -> 0 | C12: ='CONDICION DE SALUD INICIAL'!C12 -> 0 | D12: ='CONDICION DE SALUD INICIAL'!D12 -> 0 | E12: ='CONDICION DE SALUD INICIAL'!H12 -> 0 | G12: 0 | H12: 0 | I12: 0 | J12: 0 | K12: 0 | L12: 0 | N12: 0 | O12: 0 | P12: 0 | Q12: 0 | R12: 0 | S12: 0 | T12: 0 | U12: 0 | V12: 0 | W12: 0 | X12: 0 | Z12: 0 | AC12: 0 | AD12: 0 | AE12: 0 | AF12: 0 | AG12: 0 | AH12: 0 | AJ12: 0 | AK12: 0 | AL12: 0 | AM12: 0 | AN12: 0 | AO12: 0 | AP12: 0 | AQ12: 0 | AR12: 0 | AS12: 0 | AT12: 0 | AU12: 0 | AV12: 0 | AW12: 0 | AX12: 0 | AY12: 0 | AZ12: 0 | BA12: 0 | BB12: 0 | BD12: 0 | BG12: 0 | BH12: 0 | BI12: 0 | BJ12: 0 | BK12: 0 | BL12: 0 | BN12: 0 | BO12: 0 | BP12: 0 | BQ12: 0 | BR12: 0 | BS12: 0 | BT12: 0 | BU12: 0 | BV12: 0 | BX12: 0 | CA12: >48 | CB12: 34-48 | CC12: 17-33 | CD12: 6-16 | CE12: <6 | CF12: >54 | CG12: 45-54 | CH12: 35-44 | CI12: 20-34 | CJ12: <20 | CK12: 30 | CL12: Bien | CN12: Se sobreponen las manos | CO12: Buena
A13: ='CONDICION DE SALUD INICIAL'!A13 -> 0 | B13: ='CONDICION DE SALUD INICIAL'!B13 -> 0 | C13: ='CONDICION DE SALUD INICIAL'!C13 -> 0 | D13: ='CONDICION DE SALUD INICIAL'!D13 -> 0 | E13: ='CONDICION DE SALUD INICIAL'!H13 -> 0 | G13: 0 | H13: 0 | I13: 0 | J13: 0 | K13: 0 | L13: =SUM(G13:K13)*0.01 -> 0 | N13: 0 | O13: 0 | P13: 0 | Q13: 0 | R13: 0 | S13: 0 | T13: 0 | U13: 0 | V13: 0 | W13: 0 | X13: 0 | Z13: =SUM(L13,X13) -> 0 | AC13: 0 | AD13: 0 | AE13: 0 | AF13: 0 | AG13: 0 | AH13: =SUM(AC13:AG13)*0.01 -> 0 | AJ13: 0 | AK13: 0 | AL13: 0 | AM13: 0 | AN13: 0 | AO13: 0 | AP13: 0 | AQ13: 0 | AR13: 0 | AS13: 0 | AT13: 0 | AU13: 0 | AV13: 0 | AW13: 0 | AX13: 0 | AY13: 0 | AZ13: 0 | BA13: 0 | BB13: 0 | BD13: =SUM(AH13,BB13) -> 0 | BG13: 0 | BH13: 0 | BI13: 0 | BJ13: 0 | BK13: 0 | BL13: 0 | BN13: 0 | BO13: 0 | BP13: 0 | BQ13: 0 | BR13: 0 | BS13: 0 | BT13: 0 | BU13: 0 | BV13: 0 | BX13: 0 | CA13: >48 | CB13: 34-48 | CC13: 17-33 | CD13: 6-16 | CE13: <6 | CF13: >54 | CG13: 45-54 | CH13: 35-44 | CI13: 20-34 | CJ13: <20 | CN13: No se logra el contacto entre las manos | CO13: Mala
A14: ='CONDICION DE SALUD INICIAL'!A14 -> 0 | B14: ='CONDICION DE SALUD INICIAL'!B14 -> 0 | C14: ='CONDICION DE SALUD INICIAL'!C14 -> 0 | D14: ='CONDICION DE SALUD INICIAL'!D14 -> 0 | E14: ='CONDICION DE SALUD INICIAL'!H14 -> 0 | G14: 0 | H14: 3 | I14: 3 | J14: 5 | K14: 3 | L14: 0.14 | N14: 2 | O14: 2 | P14: 1 | Q14: 2 | R14: 1 | S14: 0 | T14: 0 | U14: 1 | V14: 2 | W14: 0 | X14: 0.055 | Z14: 0.195 | AA14: Limitación funcional mínima | AC14: 0 | AD14: 0 | AE14: 1 | AF14: 0 | AG14: 0 | AH14: 0.01 | AJ14: 0 | AK14: 1 | AL14: 2 | AM14: 3 | AN14: 1 | AO14: 0 | AP14: 2 | AQ14: 2 | AR14: 0 | AS14: 0 | AT14: 0 | AU14: 0 | AV14: 1 | AW14: 1 | AX14: 0 | AY14: 1 | AZ14: 2 | BA14: 0 | BB14: 0.04444444444 | BD14: 0.05444444444 | BE14: Limitación funcional mínima | BG14: 0 | BH14: 1 | BI14: 1 | BJ14: 1 | BK14: 0 | BL14: 0.03 | BN14: 0 | BO14: 1 | BP14: 0 | BQ14: 0 | BR14: 0 | BS14: 1 | BT14: 1 | BU14: 0 | BV14: 0.01875 | BX14: 0.04875 | BY14: Limitación funcional mínima | CA14: >48 | CB14: 34-48 | CC14: 17-33 | CD14: 6-16 | CE14: <6 | CF14: >54 | CG14: 45-54 | CH14: 35-44 | CI14: 20-34 | CJ14: <20 | CO14: 0
A15: ='CONDICION DE SALUD INICIAL'!A15 -> 0 | B15: ='CONDICION DE SALUD INICIAL'!B15 -> 0 | C15: ='CONDICION DE SALUD INICIAL'!C15 -> 0 | D15: ='CONDICION DE SALUD INICIAL'!D15 -> 0 | E15: ='CONDICION DE SALUD INICIAL'!H15 -> 0 | G15: 10 | H15: 10 | I15: 10 | J15: 10 | K15: 10 | L15: 0.5 | N15: 9 | O15: 9 | P15: 9 | Q15: 9 | R15: 9 | S15: 9 | T15: 8 | U15: 9 | V15: 10 | W15: 10 | X15: 0.455 | Z15: 0.955 | AA15: Limitación funcional alta | AC15: 9 | AD15: 9 | AE15: 9 | AF15: 10 | AG15: 10 | AH15: 0.47 | AJ15: 9 | AK15: 9 | AL15: 10 | AM15: 9 | AN15: 10 | AO15: 9 | AP15: 9 | AQ15: 9 | AR15: 10 | AS15: 10 | AT15: 10 | AU15: 10 | AV15: 10 | AW15: 10 | AX15: 9 | AY15: 9 | AZ15: 9 | BA15: 9 | BB15: 0.4722222222 | BD15: 0.9422222222 | BE15: Limitación funcional alta | BG15: 9 | BH15: 9 | BI15: 9 | BJ15: 9 | BK15: 9 | BL15: 0.45 | BN15: 9 | BO15: 9 | BP15: 9 | BQ15: 9 | BR15: 9 | BS15: 9 | BT15: 9 | BU15: 9 | BV15: 0.45 | BX15: 0.9 | BY15: Limitación funcional alta | CA15: >48 | CB15: 34-48 | CC15: 17-33 | CD15: 6-16 | CE15: <6 | CF15: >54 | CG15: 45-54 | CH15: 35-44 | CI15: 20-34 | CJ15: <20 | CN15: Entran en contacto puntas de los dedos medios | CO15: Regular
A16: ='CONDICION DE SALUD INICIAL'!A16 -> 0 | B16: ='CONDICION DE SALUD INICIAL'!B16 -> 0 | C16: ='CONDICION DE SALUD INICIAL'!C16 -> 0 | D16: ='CONDICION DE SALUD INICIAL'!D16 -> 0 | E16: ='CONDICION DE SALUD INICIAL'!H16 -> 0 | G16: 2 | H16: 6 | I16: 5 | J16: 8 | K16: 8 | L16: 0.29 | N16: 3 | O16: 5 | P16: 2 | Q16: 5 | R16: 4 | S16: 4 | T16: 3 | U16: 7 | V16: 7 | W16: 5 | X16: 0.225 | Z16: 0.515 | AA16: Limitación funcional moderada | AC16: 1 | AD16: 5 | AE16: 3 | AF16: 7 | AG16: 5 | AH16: 0.21 | AJ16: 3 | AK16: 3 | AL16: 7 | AM16: 5 | AN16: 6 | AO16: 3 | AP16: 2 | AQ16: 6 | AR16: 4 | AS16: 4 | AT16: 3 | AU16: 2 | AV16: 2 | AW16: 2 | AX16: 2 | AY16: 7 | AZ16: 7 | BA16: 5 | BB16: 0.2027777778 | BD16: 0.4127777778 | BE16: Limitación funcional moderada | BG16: 8 | BH16: 6 | BI16: 8 | BJ16: 5 | BK16: 5 | BL16: 0.32 | BN16: 2 | BO16: 5 | BP16: 3 | BQ16: 1 | BR16: 2 | BS16: 6 | BT16: 7 | BU16: 4 | BV16: 0.1875 | BX16: 0.5075 | BY16: Limitación funcional moderada | CA16: >48 | CB16: 34-48 | CC16: 17-33 | CD16: 6-16 | CE16: <6 | CF16: >54 | CG16: 45-54 | CH16: 35-44 | CI16: 20-34 | CJ16: <20 | CN16: Entran en contacto puntas de los dedos medios | CO16: Regular
A17: ='CONDICION DE SALUD INICIAL'!A17 -> 0 | B17: ='CONDICION DE SALUD INICIAL'!B17 -> 0 | C17: ='CONDICION DE SALUD INICIAL'!C17 -> 0 | D17: ='CONDICION DE SALUD INICIAL'!D17 -> 0 | E17: ='CONDICION DE SALUD INICIAL'!H17 -> 0 | G17: 5 | H17: 7 | I17: 8 | J17: 9 | K17: 8 | L17: 0.37 | N17: 2 | O17: 3 | P17: 2 | Q17: 7 | R17: 9 | S17: 3 | T17: 3 | U17: 5 | V17: 8 | W17: 4 | X17: 0.23 | Z17: 0.6 | AA17: Limitación funcional moderada | AC17: 2 | AD17: 5 | AE17: 8 | AF17: 9 | AG17: 6 | AH17: 0.3 | AJ17: 6 | AK17: 4 | AL17: 8 | AM17: 5 | AN17: 8 | AO17: 3 | AP17: 5 | AQ17: 8 | AR17: 6 | AS17: 4 | AT17: 3 | AU17: 8 | AV17: 5 | AW17: 6 | AX17: 2 | AY17: 3 | AZ17: 7 | BA17: 2 | BB17: 0.2583333333 | BD17: 0.5583333333 | BE17: Limitación funcional moderada | BG17: 7 | BH17: 5 | BI17: 3 | BJ17: 3 | BK17: 5 | BL17: 0.23 | BN17: 4 | BO17: 4 | BP17: 2 | BQ17: 2 | BR17: 2 | BS17: 2 | BT17: 7 | BU17: 3 | BV17: 0.1625 | BX17: 0.3925 | BY17: Limitación funcional moderada | CA17: >48 | CB17: 34-48 | CC17: 17-33 | CD17: 6-16 | CE17: <6 | CF17: >54 | CG17: 45-54 | CH17: 35-44 | CI17: 20-34 | CJ17: <20 | CN17: No se logra el contacto entre las manos | CO17: Mala
A18: ='CONDICION DE SALUD INICIAL'!A18 -> 0 | B18: ='CONDICION DE SALUD INICIAL'!B18 -> 0 | C18: ='CONDICION DE SALUD INICIAL'!C18 -> 0 | D18: ='CONDICION DE SALUD INICIAL'!D18 -> 0 | E18: ='CONDICION DE SALUD INICIAL'!H18 -> 0 | G18: 5 | H18: 7 | I18: 8 | J18: 8 | K18: 6 | L18: 0.34 | N18: 1 | O18: 3 | P18: 1 | Q18: 2 | R18: 7 | S18: 2 | T18: 1 | U18: 6 | V18: 3 | W18: 3 | X18: 0.145 | Z18: 0.485 | AA18: Limitación funcional moderada | AC18: 4 | AD18: 7 | AE18: 7 | AF18: 8 | AG18: 3 | AH18: 0.29 | AJ18: 4 | AK18: 0 | AL18: 7 | AM18: 2 | AN18: 7 | AO18: 0 | AP18: 1 | AQ18: 6 | AR18: 2 | AS18: 1 | AT18: 1 | AU18: 4 | AV18: 0 | AW18: 3 | AX18: 0 | AY18: 6 | AZ18: 3 | BA18: 2 | BB18: 0.1361111111 | BD18: 0.4261111111 | BE18: Limitación funcional moderada | BG18: 8 | BH18: 6 | BI18: 5 | BJ18: 2 | BK18: 6 | BL18: 0.27 | BN18: 3 | BO18: 1 | BP18: 0 | BQ18: 0 | BR18: 0 | BS18: 4 | BT18: 6 | BU18: 0 | BV18: 0.0875 | BX18: 0.3575 | BY18: Limitación funcional moderada | CA18: >48 | CB18: 34-48 | CC18: 17-33 | CD18: 6-16 | CE18: <6 | CF18: >54 | CG18: 45-54 | CH18: 35-44 | CI18: 20-34 | CJ18: <20 | CO18: 0
A19: ='CONDICION DE SALUD INICIAL'!A19 -> 0 | B19: ='CONDICION DE SALUD INICIAL'!B19 -> 0 | C19: ='CONDICION DE SALUD INICIAL'!C19 -> 0 | D19: ='CONDICION DE SALUD INICIAL'!D19 -> 0 | E19: ='CONDICION DE SALUD INICIAL'!H19 -> 0 | G19: 6 | H19: 9 | I19: 9 | J19: 10 | K19: 7 | L19: 0.41 | N19: 2 | O19: 4 | P19: 3 | Q19: 5 | R19: 5 | S19: 5 | T19: 4 | U19: 7 | V19: 4 | W19: 4 | X19: 0.215 | Z19: 0.625 | AA19: Limitación funcional moderada | AC19: 5 | AD19: 7 | AE19: 7 | AF19: 9 | AG19: 7 | AH19: 0.35 | AJ19: 5 | AK19: 3 | AL19: 7 | AM19: 5 | AN19: 7 | AO19: 5 | AP19: 7 | AQ19: 8 | AR19: 7 | AS19: 7 | AT19: 5 | AU19: 8 | AV19: 4 | AW19: 6 | AX19: 5 | AY19: 6 | AZ19: 6 | BA19: 5 | BB19: 0.2944444444 | BD19: 0.6444444444 | BE19: Limitación funcional moderada | BG19: 8 | BH19: 9 | BI19: 8 | BJ19: 8 | BK19: 8 | BL19: 0.41 | BN19: 6 | BO19: 8 | BP19: 6 | BQ19: 6 | BR19: 6 | BS19: 8 | BT19: 6 | BU19: 5 | BV19: 0.31875 | BX19: 0.72875 | BY19: Limitación funcional alta | CA19: >48 | CB19: 34-48 | CC19: 17-33 | CD19: 6-16 | CE19: <6 | CF19: >54 | CG19: 45-54 | CH19: 35-44 | CI19: 20-34 | CJ19: <20 | CO19: 0
A20: ='CONDICION DE SALUD INICIAL'!A20 -> 0 | B20: ='CONDICION DE SALUD INICIAL'!B20 -> 0 | C20: ='CONDICION DE SALUD INICIAL'!C20 -> 0 | D20: ='CONDICION DE SALUD INICIAL'!D20 -> 0 | E20: ='CONDICION DE SALUD INICIAL'!H20 -> 0 | G20: 0 | H20: 4 | I20: 4 | J20: 4 | K20: 3 | L20: 0.15 | N20: 0 | O20: 3 | P20: 0 | Q20: 0 | R20: 3 | S20: 0 | T20: 0 | U20: 3 | V20: 3 | W20: 0 | X20: 0.06 | Z20: 0.21 | AA20: Limitación funcional moderada | AC20: 0 | AD20: 3 | AE20: 3 | AF20: 4 | AG20: 3 | AH20: 0.13 | AJ20: 0 | AK20: 0 | AL20: 3 | AM20: 0 | AN20: 3 | AO20: 0 | AP20: 0 | AQ20: 3 | AR20: 0 | AS20: 0 | AT20: 0 | AU20: 0 | AV20: 0 | AW20: 0 | AX20: 0 | AY20: 3 | AZ20: 0 | BA20: 0 | BB20: 0.03333333333 | BD20: 0.1633333333 | BE20: Limitación funcional mínima | BG20: 4 | BH20: 4 | BI20: 3 | BJ20: 1 | BK20: 4 | BL20: 0.16 | BN20: 0 | BO20: 0 | BP20: 0 | BQ20: 0 | BR20: 0 | BS20: 4 | BT20: 4 | BU20: 0 | BV20: 0.05 | BX20: 0.21 | BY20: Limitación funcional moderada | CA20: >48 | CB20: 34-48 | CC20: 17-33 | CD20: 6-16 | CE20: <6 | CF20: >54 | CG20: 45-54 | CH20: 35-44 | CI20: 20-34 | CJ20: <20 | CN20: No se logra el contacto entre las manos | CO20: Mala
A21: ='CONDICION DE SALUD INICIAL'!A21 -> 0 | B21: ='CONDICION DE SALUD INICIAL'!B21 -> 0 | C21: ='CONDICION DE SALUD INICIAL'!C21 -> 0 | D21: ='CONDICION DE SALUD INICIAL'!D21 -> 0 | E21: ='CONDICION DE SALUD INICIAL'!H21 -> 0 | G21: 4 | H21: 7 | I21: 9 | J21: 10 | K21: 8 | L21: =SUM(G21:K21)*0.01 -> 0.38 | N21: 7 | O21: 7 | P21: 6 | Q21: 4 | R21: 10 | S21: 6 | T21: 5 | U21: 7 | V21: 5 | W21: 5 | X21: 0.31 | Z21: =SUM(L21,X21) -> 0.69 | AA21: Limitación funcional alta | AC21: 4 | AD21: 6 | AE21: 9 | AF21: 10 | AG21: 8 | AH21: =SUM(AC21:AG21)*0.01 -> 0.37 | AJ21: 5 | AK21: 5 | AL21: 8 | AM21: 7 | AN21: 10 | AO21: 3 | AP21: 6 | AR21: 7 | AS21: 4 | AT21: 4 | AU21: 8 | AV21: 6 | AW21: 6 | AX21: 4 | AY21: 8 | AZ21: 7 | BA21: 7 | BB21: 0.2916666667 | BD21: =SUM(AH21,BB21) -> 0.6616666667 | BE21: Limitación funcional alta | BG21: 9 | BH21: 9 | BI21: 9 | BJ21: 8 | BK21: 8 | BL21: 0.43 | BN21: 8 | BO21: 9 | BP21: 8 | BQ21: 5 | BR21: 7 | BS21: 9 | BT21: 10 | BU21: 6 | BV21: 0.3875 | BX21: 0.8175 | BY21: Limitación funcional alta | CA21: >48 | CB21: 34-48 | CC21: 17-33 | CD21: 6-16 | CE21: <6 | CF21: >54 | CG21: 45-54 | CH21: 35-44 | CI21: 20-34 | CJ21: <20 | CK21: 14 | CL21: Regular | CN21: No se logra el contacto entre las manos | CO21: Mala
A22: ='CONDICION DE SALUD INICIAL'!A22 -> 0 | B22: ='CONDICION DE SALUD INICIAL'!B22 -> 0 | C22: ='CONDICION DE SALUD INICIAL'!C22 -> 0 | D22: ='CONDICION DE SALUD INICIAL'!D22 -> 0 | E22: ='CONDICION DE SALUD INICIAL'!H22 -> 0 | G22: 0 | H22: 1 | I22: 0 | J22: 4 | K22: 1 | L22: 0.06 | N22: 0 | O22: 0 | P22: 0 | Q22: 0 | R22: 0 | S22: 0 | T22: 0 | U22: 0 | V22: 0 | W22: 0 | X22: 0 | Z22: 0.06 | AA22: Limitación funcional mínima | AC22: 0 | AD22: 0 | AE22: 0 | AF22: 0 | AG22: 0 | AH22: 0 | AJ22: 4 | AK22: 0 | AL22: 4 | AM22: 0 | AN22: 0 | AO22: 0 | AP22: 0 | AQ22: 0 | AR22: 0 | AS22: 0 | AT22: 0 | AU22: 0 | AV22: 0 | AW22: 0 | AX22: 0 | AY22: 0 | AZ22: 0 | BA22: 0 | BB22: 0.02222222222 | BD22: 0.02222222222 | BE22: Limitación funcional mínima | BG22: 0 | BH22: 0 | BI22: 0 | BJ22: 0 | BK22: 0 | BL22: 0 | BN22: 0 | BO22: 0 | BP22: 0 | BQ22: 0 | BR22: 0 | BS22: 0 | BT22: 0 | BU22: 0 | BV22: 0 | BX22: 0 | CA22: >48 | CB22: 34-48 | CC22: 17-33 | CD22: 6-16 | CE22: <6 | CF22: >54 | CG22: 45-54 | CH22: 35-44 | CI22: 20-34 | CJ22: <20 | CO22: 0
A23: ='CONDICION DE SALUD INICIAL'!A23 -> 0 | B23: ='CONDICION DE SALUD INICIAL'!B23 -> 0 | C23: ='CONDICION DE SALUD INICIAL'!C23 -> 0 | D23: ='CONDICION DE SALUD INICIAL'!D23 -> 0 | E23: ='CONDICION DE SALUD INICIAL'!H23 -> 0 | G23: 5 | H23: 6 | I23: 0 | J23: 0 | K23: 0 | L23: 0.11 | N23: 0 | O23: 0 | P23: 0 | Q23: 0 | R23: 0 | S23: 0 | T23: 0 | U23: 10 | V23: 6 | W23: 0 | X23: 0.08 | Z23: 0.19 | AA23: Limitación funcional mínima | AC23: 0 | AD23: 0 | AE23: 0 | AF23: 0 | AG23: 0 | AH23: 0 | AJ23: 0 | AK23: 0 | AL23: 0 | AM23: 0 | AN23: 0 | AO23: 0 | AP23: 0 | AQ23: 0 | AR23: 0 | AS23: 0 | AT23: 0 | AU23: 0 | AV23: 0 | AW23: 0 | AX23: 0 | AY23: 10 | AZ23: 0 | BA23: 0 | BB23: 0.02777777778 | BD23: 0.02777777778 | BE23: Limitación funcional mínima | BG23: 10 | BH23: 9 | BI23: 10 | BJ23: 9 | BK23: 10 | BL23: 0.48 | BN23: 8 | BO23: 8 | BP23: 9 | BQ23: 0 | BR23: 8 | BS23: 8 | BT23: 10 | BU23: 0 | BV23: 0.31875 | BX23: 0.79875 | BY23: Limitación funcional alta | CA23: >48 | CB23: 34-48 | CC23: 17-33 | CD23: 6-16 | CE23: <6 | CF23: >54 | CG23: 45-54 | CH23: 35-44 | CI23: 20-34 | CJ23: <20 | CK23: 0 | CL23: pobre | CN23: No se logra el contacto entre las manos | CO23: Mala
A24: ='CONDICION DE SALUD INICIAL'!A24 -> 0 | B24: ='CONDICION DE SALUD INICIAL'!B24 -> 0 | C24: ='CONDICION DE SALUD INICIAL'!C24 -> 0 | D24: ='CONDICION DE SALUD INICIAL'!D24 -> 0 | E24: ='CONDICION DE SALUD INICIAL'!H24 -> 0 | L24: 0 | X24: 0 | Z24: 0 | AH24: 0 | BB24: 0 | BD24: 0 | BL24: 0 | BV24: 0 | BX24: 0 | CA24: >48 | CB24: 34-48 | CC24: 17-33 | CD24: 6-16 | CE24: <6 | CF24: >54 | CG24: 45-54 | CH24: 35-44 | CI24: 20-34 | CJ24: <20 | CO24: 0
A25: ='CONDICION DE SALUD INICIAL'!A25 -> 0 | B25: ='CONDICION DE SALUD INICIAL'!B25 -> 0 | C25: ='CONDICION DE SALUD INICIAL'!C25 -> 0 | D25: ='CONDICION DE SALUD INICIAL'!D25 -> 0 | E25: ='CONDICION DE SALUD INICIAL'!H25 -> 0 | L25: =SUM(G25:K25)*0.01 -> 0 | X25: 0 | Z25: =SUM(L25,X25) -> 0 | AH25: =SUM(AC25:AG25)*0.01 -> 0 | BB25: 0 | BD25: =SUM(AH25,BB25) -> 0 | BL25: 0 | BV25: 0 | BX25: 0 | CA25: >48 | CB25: 34-48 | CC25: 17-33 | CD25: 6-16 | CE25: <6 | CF25: >54 | CG25: 45-54 | CH25: 35-44 | CI25: 20-34 | CJ25: <20 | CO25: 0
A26: ='CONDICION DE SALUD INICIAL'!A26 -> 0 | B26: ='CONDICION DE SALUD INICIAL'!B26 -> 0 | C26: ='CONDICION DE SALUD INICIAL'!C26 -> 0 | D26: ='CONDICION DE SALUD INICIAL'!D26 -> 0 | E26: ='CONDICION DE SALUD INICIAL'!H26 -> 0 | L26: 0 | X26: 0 | Z26: 0 | AH26: 0 | BB26: 0 | BD26: 0 | BL26: 0 | BV26: 0 | BX26: 0 | CA26: >48 | CB26: 34-48 | CC26: 17-33 | CD26: 6-16 | CE26: <6 | CF26: >54 | CG26: 45-54 | CH26: 35-44 | CI26: 20-34 | CJ26: <20 | CO26: 0
A27: ='CONDICION DE SALUD INICIAL'!A27 -> 0 | B27: ='CONDICION DE SALUD INICIAL'!B27 -> 0 | C27: ='CONDICION DE SALUD INICIAL'!C27 -> 0 | D27: ='CONDICION DE SALUD INICIAL'!D27 -> 0 | E27: ='CONDICION DE SALUD INICIAL'!H27 -> 0 | L27: 0 | X27: 0 | Z27: 0 | AH27: 0 | BB27: 0 | BD27: 0 | BL27: 0 | BV27: 0 | BX27: 0 | CA27: >48 | CB27: 34-48 | CC27: 17-33 | CD27: 6-16 | CE27: <6 | CF27: >54 | CG27: 45-54 | CH27: 35-44 | CI27: 20-34 | CJ27: <20 | CO27: 0
BL28: suma total de dolor/ 50 x 100 = % | BV28: Puntuación total de discapacidad: / 80 x 100 =% | BX28: Puntuación total: suma dolor y dicapacidad / 130 x 100 =%

Sheet CAPACIDAD FUNC COLUMNA INICIAL
A2: Base de Datos Intervención Terapeútica Evaluación capacidad funcional columna - Inicial
A4: Nº | B4: Empresa | C4: Apellidos | D4: Nombres | E4: Edad | G4: INDICE DE DISCAPACIDAD EN COLUMNA CERVICAL - INICIAL | AD4: FUNCIONALIDAD (ESCALA DE LIMITACIÓN FUNCIONAL POR DOLOR LUMBAR DE OSWESTRY) - INICIAL | BA4: FUERZA - INICIAL | BJ4: FLEXIBILIDAD - INICIAL | BM4: Observaciones
G5: Este cuestionario ha sido diseñado para darnos información sobre cómo su dolor de cuello ha afectado su capacidad de manejar en la vida cotidiana. Por favor, conteste cada sección y marca en cada sección sólo el cuadro que se aplica a su caso. | AD5: Este cuestionario ha sido diseñado para dar la información de cuanto y cómo el dolor de espalda ha afectado la capacidad para realizar actividades en la vida diaria. | BA5: La capacidad de vencer una resistencia externa o reaccionar contra la misma mediante una tensión muscular. | BJ5: Capacidad del individuo para aprovechar las posibilidades de movimiento de las articulaciones de la manera más optimas posible
G6: Intensidad del Dolor | H6: Calificación | I6: Cuidado Personal (lavarse, vestirse, etc.) | J6: Calificación | K6: Levantar pesos | L6: Calificación | M6: Lectura | N6: Calificación | O6: Dolor de cabeza | P6: Calificación | Q6: Concentrarse en algo | R6: Calificación | S6: Trabajo | T6: Calificación | U6: Conducción de vehículos | V6: Calificación | W6: Sueño | X6: Calificación | Y6: Actividades de ocio | Z6: Calificación | AA6: Calificación Total | AB6: Interpretación | BA6: Prueba de puente en prono | BJ6: Prueba de flexión de tronco en V | BK6: Interpretación
BA7: Mujer | BD7: Hombre | BG7: Resultado de la prueba (min) | BH7: Interpretación de la prueba
AD8: Intensidad del dolor | AE8: Calificación | AF8: Cuidados personales (lavarse, vestirse, etc) | AG8: Calificación | AH8: Levatar peso | AI8: Calificación | AJ8: Andar | AK8: Calificación | AL8: Estar sentado | AM8: Calificación | AN8: Estar de pie | AO8: Calificación | AP8: Dormir | AQ8: Calificación | AR8: Actividad Sexual | AS8: Calificación | AT8: Vida social | AU8: Calificación | AV8: Viajar | AW8: Calificación | AX8: Calificación ODI | AY8: Interpretación | BA8: Excelente | BB8: Satisfactorio | BC8: Necesita mejorar | BD8: Excelente | BE8: Satisfactorio | BF8: Necesita mejorar
A9: ='CONDICION DE SALUD INICIAL'!A8 -> 0 | B9: ='CONDICION DE SALUD INICIAL'!B8 -> 0 | C9: ='CONDICION DE SALUD INICIAL'!C8 -> 0 | D9: ='CONDICION DE SALUD INICIAL'!D8 -> 0 | E9: ='CONDICION DE SALUD INICIAL'!H8 -> 0 | G9: El dolor es muy severo en este momento | H9: =IF(G9="No tengo dolor en este momento","0",IF(G9="El dolor es muy leve en este momento","1",IF(G9="El dolor es moderado en este momento","2",IF(G9="El dolor es bastante severo en este momento","3",IF(G9="El dolor es muy severo en este momento","4",IF(G9="El dolor es el peor imaginable en este momento","5",IF(G9="",""))))))) -> 4 | I9: Cuidarme me duele de forma que tengo que hacerlo despacio y con cuidado | J9: =IF(I9="Puedo cuidarme con normalidad sin causar dolor adicional","0",IF(I9="Puedo cuidarme con normalidad pero esto me aumenta el dolor","1",IF(I9="Cuidarme me duele de forma que tengo que hacerlo despacio y con cuidado","2",IF(I9="Aunque necesito alguna ayuda me las arreglo para casi todos mis cuidados","3",IF(I9="Todos los días necesito ayuda para la mayor parte de mis cuidados","4",IF(I9="No puedo vestirme, me baño con dificultad y me quedo en la cama","5",IF(I9="",""))))))) -> 2 | K9: Solo puedo levantar objetos muy ligeros | L9: =IF(K9="Puedo levantar objetos pesados sin aumento del dolor","0",IF(K9="Puedo levantar objetos pesados pero me aumenta el dolor","1",IF(K9="El dolor me impide levantar objetos pesados del suelo, pero lo puedo hacer si están colocados en un sitio fácil, como por ejemplo en una mesa","2",IF(K9="El dolor me impide levantar objetos pesados del suelo, pero puedo levantar objetos medianos o ligeros si están colocados en un sitio fácil","3",IF(K9="Solo puedo levantar objetos muy ligeros","4",IF(K9="No puedo levantar ni llevar ningún tipo de objeto","5",IF(K9="",""))))))) -> 4 | M9: No puedo leer todo lo que quiero debido a un dolor moderado en el cuello | N9: =IF(M9="Puedo leer todo lo que quiera sin que me duela el cuello","0",IF(M9="Puedo leer todo lo que quiera con un dolor leve en el cuello","1",IF(M9="Puedo leer todo lo que quiera con un dolor moderado en el cuello","2",IF(M9="No puedo leer todo lo que quiero debido a un dolor moderado en el cuello","3",IF(M9="Apenas puedo leer por el gran dolor que me produce en el cuello","4",IF(M9="No puedo leer nada en absoluto","5",IF(M9="",""))))))) -> 3 | O9: A veces tengo un dolor moderado de cabeza | P9: =IF(O9="No tengo ningún dolor de cabeza","0",IF(O9="A veces tengo un pequeño dolor de cabeza","1",IF(O9="A veces tengo un dolor moderado de cabeza","2",IF(O9="Con frecuencia tengo un dolor moderado de cabeza","3",IF(O9="Con frecuencia tengo un dolor fuerte de cabeza","4",IF(O9="Tengo dolor de cabeza casi continuo","5",IF(O9="",""))))))) -> 2 | Q9: No puedo concentrarme nunca | R9: =IF(Q9="Me concentro totalmente en algo cuando quiero sin dificultad","0",IF(Q9="Me concentro totalmente en algo cuando quiero con alguna dificultad","1",IF(Q9="Tengo alguna dificultad para concentrarme cuando quiero","2",IF(Q9="Tengo bastante dificultad para concentrarme cuando quiero","3",IF(Q9="Tengo mucha dificultad para concentrarme cuando quiero","4",IF(Q9="No puedo concentrarme nunca","5",IF(Q9="",""))))))) -> 5 | S9: Puedo hacer mi trabajo habitual, pero no más | T9: =IF(S9="Puedo trabajar todo lo que quiero","0",IF(S9="Puedo hacer mi trabajo habitual, pero no más","1",IF(S9="Puedo hacer casi todo mi trabajo habitual, pero no más","2",IF(S9="No puedo hacer mi trabajo habitual","3",IF(S9="A duras penas puedo hacer algún tipo de trabajo","4",IF(S9="No puedo trabajar en nada","5",IF(S9="",""))))))) -> 1 | U9: Puedo conducir todo lo que quiero, pero con un ligero dolor en el cuello | V9: =IF(U9="Puedo conducir sin dolor en el cuello","0",IF(U9="Puedo conducir todo lo que quiero, pero con un ligero dolor en el cuello","1",IF(U9="Puedo conducir todo lo que quiero, pero con un moderado dolor en el cuello","2",IF(U9="No puedo conducir todo lo que quiero debido al dolor de cuello","3",IF(U9="Apenas puedo conducir debido al intenso dolor de cuello","4",IF(U9="No puedo conducir nada por el dolor de cuello","5",IF(U9="",""))))))) -> 1 | W9: Pierdo de 5 a 7 horas de sueño cada noche por el dolor de cuello | X9: =IF(W9="No tengo ningún problema para dormir","0",IF(W9="Pierdo menos de 1 hora de sueño cada noche por el dolor de cuello","1",IF(W9="Pierdo de 1 a 2 horas de sueño cada noche por el dolor de cuello","2",IF(W9="Pierdo de 2 a 3 horas de sueño cada noche por el dolor de cuello","3",IF(W9="Pierdo de 3 a 5 horas de sueño cada noche por el dolor de cuello","4",IF(W9="Pierdo de 5 a 7 horas de sueño cada noche por el dolor de cuello","5",IF(W9="",""))))))) -> 5 | Y9: No puedo realizar ninguna actividad de ocio | Z9: =IF(Y9="Puedo hacer todas mis actividades de ocio sin dolor de cuello","0",IF(Y9="Puedo hacer todas mis actividades de ocio con algún dolor de cuello","1",IF(Y9="No puedo hacer alguna de mis actividades de ocio por el dolor de cuello","2",IF(Y9="Solo puedo hacer unas pocas actividades de ocio por el dolor de cuello","3",IF(Y9="Apenas puedo hacer las cosas que me gustan debido al dolor de cuello","4",IF(Y9="No puedo realizar ninguna actividad de ocio","5",IF(Y9="",""))))))) -> 5 | AA9: =(H9+J9+L9+N9+P9+R9+T9+V9+X9+Z9)/50 -> 0.64 | AB9: =IF(AA9=0%,"",IF(AA9<=15%,"Discapacidad mínima",IF(AA9<=34%,"Discapacidad moderada",IF(AA9>=35%,"Discapacidad máxima",)))) -> Discapacidad máxima | AD9: Los calmantes me alivian un poco el dolor | AE9: =IF(AD9="Puedo soportar el dolor sin necesidad de tomar calmantes","0",IF(AD9="El dolor es fuerte pero me arreglo sin tomar calmantes","1",IF(AD9="Los calmantes me alivian completamente el dolor","2",IF(AD9="Los calmantes me alivian un poco el dolor","3",IF(AD9="Los calmantes apenas me alivian el dolor","4",IF(AD9="Los calmantes no me quitan el dolor y no los tomo","5",IF(AD9="",""))))))) -> 3 | AF9: Me las puedo arreglar solo sin que aumente el dolor | AG9: =IF(AF9="Me las puedo arreglar solo sin que aumente el dolor","0",IF(AF9="Me las puedo arreglar solo pero esto me aumenta el dolor","1",IF(AF9="Lavarme, vestirme, etc., me produce dolor y tengo que hacerlo despacio y con cuidado","2",IF(AF9="Necesito alguna ayuda pero consigo hacer la mayoría de las cosas yo solo","3",IF(AF9="Necesito ayuda para hacer la mayoría de las cosas","4",IF(AF9="No puedo vestirme, me cuesta lavarme, y suelo quedarme en la cama","5",IF(AF9="",""))))))) -> 0 | AH9: Solo puedo levantar objetos muy ligeros | AI9: =IF(AH9="Puedo levantar objetos pesados sin que me aumente el dolor","0",IF(AH9="Puedo levantar objetos pesados pero me aumenta el dolor","1",IF(AH9="El dolor me impide levantar objetos pesados del suelo, pero puedo hacerlo si están en un sitio cómodo (ej. En una mesa)","2",IF(AH9="El dolor me impide levantar objetos pesados, pero si puedo levantar objetos ligeros o medianos si están en un sitio cómodo","3",IF(AH9="Solo puedo levantar objetos muy ligeros","4",IF(AH9="No puedo levantar ni elevar ningún objeto","5",IF(AH9="",""))))))) -> 4 | AJ9: El dolor me impide andar más de 1 kilómetro | AK9: =IF(AJ9="El dolor no me impide andar","0",IF(AJ9="El dolor me impide andar más de 1 kilómetro","1",IF(AJ9="El dolor me impide andar más de 500 metros","2",IF(AJ9="El dolor me impide andar más de 250 metros","3",IF(AJ9="Sólo puedo andar con bastón o muletas","4",IF(AJ9="Permanezco en la cama casi todo el tiempo y tengo que ir a rastras al baño","5",IF(AJ9="",""))))))) -> 1 | AL9: El dolor me impide estar sentado más de una hora | AM9: =IF(AL9="Puedo estar sentado en cualquier tipo de silla todo el tiempo que quiera","0",IF(AL9="Puedo estar sentado en mi silla favorita todo el tiempo que quiera","1",IF(AL9="El dolor me impide estar sentado más de una hora","2",IF(AL9="El dolor me impide estar sentado más de media hora","3",IF(AL9="El dolor me impide estar sentado más de diez minutos","4",IF(AL9="El dolor me impide estar sentado","5",IF(AL9="",""))))))) -> 2 | AN9: El dolor me impide estar de pie más de una hora | AO9: =IF(AN9="Puedo estar de pie tanto tiempo como quiera sin que me aumente el dolor","0",IF(AN9="Puedo estar de pie tanto tiempo como quiera pero me aumenta el dolor","1",IF(AN9="El dolor me impide estar de pie más de una hora","2",IF(AN9="El dolor me impide estar de pie más de media hora","3",IF(AN9="El dolor me impide estar de pie más de diez minutos","4",IF(AN9="El dolor me impide estar de pie","5",IF(AN9="",""))))))) -> 2 | AP9: El dolor no me impide dormir bien | AQ9: =IF(AP9="El dolor no me impide dormir bien","0",IF(AP9="Sólo puedo dormir si tomo pastillas","1",IF(AP9="Incluso tomando pastillas duermo menos de seis horas","2",IF(AP9="Incluso tomando pastillas duermo menos de cuatro horas","3",IF(AP9="Incluso tomando pastillas duermo menos de dos horas","4",IF(AP9="El dolor me impide totalmente dormir","5",IF(AP9="",""))))))) -> 0 | AR9: Mi actividad sexual es normal pero me aumenta el dolor | AS9: =IF(AR9="Mi actividad sexual es normal y no me aumenta el dolor","0",IF(AR9="Mi actividad sexual es normal pero me aumenta el dolor","1",IF(AR9="Mi actividad sexual es casi normal pero me aumenta mucho el dolor","2",IF(AR9="Mi actividad sexual se ha visto muy limitada a causa del dolor","3",IF(AR9="Mi actividad sexual es casi nula a causa del dolor","4",IF(AR9="El dolor me impide todo tipo de actividad sexual","5",IF(AR9="",""))))))) -> 1 | AT9: El dolor no tiene un efecto importante en mi vida social, pero impide mis actividades más enérgicas, como bailar, etc | AU9: =IF(AT9="Mi vida social es uy normal y no me aumenta el dolor","0",IF(AT9="Mi vida social es normal, pero me aumenta el dolor","1",IF(AT9="El dolor no tiene un efecto importante en mi vida social, pero impide mis actividades más enérgicas, como bailar, etc","2",IF(AT9="El dolor ha limitado mi vida social y no salgo tan a menudo","3",IF(AT9="El dolor ha limitado mi vida social al hogar","4",IF(AT9="No tengo vida social a causa del dolor","5",IF(AT9="",""))))))) -> 2 | AV9: El dolor es fuerte, pero aguanto viajes de más de dos horas | AW9: =IF(AV9="Puedo viajar a cualquier sitio sin que aumente el dolor","0",IF(AV9="Puedo viajar a cualquier sitio, pero me aumenta el dolor","1",IF(AV9="El dolor es fuerte, pero aguanto viajes de más de dos horas","2",IF(AV9="El dolor me limita a viajes de menos de una hora","3",IF(AV9="El dolor me limita a viajes cortos y necesarios de menos de media hora","4",IF(AV9="El dolor me impide viajar excepto para ir al médico o al hospital","5",IF(AV9="",""))))))) -> 2 | AX9: =(AE9+AG9+AI9+AK9+AM9+AO9+AQ9+AS9+AU9+AW9)*0.02 -> 0.34 | AY9: =IF(AX9<20%,"Limitación funcional mínima",IF(AX9<40%,"Limitación funcional moderada",IF(AX9<60%,"Discapacidad intensa",IF(AX9<80%,"Discapacidad 80%",IF(AX9>=81%,"Discapacidad máxima",IF(AX9="","")))))) -> Limitación funcional moderada | BA9: > 2.5 min | BB9: 1.8-2.2 min | BC9: < 1.8 min | BD9: > 3 min | BE9: 2.0-2.5 min | BF9: < 2 min | BG9: <2min | BH9: Necesita Mejorar | BK9: =IF(BJ9="","",IF(BJ9=">0","Buena",IF(BJ9=0,"Regular",IF(BJ9="<0","Mala",)))) -> 
A10: ='CONDICION DE SALUD INICIAL'!A9 -> 0 | B10: ='CONDICION DE SALUD INICIAL'!B9 -> 0 | C10: ='CONDICION DE SALUD INICIAL'!C9 -> 0 | D10: ='CONDICION DE SALUD INICIAL'!D9 -> 0 | E10: ='CONDICION DE SALUD INICIAL'!H9 -> 0 | G10: El dolor es muy leve en este momento | H10: 1 | I10: Puedo cuidarme con normalidad sin causar dolor adicional | J10: 0 | K10: Puedo levantar objetos pesados sin aumento del dolor | L10: 0 | M10: Puedo leer todo lo que quiera con un dolor leve en el cuello | N10: 1 | O10: No tengo ningún dolor de cabeza | P10: 0 | Q10: Tengo alguna dificultad para concentrarme cuando quiero | R10: 2 | S10: Puedo trabajar todo lo que quiero | T10: 0 | U10: Puedo conducir sin dolor en el cuello | V10: 0 | W10: No tengo ningún problema para dormir | X10: 0 | Y10: Puedo hacer todas mis actividades de ocio sin dolor de cuello | Z10: 0 | AA10: 0.08 | AB10: =IF(AA10=0%,"",IF(AA10<=15%,"Discapacidad mínima",IF(AA10<=34%,"Discapacidad moderada",IF(AA10>=35%,"Discapacidad máxima",)))) -> Discapacidad mínima | AD10: El dolor es fuerte pero me arreglo sin tomar calmantes | AE10: 1 | AF10: Me las puedo arreglar solo pero esto me aumenta el dolor | AG10: 1 | AH10: Solo puedo levantar objetos muy ligeros | AI10: 4 | AJ10: El dolor me impide andar más de 500 metros | AK10: 2 | AL10: El dolor me impide estar sentado más de una hora | AM10: 2 | AN10: El dolor me impide estar de pie más de diez minutos | AO10: 4 | AP10: El dolor no me impide dormir bien | AQ10: 0 | AR10: Mi actividad sexual se ha visto muy limitada a causa del dolor | AS10: 3 | AT10: El dolor ha limitado mi vida social al hogar | AU10: 4 | AV10: Puedo viajar a cualquier sitio, pero me aumenta el dolor | AW10: 1 | AX10: 0.44 | AY10: Discapacidad intensa | BA10: > 2.5 min | BB10: 1.8-2.2 min | BC10: < 1.8 min | BD10: > 3 min | BE10: 2.0-2.5 min | BF10: < 2 min | BJ10: <0 | BK10: Mala
A11: ='CONDICION DE SALUD INICIAL'!A10 -> 0 | B11: ='CONDICION DE SALUD INICIAL'!B10 -> 0 | C11: ='CONDICION DE SALUD INICIAL'!C10 -> 0 | D11: ='CONDICION DE SALUD INICIAL'!D10 -> 0 | E11: ='CONDICION DE SALUD INICIAL'!H10 -> 0 | G11: El dolor es moderado en este momento | H11: 2 | I11: Aunque necesito alguna ayuda me las arreglo para casi todos mis cuidados | J11: 3 | K11: El dolor me impide levantar objetos pesados del suelo, pero lo puedo hacer si están colocados en un sitio fácil, como por ejemplo en una mesa | L11: 2 | M11: Puedo leer todo lo que quiera con un dolor moderado en el cuello | N11: 2 | O11: A veces tengo un pequeño dolor de cabeza | P11: 1 | Q11: Tengo alguna dificultad para concentrarme cuando quiero | R11: 2 | S11: Puedo hacer mi trabajo habitual, pero no más | T11: 1 | U11: Puedo conducir sin dolor en el cuello | V11: 0 | W11: No tengo ningún problema para dormir | X11: 0 | Y11: No puedo hacer alguna de mis actividades de ocio por el dolor de cuello | Z11: 2 | AA11: 0.3 | AB11: Discapacidad moderada | AD11: Puedo soportar el dolor sin necesidad de tomar calmantes | AE11: 0 | AF11: Me las puedo arreglar solo sin que aumente el dolor | AG11: 0 | AH11: Puedo levantar objetos pesados sin que me aumente el dolor | AI11: 0 | AJ11: El dolor no me impide andar | AK11: 0 | AL11: Puedo estar sentado en mi silla favorita todo el tiempo que quiera | AM11: 1 | AN11: Puedo estar de pie tanto tiempo como quiera sin que me aumente el dolor | AO11: 0 | AP11: El dolor no me impide dormir bien | AQ11: 0 | AR11: Mi actividad sexual es normal y no me aumenta el dolor | AS11: 0 | AT11: Mi vida social es uy normal y no me aumenta el dolor | AU11: 0 | AV11: Puedo viajar a cualquier sitio sin que aumente el dolor | AW11: 0 | AX11: 0.02 | AY11: Limitación funcional mínima | BA11: > 2.5 min | BB11: 1.8-2.2 min | BC11: < 1.8 min | BD11: > 3 min | BE11: 2.0-2.5 min | BF11: < 2 min | BG11: 37 segundos | BH11: Necesita Mejorar
A12: ='CONDICION DE SALUD INICIAL'!A11 -> 0 | B12: ='CONDICION DE SALUD INICIAL'!B11 -> 0 | C12: ='CONDICION DE SALUD INICIAL'!C11 -> 0 | D12: ='CONDICION DE SALUD INICIAL'!D11 -> 0 | E12: ='CONDICION DE SALUD INICIAL'!H11 -> 0 | AD12: Los calmantes no me quitan el dolor y no los tomo | AE12: 5 | AF12: No puedo vestirme, me cuesta lavarme, y suelo quedarme en la cama | AG12: 5 | AH12: No puedo levantar ni elevar ningún objeto | AI12: 5 | AJ12: Permanezco en la cama casi todo el tiempo y tengo que ir a rastras al baño | AK12: 5 | AL12: El dolor me impide estar sentado | AM12: 5 | AN12: El dolor me impide estar de pie | AO12: 5 | AP12: Sólo puedo dormir si tomo pastillas | AQ12: 1 | AR12: Mi actividad sexual es normal y no me aumenta el dolor | AS12: 0 | AT12: Mi vida social es normal, pero me aumenta el dolor | AU12: 1 | AV12: El dolor me impide viajar excepto para ir al médico o al hospital | AW12: 5 | AX12: 0.74 | AY12: Discapacidad 80% | BA12: > 2.5 min | BB12: 1.8-2.2 min | BC12: < 1.8 min | BD12: > 3 min | BE12: 2.0-2.5 min | BF12: < 2 min | BG12: 1 min y 7 segundos | BH12: Necesita Mejorar | BJ12: 0 | BK12: Regular
A13: ='CONDICION DE SALUD INICIAL'!A12 -> 0 | B13: ='CONDICION DE SALUD INICIAL'!B12 -> 0 | C13: ='CONDICION DE SALUD INICIAL'!C12 -> 0 | D13: ='CONDICION DE SALUD INICIAL'!D12 -> 0 | E13: ='CONDICION DE SALUD INICIAL'!H12 -> 0 | AD13: Puedo soportar el dolor sin necesidad de tomar calmantes | AE13: 0 | AF13: Me las puedo arreglar solo sin que aumente el dolor | AG13: 0 | AH13: Puedo levantar objetos pesados pero me aumenta el dolor | AI13: 1 | AJ13: El dolor no me impide andar | AK13: 0 | AL13: Puedo estar sentado en cualquier tipo de silla todo el tiempo que quiera | AM13: 0 | AN13: Puedo estar de pie tanto tiempo como quiera sin que me aumente el dolor | AO13: 0 | AP13: El dolor no me impide dormir bien | AQ13: 0 | AR13: Mi actividad sexual es normal y no me aumenta el dolor | AS13: 0 | AT13: Mi vida social es uy normal y no me aumenta el dolor | AU13: 0 | AV13: Puedo viajar a cualquier sitio sin que aumente el dolor | AW13: 0 | AX13: 0.02 | AY13: Limitación funcional mínima | BA13: > 2.5 min | BB13: 1.8-2.2 min | BC13: < 1.8 min | BD13: > 3 min | BE13: 2.0-2.5 min | BF13: < 2 min | BG13: 23 segundos | BH13: Necesita Mejorar | BJ13: <0 | BK13: Mala
A14: ='CONDICION DE SALUD INICIAL'!A13 -> 0 | B14: ='CONDICION DE SALUD INICIAL'!B13 -> 0 | C14: ='CONDICION DE SALUD INICIAL'!C13 -> 0 | D14: ='CONDICION DE SALUD INICIAL'!D13 -> 0 | E14: ='CONDICION DE SALUD INICIAL'!H13 -> 0 | G14: No tengo dolor en este momento | H14: 0 | I14: Puedo cuidarme con normalidad pero esto me aumenta el dolor | J14: 1 | K14: El dolor me impide levantar objetos pesados del suelo, pero lo puedo hacer si están colocados en un sitio fácil, como por ejemplo en una mesa | L14: 2 | M14: Puedo leer todo lo que quiera sin que me duela el cuello | N14: 0 | O14: No tengo ningún dolor de cabeza | P14: 0 | Q14: Me concentro totalmente en algo cuando quiero con alguna dificultad | R14: 1 | S14: Puedo trabajar todo lo que quiero | T14: 0 | U14: Puedo conducir todo lo que quiero, pero con un ligero dolor en el cuello | V14: 1 | W14: No tengo ningún problema para dormir | X14: 0 | Y14: Puedo hacer todas mis actividades de ocio sin dolor de cuello | Z14: 0 | AA14: 0.1 | AB14: Discapacidad mínima | AD14: El dolor es fuerte pero me arreglo sin tomar calmantes | AE14: 1 | AF14: Me las puedo arreglar solo sin que aumente el dolor | AG14: 0 | AH14: Puedo levantar objetos pesados sin que me aumente el dolor | AI14: 0 | AJ14: El dolor no me impide andar | AK14: 0 | AL14: Puedo estar sentado en mi silla favorita todo el tiempo que quiera | AM14: 1 | AN14: Puedo estar de pie tanto tiempo como quiera pero me aumenta el dolor | AO14: 1 | AP14: El dolor no me impide dormir bien | AQ14: 0 | AR14: Mi actividad sexual es normal y no me aumenta el dolor | AS14: 0 | AT14: Mi vida social es uy normal y no me aumenta el dolor | AU14: 0 | AV14: Puedo viajar a cualquier sitio sin que aumente el dolor | AW14: 0 | AX14: 0.06 | AY14: Limitación funcional mínima | BA14: > 2.5 min | BB14: 1.8-2.2 min | BC14: < 1.8 min | BD14: > 3 min | BE14: 2.0-2.5 min | BF14: < 2 min | BG14: 23 segundos | BH14: Necesita Mejorar | BJ14: <0 | BK14: Mala
A15: ='CONDICION DE SALUD INICIAL'!A14 -> 0 | B15: ='CONDICION DE SALUD INICIAL'!B14 -> 0 | C15: ='CONDICION DE SALUD INICIAL'!C14 -> 0 | D15: ='CONDICION DE SALUD INICIAL'!D14 -> 0 | E15: ='CONDICION DE SALUD INICIAL'!H14 -> 0 | G15: El dolor es el peor imaginable en este momento | H15: 5 | I15: No puedo vestirme, me baño con dificultad y me quedo en la cama | J15: 5 | K15: Solo puedo levantar objetos muy ligeros | L15: 4 | M15: Apenas puedo leer por el gran dolor que me produce en el cuello | N15: 4 | O15: Tengo dolor de cabeza casi continuo | P15: 5 | Q15: No puedo concentrarme nunca | R15: 5 | S15: No puedo hacer mi trabajo habitual | T15: 3 | U15: No puedo conducir nada por el dolor de cuello | V15: 5 | W15: Pierdo de 3 a 5 horas de sueño cada noche por el dolor de cuello | X15: 4 | Y15: Puedo hacer todas mis actividades de ocio sin dolor de cuello | Z15: 0 | AA15: 0.8 | AB15: Discapacidad máxima | BA15: > 2.5 min | BB15: 1.8-2.2 min | BC15: < 1.8 min | BD15: > 3 min | BE15: 2.0-2.5 min | BF15: < 2 min
A16: ='CONDICION DE SALUD INICIAL'!A15 -> 0 | B16: ='CONDICION DE SALUD INICIAL'!B15 -> 0 | C16: ='CONDICION DE SALUD INICIAL'!C15 -> 0 | D16: ='CONDICION DE SALUD INICIAL'!D15 -> 0 | E16: ='CONDICION DE SALUD INICIAL'!H15 -> 0 | G16: El dolor es moderado en este momento | H16: 2 | I16: Cuidarme me duele de forma que tengo que hacerlo despacio y con cuidado | J16: 2 | K16: Puedo levantar objetos pesados pero me aumenta el dolor | L16: 1 | M16: Puedo leer todo lo que quiera con un dolor moderado en el cuello | N16: 2 | O16: A veces tengo un pequeño dolor de cabeza | P16: 1 | Q16: Tengo alguna dificultad para concentrarme cuando quiero | R16: 2 | S16: Puedo hacer mi trabajo habitual, pero no más | T16: 1 | U16: Puedo conducir sin dolor en el cuello | V16: 0 | W16: No tengo ningún problema para dormir | X16: 0 | Y16: Puedo hacer todas mis actividades de ocio sin dolor de cuello | Z16: 0 | AA16: 0.22 | AB16: Discapacidad moderada | AD16: El dolor es fuerte pero me arreglo sin tomar calmantes | AE16: 1 | AF16: Lavarme, vestirme, etc., me produce dolor y tengo que hacerlo despacio y con cuidado | AG16: 2 | AH16: Solo puedo levantar objetos muy ligeros | AI16: 4 | AJ16: El dolor no me impide andar | AK16: 0 | AL16: Puedo estar sentado en cualquier tipo de silla todo el tiempo que quiera | AM16: 0 | AN16: El dolor me impide estar de pie más de diez minutos | AO16: 4 | AP16: El dolor no me impide dormir bien | AQ16: 0 | AR16: Mi actividad sexual es normal y no me aumenta el dolor | AS16: 0 | AT16: Mi vida social es normal, pero me aumenta el dolor | AU16: 1 | AV16: El dolor es fuerte, pero aguanto viajes de más de dos horas | AW16: 2 | AX16: 0.28 | AY16: Limitación funcional moderada | BA16: > 2.5 min | BB16: 1.8-2.2 min | BC16: < 1.8 min | BD16: > 3 min | BE16: 2.0-2.5 min | BF16: < 2 min | BJ16: <0 | BK16: Mala
A17: ='CONDICION DE SALUD INICIAL'!A16 -> 0 | B17: ='CONDICION DE SALUD INICIAL'!B16 -> 0 | C17: ='CONDICION DE SALUD INICIAL'!C16 -> 0 | D17: ='CONDICION DE SALUD INICIAL'!D16 -> 0 | E17: ='CONDICION DE SALUD INICIAL'!H16 -> 0 | AD17: Los calmantes me alivian un poco el dolor | AE17: 3 | AF17: Me las puedo arreglar solo sin que aumente el dolor | AG17: 0 | AH17: Puedo levantar objetos pesados pero me aumenta el dolor | AI17: 1 | AJ17: El dolor no me impide andar | AK17: 0 | AL17: El dolor me impide estar sentado más de una hora | AM17: 2 | AN17: Puedo estar de pie tanto tiempo como quiera pero me aumenta el dolor | AO17: 1 | AP17: Sólo puedo dormir si tomo pastillas | AQ17: 1 | AR17: Mi actividad sexual es normal pero me aumenta el dolor | AS17: 1 | AT17: El dolor no tiene un efecto importante en mi vida social, pero impide mis actividades más enérgicas, como bailar, etc | AU17: 2 | AV17: El dolor es fuerte, pero aguanto viajes de más de dos horas | AW17: 2 | AX17: 0.26 | AY17: Limitación funcional moderada | BA17: > 2.5 min | BB17: 1.8-2.2 min | BC17: < 1.8 min | BD17: > 3 min | BE17: 2.0-2.5 min | BF17: < 2 min | BG17: No realiza prueba por reciente cirugia en codo | BJ17: >0 | BK17: Buena
A18: ='CONDICION DE SALUD INICIAL'!A17 -> 0 | B18: ='CONDICION DE SALUD INICIAL'!B17 -> 0 | C18: ='CONDICION DE SALUD INICIAL'!C17 -> 0 | D18: ='CONDICION DE SALUD INICIAL'!D17 -> 0 | E18: ='CONDICION DE SALUD INICIAL'!H17 -> 0 | AD18: Puedo soportar el dolor sin necesidad de tomar calmantes | AE18: 0 | AF18: Me las puedo arreglar solo sin que aumente el dolor | AG18: 0 | AH18: Puedo levantar objetos pesados sin que me aumente el dolor | AI18: 0 | AJ18: El dolor no me impide andar | AK18: 0 | AL18: Puedo estar sentado en cualquier tipo de silla todo el tiempo que quiera | AM18: 0 | AN18: Puedo estar de pie tanto tiempo como quiera sin que me aumente el dolor | AO18: 0 | AP18: El dolor no me impide dormir bien | AQ18: 0 | AR18: Mi actividad sexual es normal y no me aumenta el dolor | AS18: 0 | AT18: Mi vida social es uy normal y no me aumenta el dolor | AU18: 0 | AV18: Puedo viajar a cualquier sitio sin que aumente el dolor | AW18: 0 | AX18: 0 | AY18: Limitación funcional mínima | BA18: > 2.5 min | BB18: 1.8-2.2 min | BC18: < 1.8 min | BD18: > 3 min | BE18: 2.0-2.5 min | BF18: < 2 min | BG18: 4 segundos | BH18: Necesita Mejorar | BJ18: >0 | BK18: Buena
A19: ='CONDICION DE SALUD INICIAL'!A18 -> 0 | B19: ='CONDICION DE SALUD INICIAL'!B18 -> 0 | C19: ='CONDICION DE SALUD INICIAL'!C18 -> 0 | D19: ='CONDICION DE SALUD INICIAL'!D18 -> 0 | E19: ='CONDICION DE SALUD INICIAL'!H18 -> 0 | BA19: > 2.5 min | BB19: 1.8-2.2 min | BC19: < 1.8 min | BD19: > 3 min | BE19: 2.0-2.5 min | BF19: < 2 min
A20: ='CONDICION DE SALUD INICIAL'!A19 -> 0 | B20: ='CONDICION DE SALUD INICIAL'!B19 -> 0 | C20: ='CONDICION DE SALUD INICIAL'!C19 -> 0 | D20: ='CONDICION DE SALUD INICIAL'!D19 -> 0 | E20: ='CONDICION DE SALUD INICIAL'!H19 -> 0 | AD20: Los calmantes me alivian un poco el dolor | AE20: 3 | AF20: Lavarme, vestirme, etc., me produce dolor y tengo que hacerlo despacio y con cuidado | AG20: 2 | AH20: El dolor me impide levantar objetos pesados, pero si puedo levantar objetos ligeros o medianos si están en un sitio cómodo | AI20: 3 | AJ20: El dolor no me impide andar | AK20: 0 | AL20: El dolor me impide estar sentado más de una hora | AM20: 2 | AN20: El dolor me impide estar de pie más de una hora | AO20: 2 | AP20: El dolor no me impide dormir bien | AQ20: 0 | AR20: Mi actividad sexual es normal pero me aumenta el dolor | AS20: 1 | AT20: El dolor no tiene un efecto importante en mi vida social, pero impide mis actividades más enérgicas, como bailar, etc | AU20: 2 | AV20: El dolor es fuerte, pero aguanto viajes de más de dos horas | AW20: 2 | AX20: 0.34 | AY20: Limitación funcional moderada | BA20: > 2.5 min | BB20: 1.8-2.2 min | BC20: < 1.8 min | BD20: > 3 min | BE20: 2.0-2.5 min | BF20: < 2 min
A21: ='CONDICION DE SALUD INICIAL'!A20 -> 0 | B21: ='CONDICION DE SALUD INICIAL'!B20 -> 0 | C21: ='CONDICION DE SALUD INICIAL'!C20 -> 0 | D21: ='CONDICION DE SALUD INICIAL'!D20 -> 0 | E21: ='CONDICION DE SALUD INICIAL'!H20 -> 0 | BA21: > 2.5 min | BB21: 1.8-2.2 min | BC21: < 1.8 min | BD21: > 3 min | BE21: 2.0-2.5 min | BF21: < 2 min
A22: ='CONDICION DE SALUD INICIAL'!A21 -> 0 | B22: ='CONDICION DE SALUD INICIAL'!B21 -> 0 | C22: ='CONDICION DE SALUD INICIAL'!C21 -> 0 | D22: ='CONDICION DE SALUD INICIAL'!D21 -> 0 | E22: ='CONDICION DE SALUD INICIAL'!H21 -> 0 | AD22: Los calmantes me alivian un poco el dolor | AE22: 3 | AF22: Lavarme, vestirme, etc., me produce dolor y tengo que hacerlo despacio y con cuidado | AG22: 2 | AH22: El dolor me impide levantar objetos pesados, pero si puedo levantar objetos ligeros o medianos si están en un sitio cómodo | AI22: 3 | AJ22: El dolor me impide andar más de 250 metros | AK22: 3 | AL22: Puedo estar sentado en cualquier tipo de silla todo el tiempo que quiera | AM22: 0 | AN22: Puedo estar de pie tanto tiempo como quiera pero me aumenta el dolor | AO22: 1 | AP22: El dolor no me impide dormir bien | AQ22: 0 | AR22: Mi actividad sexual es normal pero me aumenta el dolor | AS22: 1 | AT22: El dolor ha limitado mi vida social y no salgo tan a menudo | AU22: 3 | AV22: Puedo viajar a cualquier sitio, pero me aumenta el dolor | AW22: 1 | AX22: 0.34 | AY22: Limitación funcional moderada | BA22: > 2.5 min | BB22: 1.8-2.2 min | BC22: < 1.8 min | BD22: > 3 min | BE22: 2.0-2.5 min | BF22: < 2 min
A23: ='CONDICION DE SALUD INICIAL'!A22 -> 0 | B23: ='CONDICION DE SALUD INICIAL'!B22 -> 0 | C23: ='CONDICION DE SALUD INICIAL'!C22 -> 0 | D23: ='CONDICION DE SALUD INICIAL'!D22 -> 0 | E23: ='CONDICION DE SALUD INICIAL'!H22 -> 0 | BA23: > 2.5 min | BB23: 1.8-2.2 min | BC23: < 1.8 min | BD23: > 3 min | BE23: 2.0-2.5 min | BF23: < 2 min
A24: ='CONDICION DE SALUD INICIAL'!A23 -> 0 | B24: ='CONDICION DE SALUD INICIAL'!B23 -> 0 | C24: ='CONDICION DE SALUD INICIAL'!C23 -> 0 | D24: ='CONDICION DE SALUD INICIAL'!D23 -> 0 | E24: ='CONDICION DE SALUD INICIAL'!H23 -> 0 | BA24: > 2.5 min | BB24: 1.8-2.2 min | BC24: < 1.8 min | BD24: > 3 min | BE24: 2.0-2.5 min | BF24: < 2 min
A25: ='CONDICION DE SALUD INICIAL'!A24 -> 0 | B25: ='CONDICION DE SALUD INICIAL'!B24 -> 0 | C25: ='CONDICION DE SALUD INICIAL'!C24 -> 0 | D25: ='CONDICION DE SALUD INICIAL'!D24 -> 0 | E25: ='CONDICION DE SALUD INICIAL'!H24 -> 0 | BA25: > 2.5 min | BB25: 1.8-2.2 min | BC25: < 1.8 min | BD25: > 3 min | BE25: 2.0-2.5 min | BF25: < 2 min
A26: ='CONDICION DE SALUD INICIAL'!A25 -> 0 | B26: ='CONDICION DE SALUD INICIAL'!B25 -> 0 | C26: ='CONDICION DE SALUD INICIAL'!C25 -> 0 | D26: ='CONDICION DE SALUD INICIAL'!D25 -> 0 | E26: ='CONDICION DE SALUD INICIAL'!H25 -> 0 | BA26: > 2.5 min | BB26: 1.8-2.2 min | BC26: < 1.8 min | BD26: > 3 min | BE26: 2.0-2.5 min | BF26: < 2 min
A27: ='CONDICION DE SALUD INICIAL'!A26 -> 0 | B27: ='CONDICION DE SALUD INICIAL'!B26 -> 0 | C27: ='CONDICION DE SALUD INICIAL'!C26 -> 0 | D27: ='CONDICION DE SALUD INICIAL'!D26 -> 0 | E27: ='CONDICION DE SALUD INICIAL'!H26 -> 0 | BA27: > 2.5 min | BB27: 1.8-2.2 min | BC27: < 1.8 min | BD27: > 3 min | BE27: 2.0-2.5 min | BF27: < 2 min
A28: ='CONDICION DE SALUD INICIAL'!A27 -> 0 | B28: ='CONDICION DE SALUD INICIAL'!B27 -> 0 | C28: ='CONDICION DE SALUD INICIAL'!C27 -> 0 | D28: ='CONDICION DE SALUD INICIAL'!D27 -> 0 | E28: ='CONDICION DE SALUD INICIAL'!H27 -> 0 | BA28: > 2.5 min | BB28: 1.8-2.2 min | BC28: < 1.8 min | BD28: > 3 min | BE28: 2.0-2.5 min | BF28: < 2 min
BJ44: abdominales

Sheet CONDICION DE SALUD POST
A2: Base de Datos Intervención Terapeútica Condiciones de Salud - Posterior a intervención
A4: DATOS PERSONALES | L4: “SF-12” SOBRE EL ESTADO DE SALUD - POSTERIOR A INTERVENCIÓN | AL4: Observaciones
A5: Nº | B5: Empresa | C5: Apellidos | D5: Nombres | E5: Cedula | F5: Fecha de evaluación posterior a intervención | G5: Fecha de nacimiento | H5: Edad (años) | I5: Presenta algún desorden músculo esquelético | J5: Listado de desórdenes músculo esqueléticos | K5: Nivel de dolor posterior a intervención | L5: La siguiente encuesta, es un autocuestionario genérico que permite calcular el perfil de calidad de vida relacionado con la salud | AJ5: Total | AK5: Interpretación
L6: En general, usted diría que su salud es | M6: Calificación | N6: Las siguientes preguntas se refieren a actividades que usted podría hacer en un día normal. Su salud actual, ¿le limita para hacer esas actividades ? Si es así, ¿cuánto? | R6: Durante las 4 últimas semanas, ¿ha tenido alguno de los siguientes problemas en su trabajo o en sus actividades cotidianas, a causa de su salud física? | V6: Durante las 4 últimas semanas, ¿ha tenido alguno de los siguientes problemas en su trabajo o en sus actividades cotidianas, a causa de algún problema emocional (como estar triste, deprimido, o nervioso)? | Z6: Durante las 4 últimas semanas. Hasta qué punto el dolor le ha dificultado su trabajo habitual (incluido el trabajo fuera de casa y las tareas domésticas)? | AA6: Calificación | AB6: Las siguientes preguntas se refieren a cómo se ha sentido y cómo le han ido las cosas durante las 4 últimas semanas. En cada pregunta responda lo que se parezca más a cómo se ha sentido usted. ¿cuánto tiempo? | AH6: Durante las 4 últimas semanas su salud física y emocional le permitió realizar sus actividades sociales sin dificultadades? | AI6: Calificación
N7: Esfuerzos moderados, como mover una mesa, pasar la aspiradora, jugar a los bolos o caminar más de 1 hora | O7: Calificación | P7: Subir varios pisos por la escalera | Q7: Calificación | R7: ¿Hizo menos de lo que hubiera querido hacer? | S7: Calificación | T7: Tuvo que dejar de hacer algunas tareas en su trabajo o en sus actividades cotidianas? | U7: Calificación | V7: Hizo menos de lo que hubiera querido hacer, por algún problema emocional | W7: Calificación | X7: No hizo su trabajo o sus actividades cotidianas tan cuidadosamente como de costumbre, por algún problema emocional? | Y7: Calificación | AB7: Se sintió calmado y tranquilo? | AC7: Calificación | AD7: Tuvo mucha energía? | AE7: Calificación | AF7: Se sintió muy animado y contento? | AG7: Calificación
A8: ='CONDICION DE SALUD INICIAL'!A8 -> 0 | B8: ='CONDICION DE SALUD INICIAL'!B8 -> 0 | C8: ='CONDICION DE SALUD INICIAL'!C8 -> 0 | D8: ='CONDICION DE SALUD INICIAL'!D8 -> 0 | E8: ='CONDICION DE SALUD INICIAL'!E8 -> 0 | G8: ='CONDICION DE SALUD INICIAL'!G8 -> 00:00:00 | H8: ='CONDICION DE SALUD INICIAL'!H8 -> 0 | I8: ='CONDICION DE SALUD INICIAL'!I8 -> SI | J8: ='CONDICION DE SALUD INICIAL'!J8 -> 0 | M8: =IF(L8="Excelente","1",IF(L8="Muy buena","2",IF(L8="Buena","3",IF(L8="Regular","4",IF(L8="Mala","5",IF(L8="","0")))))) -> 0 | O8: =IF(N8="No, no me limita nada","1",IF(N8="Si, me limita un poco","2",IF(N8="Si, me limita mucho","3",IF(N8="","0")))) -> 0 | Q8: =IF(P8="No, no me limita nada","1",IF(P8="Si, me limita un poco","2",IF(P8="Si, me limita mucho","3",IF(P8="","0")))) -> 0 | S8: =IF(R8="SI","2",IF(R8="NO","1",IF(R8="","0"))) -> 0 | U8: =IF(T8="SI","2",IF(T8="NO","1",IF(T8="","0"))) -> 0 | W8: =IF(V8="SI","2",IF(V8="NO","1",IF(V8="","0"))) -> 0 | Y8: =IF(X8="SI","2",IF(X8="NO","1",IF(X8="","0"))) -> 0 | AA8: =IF(Z8="Nada","1",IF(Z8="Un poco","2",IF(Z8="Regular","3",IF(Z8="Bastante","4",IF(Z8="Mucho","5",IF(Z8="","0")))))) -> 0 | AB8: Nunca | AC8: =IF(AB8="Siempre","1",IF(AB8="Casi siempre","2",IF(AB8="Algunas veces","3",IF(AB8="Solo una vez","4",IF(AB8="Nunca","5",IF(AB8="","0")))))) -> 5 | AD8: Siempre | AE8: =IF(AD8="Siempre","1",IF(AD8="Casi siempre","2",IF(AD8="Algunas veces","3",IF(AD8="Solo una vez","4",IF(AD8="Nunca","5",IF(AD8="","0")))))) -> 1 | AF8: Nunca | AG8: =IF(AF8="Siempre","1",IF(AF8="Casi siempre","2",IF(AF8="Algunas veces","3",IF(AF8="Solo una vez","4",IF(AF8="Nunca","5",IF(AF8="","0")))))) -> 5 | AI8: =IF(AH8="Siempre","1",IF(AH8="Casi siempre","2",IF(AH8="Algunas veces","3",IF(AH8="Solo una vez","4",IF(AH8="Nunca","5",IF(AH8="","0")))))) -> 0 | AJ8: =(M8+O8+Q8+S8+U8+W8+Y8+AA8+AC8+AE8+AG8+AI8)+0 -> 11 | AK8: =IF(AJ8=0,"",IF(AJ8<=20,"BUENO",IF(AJ8<=40,"REGULAR",IF(AJ8>=41,"MALO",)))) -> BUENO
A9: 2 | B9: ='CONDICION DE SALUD INICIAL'!B9 -> 0 | C9: ='CONDICION DE SALUD INICIAL'!C9 -> 0 | D9: ='CONDICION DE SALUD INICIAL'!D9 -> 0 | E9: ='CONDICION DE SALUD INICIAL'!E9 -> 0 | G9: ='CONDICION DE SALUD INICIAL'!G9 -> 00:00:00 | H9: ='CONDICION DE SALUD INICIAL'!H9 -> 0 | I9: ='CONDICION DE SALUD INICIAL'!I9 -> 0 | J9: ='CONDICION DE SALUD INICIAL'!J9 -> 0 | K9: MEDIO | L9: Buena | M9: 3 | N9: Si, me limita mucho | O9: 3 | P9: Si, me limita mucho | Q9: 3 | R9: NO | S9: 1 | T9: NO | U9: 1 | V9: NO | W9: 1 | X9: NO | Y9: 1 | Z9: Regular | AA9: 3 | AB9: Casi siempre | AC9: =IF(AB9="Siempre","1",IF(AB9="Casi siempre","2",IF(AB9="Algunas veces","3",IF(AB9="Solo una vez","4",IF(AB9="Nunca","5",IF(AB9="","0")))))) -> 2 | AD9: Casi siempre | AE9: =IF(AD9="Siempre","1",IF(AD9="Casi siempre","2",IF(AD9="Algunas veces","3",IF(AD9="Solo una vez","4",IF(AD9="Nunca","5",IF(AD9="","0")))))) -> 2 | AF9: Casi siempre | AG9: =IF(AF9="Siempre","1",IF(AF9="Casi siempre","2",IF(AF9="Algunas veces","3",IF(AF9="Solo una vez","4",IF(AF9="Nunca","5",IF(AF9="","0")))))) -> 2 | AH9: Siempre | AI9: =IF(AH9="Siempre","1",IF(AH9="Casi siempre","2",IF(AH9="Algunas veces","3",IF(AH9="Solo una vez","4",IF(AH9="Nunca","5",IF(AH9="","0")))))) -> 1 | AJ9: 23 | AK9: REGULAR
A10: 3 | B10: ='CONDICION DE SALUD INICIAL'!B10 -> 0 | C10: ='CONDICION DE SALUD INICIAL'!C10 -> 0 | D10: ='CONDICION DE SALUD INICIAL'!D10 -> 0 | E10: ='CONDICION DE SALUD INICIAL'!E10 -> 0 | G10: ='CONDICION DE SALUD INICIAL'!G10 -> 00:00:00 | H10: ='CONDICION DE SALUD INICIAL'!H10 -> 0 | I10: ='CONDICION DE SALUD INICIAL'!I10 -> SI | J10: ='CONDICION DE SALUD INICIAL'!J10 -> 0 | M10: 0 | O10: 0 | Q10: 0 | S10: 0 | U10: 0 | W10: 0 | Y10: 0 | AA10: 0 | AC10: 0 | AE10: 0 | AG10: 0 | AI10: 0 | AJ10: 0
A11: 4 | B11: ='CONDICION DE SALUD INICIAL'!B11 -> 0 | C11: ='CONDICION DE SALUD INICIAL'!C11 -> 0 | D11: ='CONDICION DE SALUD INICIAL'!D11 -> 0 | E11: ='CONDICION DE SALUD INICIAL'!E11 -> 0 | G11: ='CONDICION DE SALUD INICIAL'!G11 -> 00:00:00 | H11: ='CONDICION DE SALUD INICIAL'!H11 -> 0 | I11: ='CONDICION DE SALUD INICIAL'!I11 -> SI | J11: ='CONDICION DE SALUD INICIAL'!J11 -> 0 | M11: 0 | O11: 0 | Q11: 0 | S11: 0 | U11: 0 | W11: 0 | Y11: 0 | AA11: 0 | AC11: 0 | AE11: 0 | AG11: 0 | AI11: 0 | AJ11: 0
A12: 5 | B12: ='CONDICION DE SALUD INICIAL'!B12 -> 0 | C12: ='CONDICION DE SALUD INICIAL'!C12 -> 0 | D12: ='CONDICION DE SALUD INICIAL'!D12 -> 0 | E12: ='CONDICION DE SALUD INICIAL'!E12 -> 0 | G12: ='CONDICION DE SALUD INICIAL'!G12 -> 00:00:00 | H12: ='CONDICION DE SALUD INICIAL'!H12 -> 0 | I12: ='CONDICION DE SALUD INICIAL'!I12 -> SI | J12: ='CONDICION DE SALUD INICIAL'!J12 -> 0 | M12: 0 | O12: 0 | Q12: 0 | S12: 0 | U12: 0 | W12: 0 | Y12: 0 | AA12: 0 | AC12: 0 | AE12: 0 | AG12: 0 | AI12: 0 | AJ12: 0
A13: 6 | B13: ='CONDICION DE SALUD INICIAL'!B13 -> 0 | C13: ='CONDICION DE SALUD INICIAL'!C13 -> 0 | D13: ='CONDICION DE SALUD INICIAL'!D13 -> 0 | E13: ='CONDICION DE SALUD INICIAL'!E13 -> 0 | G13: ='CONDICION DE SALUD INICIAL'!G13 -> 00:00:00 | H13: ='CONDICION DE SALUD INICIAL'!H13 -> 0 | I13: ='CONDICION DE SALUD INICIAL'!I13 -> SI | J13: ='CONDICION DE SALUD INICIAL'!J13 -> 0 | K13: ALTO | L13: Muy buena | M13: 2 | N13: No, no me limita nada | O13: 1 | P13: No, no me limita nada | Q13: 1 | R13: NO | S13: 1 | T13: NO | U13: 1 | V13: NO | W13: 1 | X13: NO | Y13: 1 | Z13: Nada | AA13: 1 | AB13: Siempre | AC13: 1 | AD13: Siempre | AE13: 1 | AF13: Siempre | AG13: 1 | AH13: Siempre | AI13: 1 | AJ13: 13 | AK13: BUENO
A14: 7 | B14: ='CONDICION DE SALUD INICIAL'!B14 -> 0 | C14: ='CONDICION DE SALUD INICIAL'!C14 -> 0 | D14: ='CONDICION DE SALUD INICIAL'!D14 -> 0 | E14: ='CONDICION DE SALUD INICIAL'!E14 -> 0 | G14: ='CONDICION DE SALUD INICIAL'!G14 -> 00:00:00 | H14: ='CONDICION DE SALUD INICIAL'!H14 -> 0 | I14: ='CONDICION DE SALUD INICIAL'!I14 -> SI | J14: ='CONDICION DE SALUD INICIAL'!J14 -> 0 | K14: MEDIO | L14: Buena | M14: 3 | N14: Si, me limita un poco | O14: 2 | P14: No, no me limita nada | Q14: 1 | R14: SI | S14: 2 | T14: SI | U14: 2 | V14: SI | W14: 2 | X14: SI | Y14: 2 | Z14: Un poco | AA14: 2 | AB14: Algunas veces | AC14: 3 | AD14: Casi siempre | AE14: 2 | AF14: Algunas veces | AG14: 3 | AH14: Solo una vez | AI14: 4 | AJ14: 28 | AK14: REGULAR
A15: 8 | B15: ='CONDICION DE SALUD INICIAL'!B15 -> 0 | C15: ='CONDICION DE SALUD INICIAL'!C15 -> 0 | D15: ='CONDICION DE SALUD INICIAL'!D15 -> 0 | E15: ='CONDICION DE SALUD INICIAL'!E15 -> 0 | G15: ='CONDICION DE SALUD INICIAL'!G15 -> 00:00:00 | H15: ='CONDICION DE SALUD INICIAL'!H15 -> 0 | I15: ='CONDICION DE SALUD INICIAL'!I15 -> SI | J15: ='CONDICION DE SALUD INICIAL'!J15 -> 0 | K15: MEDIO | L15: Buena | M15: 3 | N15: Si, me limita un poco | O15: 2 | P15: No, no me limita nada | Q15: 1 | R15: NO | S15: 1 | T15: NO | U15: 1 | V15: NO | W15: 1 | X15: NO | Y15: 1 | Z15: Nada | AA15: 1 | AB15: Siempre | AC15: 1 | AD15: Siempre | AE15: 1 | AF15: Nunca | AG15: 5 | AH15: Nunca | AI15: 5 | AJ15: 23 | AK15: REGULAR
A16: 9 | B16: ='CONDICION DE SALUD INICIAL'!B16 -> 0 | C16: ='CONDICION DE SALUD INICIAL'!C16 -> 0 | D16: ='CONDICION DE SALUD INICIAL'!D16 -> 0 | E16: ='CONDICION DE SALUD INICIAL'!E16 -> 0 | G16: ='CONDICION DE SALUD INICIAL'!G16 -> 00:00:00 | H16: ='CONDICION DE SALUD INICIAL'!H16 -> 0 | I16: ='CONDICION DE SALUD INICIAL'!I16 -> SI | J16: ='CONDICION DE SALUD INICIAL'!J16 -> 0 | M16: 0 | O16: 0 | Q16: 0 | S16: 0 | U16: 0 | W16: 0 | Y16: 0 | AA16: 0 | AC16: 0 | AE16: 0 | AG16: 0 | AI16: 0 | AJ16: 0
A17: 10 | B17: ='CONDICION DE SALUD INICIAL'!B17 -> 0 | C17: ='CONDICION DE SALUD INICIAL'!C17 -> 0 | D17: ='CONDICION DE SALUD INICIAL'!D17 -> 0 | E17: ='CONDICION DE SALUD INICIAL'!E17 -> 0 | G17: ='CONDICION DE SALUD INICIAL'!G17 -> 00:00:00 | H17: ='CONDICION DE SALUD INICIAL'!H17 -> 0 | I17: ='CONDICION DE SALUD INICIAL'!I17 -> SI | J17: ='CONDICION DE SALUD INICIAL'!J17 -> 0 | M17: 0 | O17: 0 | Q17: 0 | S17: 0 | U17: 0 | W17: 0 | Y17: 0 | AA17: 0 | AC17: 0 | AE17: 0 | AG17: 0 | AI17: 0 | AJ17: 0
A18: 11 | B18: ='CONDICION DE SALUD INICIAL'!B18 -> 0 | C18: ='CONDICION DE SALUD INICIAL'!C18 -> 0 | D18: ='CONDICION DE SALUD INICIAL'!D18 -> 0 | E18: ='CONDICION DE SALUD INICIAL'!E18 -> 0 | G18: ='CONDICION DE SALUD INICIAL'!G18 -> 00:00:00 | H18: ='CONDICION DE SALUD INICIAL'!H18 -> 0 | I18: ='CONDICION DE SALUD INICIAL'!I18 -> SI | J18: ='CONDICION DE SALUD INICIAL'!J18 -> 0 | M18: 0 | O18: 0 | Q18: 0 | S18: 0 | U18: 0 | W18: 0 | Y18: 0 | AA18: 0 | AC18: 0 | AE18: 0 | AG18: 0 | AI18: 0 | AJ18: 0
A19: 12 | B19: ='CONDICION DE SALUD INICIAL'!B19 -> 0 | C19: ='CONDICION DE SALUD INICIAL'!C19 -> 0 | D19: ='CONDICION DE SALUD INICIAL'!D19 -> 0 | E19: ='CONDICION DE SALUD INICIAL'!E19 -> 0 | G19: ='CONDICION DE SALUD INICIAL'!G19 -> 00:00:00 | H19: ='CONDICION DE SALUD INICIAL'!H19 -> 0 | I19: ='CONDICION DE SALUD INICIAL'!I19 -> SI | J19: ='CONDICION DE SALUD INICIAL'!J19 -> 0 | M19: 0 | O19: 0 | Q19: 0 | S19: 0 | U19: 0 | W19: 0 | Y19: 0 | AA19: 0 | AC19: 0 | AE19: 0 | AG19: 0 | AI19: 0 | AJ19: 0
A20: 13 | B20: ='CONDICION DE SALUD INICIAL'!B20 -> 0 | C20: ='CONDICION DE SALUD INICIAL'!C20 -> 0 | D20: ='CONDICION DE SALUD INICIAL'!D20 -> 0 | E20: ='CONDICION DE SALUD INICIAL'!E20 -> 0 | G20: ='CONDICION DE SALUD INICIAL'!G20 -> 00:00:00 | H20: ='CONDICION DE SALUD INICIAL'!H20 -> 0 | I20: ='CONDICION DE SALUD INICIAL'!I20 -> SI | J20: ='CONDICION DE SALUD INICIAL'!J20 -> 0 | M20: 0 | O20: 0 | Q20: 0 | S20: 0 | U20: 0 | W20: 0 | Y20: 0 | AA20: 0 | AC20: 0 | AE20: 0 | AG20: 0 | AI20: 0 | AJ20: 0
A21: 14 | B21: ='CONDICION DE SALUD INICIAL'!B21 -> 0 | C21: ='CONDICION DE SALUD INICIAL'!C21 -> 0 | D21: ='CONDICION DE SALUD INICIAL'!D21 -> 0 | E21: ='CONDICION DE SALUD INICIAL'!E21 -> 0 | G21: ='CONDICION DE SALUD INICIAL'!G21 -> 00:00:00 | H21: ='CONDICION DE SALUD INICIAL'!H21 -> 0 | I21: ='CONDICION DE SALUD INICIAL'!I21 -> SI | J21: ='CONDICION DE SALUD INICIAL'!J21 -> 0 | K21: ALTO | L21: Regular | M21: 4 | N21: Si, me limita mucho | O21: 3 | P21: Si, me limita mucho | Q21: 3 | R21: SI | S21: 2 | T21: SI | U21: 2 | V21: NO | W21: 1 | X21: NO | Y21: 1 | Z21: Un poco | AA21: 2 | AB21: Casi siempre | AC21: 2 | AD21: Casi siempre | AE21: 2 | AF21: Algunas veces | AG21: 3 | AH21: Algunas veces | AI21: 3 | AJ21: 28 | AK21: REGULAR
A22: 15 | B22: ='CONDICION DE SALUD INICIAL'!B22 -> 0 | C22: ='CONDICION DE SALUD INICIAL'!C22 -> 0 | D22: ='CONDICION DE SALUD INICIAL'!D22 -> 0 | E22: ='CONDICION DE SALUD INICIAL'!E22 -> 0 | G22: ='CONDICION DE SALUD INICIAL'!G22 -> 00:00:00 | H22: ='CONDICION DE SALUD INICIAL'!H22 -> 0 | I22: ='CONDICION DE SALUD INICIAL'!I22 -> SI | J22: ='CONDICION DE SALUD INICIAL'!J22 -> 0 | M22: 0 | O22: 0 | Q22: 0 | S22: 0 | U22: 0 | W22: 0 | Y22: 0 | AA22: 0 | AC22: 0 | AE22: 0 | AG22: 0 | AI22: 0 | AJ22: 0
A23: 16 | B23: ='CONDICION DE SALUD INICIAL'!B23 -> 0 | C23: ='CONDICION DE SALUD INICIAL'!C23 -> 0 | D23: ='CONDICION DE SALUD INICIAL'!D23 -> 0 | E23: ='CONDICION DE SALUD INICIAL'!E23 -> 0 | G23: ='CONDICION DE SALUD INICIAL'!G23 -> 00:00:00 | H23: ='CONDICION DE SALUD INICIAL'!H23 -> 0 | I23: ='CONDICION DE SALUD INICIAL'!I23 -> SI | J23: ='CONDICION DE SALUD INICIAL'!J23 -> 0 | M23: 0 | O23: 0 | Q23: 0 | S23: 0 | U23: 0 | W23: 0 | Y23: 0 | AA23: 0 | AC23: 0 | AE23: 0 | AG23: 0 | AI23: 0 | AJ23: 0
A24: 17 | B24: ='CONDICION DE SALUD INICIAL'!B24 -> 0 | C24: ='CONDICION DE SALUD INICIAL'!C24 -> 0 | D24: ='CONDICION DE SALUD INICIAL'!D24 -> 0 | E24: ='CONDICION DE SALUD INICIAL'!E24 -> 0 | G24: ='CONDICION DE SALUD INICIAL'!G24 -> 00:00:00 | H24: ='CONDICION DE SALUD INICIAL'!H24 -> 0 | I24: ='CONDICION DE SALUD INICIAL'!I24 -> 0 | J24: ='CONDICION DE SALUD INICIAL'!J24 -> 0 | M24: 0 | O24: 0 | Q24: 0 | S24: 0 | U24: 0 | W24: 0 | Y24: 0 | AA24: 0 | AC24: 0 | AE24: 0 | AG24: 0 | AI24: 0 | AJ24: 0
A25: 18 | B25: ='CONDICION DE SALUD INICIAL'!B25 -> 0 | C25: ='CONDICION DE SALUD INICIAL'!C25 -> 0 | D25: ='CONDICION DE SALUD INICIAL'!D25 -> 0 | E25: ='CONDICION DE SALUD INICIAL'!E25 -> 0 | G25: ='CONDICION DE SALUD INICIAL'!G25 -> 00:00:00 | H25: ='CONDICION DE SALUD INICIAL'!H25 -> 0 | I25: ='CONDICION DE SALUD INICIAL'!I25 -> SI | J25: ='CONDICION DE SALUD INICIAL'!J25 -> 0 | M25: 0 | O25: 0 | Q25: 0 | S25: 0 | U25: 0 | W25: 0 | Y25: 0 | AA25: 0 | AC25: 0 | AE25: 0 | AG25: 0 | AI25: 0 | AJ25: 0
A26: 19 | B26: ='CONDICION DE SALUD INICIAL'!B26 -> 0 | C26: ='CONDICION DE SALUD INICIAL'!C26 -> 0 | D26: ='CONDICION DE SALUD INICIAL'!D26 -> 0 | E26: ='CONDICION DE SALUD INICIAL'!E26 -> 0 | G26: ='CONDICION DE SALUD INICIAL'!G26 -> 00:00:00 | H26: ='CONDICION DE SALUD INICIAL'!H26 -> 0 | I26: ='CONDICION DE SALUD INICIAL'!I26 -> SI | J26: ='CONDICION DE SALUD INICIAL'!J26 -> 0 | M26: 0 | O26: 0 | Q26: 0 | S26: 0 | U26: 0 | W26: 0 | Y26: 0 | AA26: 0 | AC26: 0 | AE26: 0 | AG26: 0 | AI26: 0 | AJ26: 0
A27: 20 | B27: ='CONDICION DE SALUD INICIAL'!B27 -> 0 | C27: ='CONDICION DE SALUD INICIAL'!C27 -> 0 | D27: ='CONDICION DE SALUD INICIAL'!D27 -> 0 | E27: ='CONDICION DE SALUD INICIAL'!E27 -> 0 | G27: ='CONDICION DE SALUD INICIAL'!G27 -> 00:00:00 | H27: ='CONDICION DE SALUD INICIAL'!H27 -> 0 | I27: ='CONDICION DE SALUD INICIAL'!I27 -> 0 | J27: ='CONDICION DE SALUD INICIAL'!J27 -> 0 | M27: 0 | O27: 0 | Q27: 0 | S27: 0 | U27: 0 | W27: 0 | Y27: 0 | AA27: 0 | AC27: 0 | AE27: 0 | AG27: 0 | AI27: 0 | AJ27: 0

Sheet CAPACIDAD FUNC MMSS POST
A2: Base de Datos Intervención Terapeútica Evaluación capacidad funcional miembros superiores MMSS - Posterior a intervención
A4: Nº | B4: Empresa | C4: Apellidos | D4: Nombres | E4: Edad | G4: DOLOR ( PATIENT RATED WRIST EVALUATION (PRWE)) - EVALUACIÓN DEL DOLOR Y FUNCIONALIDAD DE MUÑECA REFERIDA POR EL TRABAJADOR - POSTERIOR A INTERVENCIÓN | AC4: THE PATIENT - RATED ELBOW EVALUATION (PREE) - CODO EVALUACIÓN DEL DOLOR Y FUNCIONALIDAD DE CODO REFERIDA POR EL TRABAJADOR - POSTERIOR A INTERVENCIÓN | BG4: SHOULDER PAIN DISABILITY INDEX (SPADI) INDICE DE LIMITACIÓN FUNCIONAL POR DOLOR EN HOMBRO - POSTERIOR A INTERVENCIÓN | CA4: FUERZA - POSTERIOR A INTERVENCIÓN | CN4: FLEXIBILIDAD - POSTERIOR A INTERVENCIÓN | CQ4: Observaciones
G5: Descripción Del Dolor | N5: Actividades Especificas | T5: Actividades Cotidianas | Z5: Puntuación total | AA5: Interpretación | AC5: Descripción Del Dolor | AJ5: Actividades Especificas | AX5: Actividades Cotidianas | BB5: Puntuación | BD5: Puntuación total | BE5: Interpretación | BG5: Dolor | BN5: Función | BX5: Puntuación total | BY5: Calificación | CA5: La capacidad de vencer una resistencia externa o reaccionar contra la misma mediante una tensión muscular. | CN5: Capacidad del individuo para aprovechar las posibilidades de movimiento de las articulaciones de la manera más optima posible
G6: Describa el promedio de dolor de muñeca en la última semana remarcando el número que mejor describa su dolor en una escala del 0 al 10. El cero (0) significa ausencia total del dolor y el diez (10) significa el peor dolor que usted haya experimentado o que no puede realizar la actividad a causa del dolor | L6: Puntuación | N6: Describa el grado de dificultad que experimento al realizar cada una de las actividades listadas debajo durante la última semana, marcando el número del 0 al 10 que mejor describa su situación. Cero (0) significa que no experimenta ninguna dificultad y diez (10) significa que no puede realizar la actividad de ninguna manera | T6: Describa el grado de dificultad que experimento durante la última semana al realizar cada una de las actividades listadas a continuación, marcando el número de 0 al 10 que mejor describa su situación. Por “actividades cotidianas” entendemos las actividades que usted realizaba antes de padecer su problema de muñeca. Cero (0) significa que no experimenta ninguna dificultad y diez (10) significa que no puede realizar la actividad de ninguna manera. | X6: Puntuación | AC6: Describa el promedio de dolor de codo en la última semana remarcando el número que mejor describa su dolor en una escala del 0 al 10. El cero (0) significa ausencia total del dolor y el diez (10) significa el peor dolor que usted haya experimentado o que no puede realizar la actividad a causa del dolor | AH6: Puntuación | AJ6: Describa el grado de dificultad que experimento al realizar cada una de las actividades listadas debajo durante la última semana, marcando el número del 0 al 10 que mejor describa su situación. Cero (0) significa que no experimenta ninguna dificultad y diez (10) significa que no puede realizar la actividad de ninguna manera | AX6: Describa el grado de dificultad que experimento durante la última semana al realizar cada una de las actividades listadas a continuación, marcando el número de 0 al 10 que mejor describa su situación. Por “actividades cotidianas” entendemos las actividades que usted realizaba antes de padecer su problema de codo. Cero (0) significa que no experimenta ninguna dificultad y diez (10) significa que no puede realizar la actividad de ninguna manera. | BG6: Describa el promedio de dolor de hombro en la última semana remarcando el número que mejor describa su dolor en una escala del 0 al 10. El cero (0) significa ausencia total del dolor y el diez (10) significa el peor dolor que usted haya experimentado o que no puede realizar la actividad a causa del dolor | BL6: Puntuación | BN6: Describa el grado de dificultad que experimento al realizar cada una de las actividades listadas debajo durante la última semana, marcando el número del 0 al 10 que mejor describa su situación. Cero (0) significa que no experimenta ninguna dificultad y diez (10) significa que no puede realizar la actividad de ninguna manera | BV6: Puntuación | CA6: Nª de Flexiones según la edad MUJER | CF6: Nª de Flexiones según la edad HOMBRE | CK6: Nª de Flexiones Ejecutadas | CL6: Calificación | CN6: Alcance posterior de manos | CO6: Calificación
G7: En reposo | H7: Al realizar una tarea que implica un movimiento repetitivo de muñeca | I7: Al levantar un objeto pesado | J7: Cuando el dolor está en su peor momento | K7: ¿Qué tan seguido experimenta dolor? | N7: Al dar vuelta la manija de la puerta | O7: Al cortar carne con un cuchillo con la mano afectada | P7: Al abrocharse una camisa | Q7: Al levantarse de una silla con la mano afectada | R7: Al cargar 5 kg con la mano afectada | S7: Al usar papel higiénico con la mano afectada | T7: Actividades de cuidado personal (vestirse, lavarse) | U7: Tareas del hogar (tareas de limpieza) | V7: Trabajo (su trabajo habitual) | W7: Actividades de tiempo libre | AC7: En reposo | AD7: Al realizar una tarea que implica un movimiento repetitivo del codo | AE7: Al levantar un objeto pesado | AF7: Cuando el dolor está en su peor momento | AG7: ¿Qué tan seguido experimenta dolor? | AJ7: Al peinarse | AK7: Al comer con tenedor o cuchara | AL7: Al tirar un objeto pesado | AM7: Al levantarse de una silla con la mano afectada | AN7: Al cargar 5 kg con la mano afectada | AO7: Al usar papel higiénico con la mano afectada | AP7: Al utilizar el brazo para levantarse de una silla | AQ7: Al llevar un objeto de 10 libras con el brazo afectado | AR7: Al lanzar un objeto pequeño, como una pelota de tenis | AS7: Al utilizar un teléfono | AT7: Haga hasta botones en la parte delantera de mi camisa | AU7: Al lavar mi hombro opuesta | AV7: Al atarse los zapatos | AW7: Al girar en pomo la puerta y al abrir una puerta | AX7: Actividades de cuidado personal (vestirse, lavarse) | AY7: Tareas del hogar (tareas de limpieza) | AZ7: Trabajo (su trabajo habitual) | BA7: Actividades de tiempo libre | BG7: En su peor momento? | BH7: Cuando esta tumbado en el lado afectado? | BI7: Para llegar a algo en un estante alto? | BJ7: Al tocar la parte posterior de su cuello? | BK7: Al empujar con el brazo afectado? | BN7: Al lavarse el pelo? | BO7: El lavado de la espalda? | BP7: Ponerse en una camiseta? | BQ7: Abotonarse la camisa? | BR7: El ponerse los pantalones? | BS7: La colocación de un objeto en un estante alto? | BT7: Llevar un objeto pesado de 10 libras (4,5 kilogramos)? | BU7: Extraer algo de su bolsillo trasero? | CA7: Excelente | CB7: Bien | CC7: Promedio | CD7: Regular | CE7: Pobre | CF7: Excelente | CG7: Bien | CH7: Promedio | CI7: Regular | CJ7: Pobre
A8: ='CONDICION DE SALUD INICIAL'!A8 -> 0 | B8: ='CONDICION DE SALUD INICIAL'!B8 -> 0 | C8: ='CONDICION DE SALUD INICIAL'!C8 -> 0 | D8: ='CONDICION DE SALUD INICIAL'!D8 -> 0 | E8: ='CONDICION DE SALUD POST'!H8 -> 0 | L8: =SUM(G8:K8)*0.01 -> 0 | X8: =SUM(N8:W8)/2*0.01 -> 0 | Z8: =SUM(L8,X8) -> 0 | AA8: =IF(Z8=0,"",(IF(Z8<20%,"Limitación funcional mínima",IF(Z8<=65%,"Limitación funcional moderada",IF(Z8>65%,"Limitación funcional alta",))))) ->  | AH8: =SUM(AC8:AG8)*0.01 -> 0 | BB8: =SUM(AJ8:BA8)/3.6*0.01 -> 0 | BD8: =SUM(AH8,BB8) -> 0 | BE8: =IF(BD8=0,"",IF(BD8<20%,"Limitación funcional mínima",IF(BD8<=65%,"Limitación funcional moderada",IF(BD8>65%,"Limitación funcional alta",)))) ->  | BL8: =SUM(BG8:BK8)*0.01 -> 0 | BU8: 3 | BV8: =SUM(BN8:BU8)/1.6*0.01 -> 0.01875 | BX8: =SUM(BL8,BV8) -> 0.01875 | BY8: =IF(BX8=0%,"",(IF(BX8<20%,"Limitación funcional mínima",IF(BX8<=65%,"Limitación funcional moderada",IF(BX8>65%,"Limitación funcional alta",))))) -> Limitación funcional mínima | CA8: =IF(E8<=29,">48",IF(E8<=39,">39",IF(E8<=49,">34",IF(E8<=59,">29",IF(E8>=60,">19",))))) -> >48 | CB8: =IF(E8<=29,"34-48",IF(E8<=39,"25-39",IF(E8<=49,"20-34",IF(E8<=59,"15-29",IF(E8>=60,"5-19",))))) -> 34-48 | CC8: =IF(E8<=29,"17-33",IF(E8<=39,"12-24",IF(E8<=49,"8-19",IF(E8<=59,"6-14",IF(E8>=60,"3-4",))))) -> 17-33 | CD8: =IF(E8<=29,"6-16",IF(E8<=39,"4-11",IF(E8<=49,"3-7",IF(E8<=59,"2-5",IF(E8>=60,"1-2",))))) -> 6-16 | CE8: =IF(E8<=29,"<6",IF(E8<=39,"<4",IF(E8<=49,"<3",IF(E8<=59,"<2",IF(E8>=60,"<1",))))) -> <6 | CF8: =IF(E8<=29,">54",IF(E8<=39,">44",IF(E8<=49,">39",IF(E8<=59,">24",IF(E8>=60,">29",))))) -> >54 | CG8: =IF(E8<=29,"45-54",IF(E8<=39,"35-44",IF(E8<=49,"30-39",IF(E8<=59,"25-34",IF(E8>=60,"20-29",))))) -> 45-54 | CH8: =IF(E8<=29,"35-44",IF(E8<=39,"25-34",IF(E8<=49,"20-29",IF(E8<=59,"15-24",IF(E8>=60,"10-19",))))) -> 35-44 | CI8: =IF(E8<=29,"20-34",IF(E8<=39,"15-24",IF(E8<=49,"12-19",IF(E8<=59,"8-14",IF(E8>=60,"5-9",))))) -> 20-34 | CJ8: =IF(E8<=29,"<20",IF(E8<=39,"<15",IF(E8<=49,"<12",IF(E8<=59,"<8",IF(E8>=60,"<5",))))) -> <20 | CO8: =IF(CN8="Se sobreponen las manos","Buena",IF(CN8="Entran en contacto puntas de los dedos medios","Regular",IF(CN8="No se logra el contacto entre las manos","Mala",))) -> 0
A9: ='CONDICION DE SALUD INICIAL'!A9 -> 0 | B9: ='CONDICION DE SALUD INICIAL'!B9 -> 0 | C9: ='CONDICION DE SALUD INICIAL'!C9 -> 0 | D9: ='CONDICION DE SALUD INICIAL'!D9 -> 0 | E9: ='CONDICION DE SALUD POST'!H9 -> 0 | G9: 4 | H9: 3 | I9: 6 | J9: 7 | K9: 5 | L9: =SUM(G9:K9)*0.01 -> 0.25 | N9: 7 | O9: 7 | P9: 7 | Q9: 7 | R9: 7 | S9: 7 | T9: 3 | U9: 5 | V9: 5 | W9: 5 | X9: =SUM(N9:W9)/2*0.01 -> 0.3 | Z9: =SUM(L9,X9) -> 0.55 | AA9: =IF(Z9=0,"",(IF(Z9<20%,"Limitación funcional mínima",IF(Z9<=65%,"Limitación funcional moderada",IF(Z9>65%,"Limitación funcional alta",))))) -> Limitación funcional moderada | AC9: 5 | AD9: 4 | AE9: 5 | AF9: 5 | AG9: 4 | AH9: =SUM(AC9:AG9)*0.01 -> 0.23 | AJ9: 4 | AK9: 3 | AL9: 3 | AM9: 5 | AN9: 5 | AO9: 5 | AP9: 5 | AQ9: 6 | AR9: 3 | AS9: 6 | AT9: 5 | AU9: 5 | AV9: 5 | AW9: 6 | AX9: 4 | AY9: 4 | AZ9: 5 | BA9: 5 | BB9: =SUM(AJ9:BA9)/3.6*0.01 -> 0.2333333333 | BD9: =SUM(AH9,BB9) -> 0.4633333333 | BE9: =IF(BD9=0,"",IF(BD9<20%,"Limitación funcional mínima",IF(BD9<=65%,"Limitación funcional moderada",IF(BD9>65%,"Limitación funcional alta",)))) -> Limitación funcional moderada | BG9: 7 | BH9: 6 | BI9: 7 | BJ9: 5 | BK9: 6 | BL9: =SUM(BG9:BK9)*0.01 -> 0.31 | BN9: 4 | BO9: 5 | BP9: 5 | BQ9: 5 | BR9: 4 | BS9: 6 | BT9: 5 | BU9: 6 | BV9: =SUM(BN9:BU9)/1.6*0.01 -> 0.25 | BX9: =SUM(BG9:BK9,BN9:BU9)/130*100% -> 0.5461538462 | BY9: =IF(BX9=0%,"",(IF(BX9<20%,"Limitación funcional mínima",IF(BX9<=65%,"Limitación funcional moderada",IF(BX9>65%,"Limitación funcional alta",))))) -> Limitación funcional moderada | CA9: >48 | CB9: 34-48 | CC9: 17-33 | CD9: 6-16 | CE9: <6 | CF9: >54 | CG9: 45-54 | CH9: 35-44 | CI9: 20-34 | CJ9: <20 | CO9: 0
A10: ='CONDICION DE SALUD INICIAL'!A10 -> 0 | B10: ='CONDICION DE SALUD INICIAL'!B10 -> 0 | C10: ='CONDICION DE SALUD INICIAL'!C10 -> 0 | D10: ='CONDICION DE SALUD INICIAL'!D10 -> 0 | E10: ='CONDICION DE SALUD POST'!H10 -> 0 | L10: 0 | X10: 0 | Z10: 0 | AH10: 0 | BB10: 0 | BD10: 0 | BL10: 0 | BU10: 1 | BV10: 0.00625 | BX10: 0.007692307692 | BY10: Limitación funcional mínima | CA10: >48 | CB10: 34-48 | CC10: 17-33 | CD10: 6-16 | CE10: <6 | CF10: >54 | CG10: 45-54 | CH10: 35-44 | CI10: 20-34 | CJ10: <20 | CL10: Excelente | CO10: 0
A11: ='CONDICION DE SALUD INICIAL'!A11 -> 0 | B11: ='CONDICION DE SALUD INICIAL'!B11 -> 0 | C11: ='CONDICION DE SALUD INICIAL'!C11 -> 0 | D11: ='CONDICION DE SALUD INICIAL'!D11 -> 0 | E11: ='CONDICION DE SALUD POST'!H11 -> 0 | L11: 0 | X11: 0 | Z11: 0 | AH11: 0 | BB11: 0 | BD11: 0 | BL11: 0 | BU11: 3 | BV11: 0.01875 | BX11: 0.02307692308 | BY11: Limitación funcional mínima | CA11: >48 | CB11: 34-48 | CC11: 17-33 | CD11: 6-16 | CE11: <6 | CF11: >54 | CG11: 45-54 | CH11: 35-44 | CI11: 20-34 | CJ11: <20 | CO11: 0
A12: ='CONDICION DE SALUD INICIAL'!A12 -> 0 | B12: ='CONDICION DE SALUD INICIAL'!B12 -> 0 | C12: ='CONDICION DE SALUD INICIAL'!C12 -> 0 | D12: ='CONDICION DE SALUD INICIAL'!D12 -> 0 | E12: ='CONDICION DE SALUD POST'!H12 -> 0 | L12: 0 | X12: 0 | Z12: 0 | AH12: 0 | BB12: 0 | BD12: 0 | BG12: 0 | BH12: 6 | BI12: 6 | BJ12: 6 | BK12: 6 | BL12: 0.24 | BN12: 6 | BO12: 7 | BP12: 5 | BQ12: 6 | BR12: 10 | BS12: 6 | BT12: 0 | BU12: 0 | BV12: 0.25 | BX12: 0.4923076923 | BY12: Limitación funcional moderada | CA12: >48 | CB12: 34-48 | CC12: 17-33 | CD12: 6-16 | CE12: <6 | CF12: >54 | CG12: 45-54 | CH12: 35-44 | CI12: 20-34 | CJ12: <20 | CO12: 0
A13: ='CONDICION DE SALUD INICIAL'!A13 -> 0 | B13: ='CONDICION DE SALUD INICIAL'!B13 -> 0 | C13: ='CONDICION DE SALUD INICIAL'!C13 -> 0 | D13: ='CONDICION DE SALUD INICIAL'!D13 -> 0 | E13: ='CONDICION DE SALUD POST'!H13 -> 0 | G13: 0 | H13: 0 | I13: 0 | J13: 0 | K13: 0 | L13: =SUM(G13:K13)*0.01 -> 0 | N13: 0 | O13: 0 | P13: 0 | Q13: 0 | R13: 0 | S13: 0 | T13: 0 | U13: 0 | V13: 0 | W13: 0 | X13: 0 | Z13: 0 | AC13: 6 | AD13: 7 | AE13: 0 | AF13: 7 | AG13: 6 | AH13: =SUM(AC13:AG13)*0.01 -> 0.26 | AJ13: 6 | AK13: 6 | AL13: 0 | AM13: 10 | AN13: 6 | AO13: 7 | AP13: 6 | AQ13: 10 | AR13: 10 | AS13: 10 | AT13: 10 | AU13: 10 | AV13: 10 | AW13: 10 | AX13: 9 | AY13: 10 | AZ13: 10 | BA13: 10 | BB13: 0.4166666667 | BD13: 0.6766666667 | BE13: Limitación funcional alta | BG13: 0 | BH13: 0 | BI13: 0 | BJ13: 0 | BK13: 0 | BL13: 0 | BN13: 0 | BO13: 0 | BP13: 0 | BQ13: 0 | BR13: 0 | BS13: 0 | BT13: 0 | BU13: 0 | BV13: 0 | BX13: 0 | CA13: >48 | CB13: 34-48 | CC13: 17-33 | CD13: 6-16 | CE13: <6 | CF13: >54 | CG13: 45-54 | CH13: 35-44 | CI13: 20-34 | CJ13: <20 | CO13: 0
A14: ='CONDICION DE SALUD INICIAL'!A14 -> 0 | B14: ='CONDICION DE SALUD INICIAL'!B14 -> 0 | C14: ='CONDICION DE SALUD INICIAL'!C14 -> 0 | D14: ='CONDICION DE SALUD INICIAL'!D14 -> 0 | E14: ='CONDICION DE SALUD POST'!H14 -> 0 | G14: 1 | H14: 4 | I14: 2 | J14: 2 | K14: 2 | L14: 0.11 | N14: 4 | O14: 4 | P14: 0 | Q14: 6 | R14: 6 | S14: 1 | T14: 0 | U14: 4 | V14: 4 | W14: 0 | X14: 0.145 | Z14: 0.255 | AA14: Limitación funcional moderada | AC14: 0 | AD14: 1 | AE14: 1 | AF14: 1 | AG14: 1 | AH14: 0.04 | AJ14: 0 | AK14: 0 | AL14: 0 | AM14: 1 | AN14: 1 | AO14: 0 | AP14: 0 | AQ14: 1 | AR14: 0 | AS14: 0 | AT14: 0 | AU14: 0 | AV14: 0 | AW14: 0 | AX14: 0 | AY14: 0 | AZ14: 0 | BA14: 0 | BB14: 0.008333333333 | BD14: 0.04833333333 | BE14: Limitación funcional mínima | BG14: 2 | BH14: 1 | BI14: 1 | BJ14: 0 | BK14: 1 | BL14: 0.05 | BN14: 0 | BO14: 0 | BP14: 0 | BQ14: 0 | BR14: 0 | BS14: 1 | BT14: 1 | BU14: 0 | BV14: 0.0125 | BX14: 0.05384615385 | BY14: Limitación funcional mínima | CA14: >48 | CB14: 34-48 | CC14: 17-33 | CD14: 6-16 | CE14: <6 | CF14: >54 | CG14: 45-54 | CH14: 35-44 | CI14: 20-34 | CJ14: <20 | CO14: 0
A15: ='CONDICION DE SALUD INICIAL'!A15 -> 0 | B15: ='CONDICION DE SALUD INICIAL'!B15 -> 0 | C15: ='CONDICION DE SALUD INICIAL'!C15 -> 0 | D15: ='CONDICION DE SALUD INICIAL'!D15 -> 0 | E15: ='CONDICION DE SALUD POST'!H15 -> 0 | G15: 7 | H15: 7 | I15: 8 | J15: 8 | K15: 3 | L15: 0.33 | N15: 7 | O15: 8 | P15: 8 | Q15: 8 | R15: 8 | S15: 8 | T15: 8 | U15: 8 | V15: 7 | W15: 7 | X15: 0.385 | Z15: 0.715 | AA15: Limitación funcional alta | AC15: 7 | AD15: 8 | AE15: 8 | AF15: 9 | AG15: 9 | AH15: 0.41 | AJ15: 8 | AK15: 8 | AL15: 8 | AM15: 8 | AN15: 8 | AO15: 8 | AP15: 8 | AQ15: 8 | AR15: 8 | AS15: 2 | AT15: 7 | AU15: 8 | AV15: 0 | AW15: 8 | AX15: 8 | AY15: 7 | AZ15: 5 | BA15: 8 | BB15: 0.3472222222 | BD15: 0.7572222222 | BE15: Limitación funcional alta | BG15: 5 | BH15: 9 | BI15: 9 | BJ15: 6 | BK15: 9 | BL15: 0.38 | BN15: 8 | BO15: 9 | BP15: 9 | BQ15: 8 | BR15: 7 | BS15: 7 | BT15: 8 | BU15: 8 | BV15: 0.4 | BX15: 0.7846153846 | BY15: Limitación funcional alta | CA15: >48 | CB15: 34-48 | CC15: 17-33 | CD15: 6-16 | CE15: <6 | CF15: >54 | CG15: 45-54 | CH15: 35-44 | CI15: 20-34 | CJ15: <20 | CO15: 0
A16: ='CONDICION DE SALUD INICIAL'!A16 -> 0 | B16: ='CONDICION DE SALUD INICIAL'!B16 -> 0 | C16: ='CONDICION DE SALUD INICIAL'!C16 -> 0 | D16: ='CONDICION DE SALUD INICIAL'!D16 -> 0 | E16: ='CONDICION DE SALUD POST'!H16 -> 0 | L16: 0 | X16: 0 | Z16: 0 | AH16: 0 | BB16: 0 | BD16: 0 | BL16: 0 | BV16: 0 | BX16: 0 | CA16: >48 | CB16: 34-48 | CC16: 17-33 | CD16: 6-16 | CE16: <6 | CF16: >54 | CG16: 45-54 | CH16: 35-44 | CI16: 20-34 | CJ16: <20 | CO16: 0
A17: ='CONDICION DE SALUD INICIAL'!A17 -> 0 | B17: ='CONDICION DE SALUD INICIAL'!B17 -> 0 | C17: ='CONDICION DE SALUD INICIAL'!C17 -> 0 | D17: ='CONDICION DE SALUD INICIAL'!D17 -> 0 | E17: ='CONDICION DE SALUD POST'!H17 -> 0 | L17: 0 | X17: 0 | Z17: 0 | AH17: 0 | BB17: 0 | BD17: 0 | BL17: 0 | BV17: 0 | BX17: 0 | CA17: >48 | CB17: 34-48 | CC17: 17-33 | CD17: 6-16 | CE17: <6 | CF17: >54 | CG17: 45-54 | CH17: 35-44 | CI17: 20-34 | CJ17: <20 | CO17: 0
A18: ='CONDICION DE SALUD INICIAL'!A18 -> 0 | B18: ='CONDICION DE SALUD INICIAL'!B18 -> 0 | C18: ='CONDICION DE SALUD INICIAL'!C18 -> 0 | D18: ='CONDICION DE SALUD INICIAL'!D18 -> 0 | E18: ='CONDICION DE SALUD POST'!H18 -> 0 | L18: 0 | X18: 0 | Z18: 0 | AH18: 0 | BB18: 0 | BD18: 0 | BL18: 0 | BV18: 0 | BX18: 0 | CA18: >48 | CB18: 34-48 | CC18: 17-33 | CD18: 6-16 | CE18: <6 | CF18: >54 | CG18: 45-54 | CH18: 35-44 | CI18: 20-34 | CJ18: <20 | CO18: 0
A19: ='CONDICION DE SALUD INICIAL'!A19 -> 0 | B19: ='CONDICION DE SALUD INICIAL'!B19 -> 0 | C19: ='CONDICION DE SALUD INICIAL'!C19 -> 0 | D19: ='CONDICION DE SALUD INICIAL'!D19 -> 0 | E19: ='CONDICION DE SALUD POST'!H19 -> 0 | L19: 0 | X19: 0 | Z19: 0 | AH19: 0 | BB19: 0 | BD19: 0 | BL19: 0 | BV19: 0 | BX19: 0 | CA19: >48 | CB19: 34-48 | CC19: 17-33 | CD19: 6-16 | CE19: <6 | CF19: >54 | CG19: 45-54 | CH19: 35-44 | CI19: 20-34 | CJ19: <20 | CO19: 0
A20: ='CONDICION DE SALUD INICIAL'!A20 -> 0 | B20: ='CONDICION DE SALUD INICIAL'!B20 -> 0 | C20: ='CONDICION DE SALUD INICIAL'!C20 -> 0 | D20: ='CONDICION DE SALUD INICIAL'!D20 -> 0 | E20: ='CONDICION DE SALUD POST'!H20 -> 0 | L20: 0 | X20: 0 | Z20: 0 | AH20: 0 | BB20: 0 | BD20: 0 | BL20: 0 | BV20: 0 | BX20: 0 | CA20: >48 | CB20: 34-48 | CC20: 17-33 | CD20: 6-16 | CE20: <6 | CF20: >54 | CG20: 45-54 | CH20: 35-44 | CI20: 20-34 | CJ20: <20 | CO20: 0
A21: ='CONDICION DE SALUD INICIAL'!A21 -> 0 | B21: ='CONDICION DE SALUD INICIAL'!B21 -> 0 | C21: ='CONDICION DE SALUD INICIAL'!C21 -> 0 | D21: ='CONDICION DE SALUD INICIAL'!D21 -> 0 | E21: ='CONDICION DE SALUD POST'!H21 -> 0 | G21: 6 | H21: 7 | I21: 7 | J21: 8 | K21: 7 | L21: =SUM(G21:K21)*0.01 -> 0.35 | N21: 4 | O21: 6 | P21: 3 | Q21: 8 | R21: 9 | S21: 0 | T21: 7 | U21: 7 | V21: 5 | W21: 9 | X21: 0.29 | Z21: 0.64 | AA21: Limitación funcional moderada | AC21: 0 | AD21: 6 | AE21: 8 | AF21: 8 | AG21: 6 | AH21: 0.28 | AJ21: 6 | AK21: 0 | AL21: 7 | AM21: 4 | AN21: 8 | AO21: 0 | AP21: 0 | AQ21: 9 | AR21: 0 | AS21: 0 | AT21: 0 | AU21: 0 | AV21: 0 | AW21: 0 | AX21: 0 | AY21: 6 | AZ21: 6 | BA21: 5 | BB21: 0.1416666667 | BD21: 0.4216666667 | BE21: Limitación funcional moderada | BG21: 9 | BH21: 8 | BI21: 8 | BJ21: 10 | BK21: 8 | BL21: 0.43 | BN21: 8 | BO21: 8 | BP21: 7 | BQ21: 0 | BR21: 3 | BS21: 8 | BT21: 8 | BU21: 5 | BV21: 0.29375 | BX21: 0.6923076923 | BY21: Limitación funcional alta | CA21: >48 | CB21: 34-48 | CC21: 17-33 | CD21: 6-16 | CE21: <6 | CF21: >54 | CG21: 45-54 | CH21: 35-44 | CI21: 20-34 | CJ21: <20 | CO21: 0
A22: ='CONDICION DE SALUD INICIAL'!A22 -> 0 | B22: ='CONDICION DE SALUD INICIAL'!B22 -> 0 | C22: ='CONDICION DE SALUD INICIAL'!C22 -> 0 | D22: ='CONDICION DE SALUD INICIAL'!D22 -> 0 | E22: ='CONDICION DE SALUD POST'!H22 -> 0 | L22: 0 | X22: 0 | Z22: 0 | AH22: 0 | BB22: 0 | BD22: 0 | BL22: 0 | BV22: 0 | BX22: 0 | CA22: >48 | CB22: 34-48 | CC22: 17-33 | CD22: 6-16 | CE22: <6 | CF22: >54 | CG22: 45-54 | CH22: 35-44 | CI22: 20-34 | CJ22: <20 | CO22: 0
A23: ='CONDICION DE SALUD INICIAL'!A23 -> 0 | B23: ='CONDICION DE SALUD INICIAL'!B23 -> 0 | C23: ='CONDICION DE SALUD INICIAL'!C23 -> 0 | D23: ='CONDICION DE SALUD INICIAL'!D23 -> 0 | E23: ='CONDICION DE SALUD POST'!H23 -> 0 | L23: 0 | X23: 0 | Z23: 0 | AH23: 0 | BB23: 0 | BD23: 0 | BL23: 0 | BV23: 0 | BX23: 0 | CA23: >48 | CB23: 34-48 | CC23: 17-33 | CD23: 6-16 | CE23: <6 | CF23: >54 | CG23: 45-54 | CH23: 35-44 | CI23: 20-34 | CJ23: <20 | CO23: 0
A24: ='CONDICION DE SALUD INICIAL'!A24 -> 0 | B24: ='CONDICION DE SALUD INICIAL'!B24 -> 0 | C24: ='CONDICION DE SALUD INICIAL'!C24 -> 0 | D24: ='CONDICION DE SALUD INICIAL'!D24 -> 0 | E24: ='CONDICION DE SALUD POST'!H24 -> 0 | L24: 0 | X24: 0 | Z24: 0 | AH24: 0 | BB24: 0 | BD24: 0 | BL24: 0 | BV24: 0 | BX24: 0 | CA24: >48 | CB24: 34-48 | CC24: 17-33 | CD24: 6-16 | CE24: <6 | CF24: >54 | CG24: 45-54 | CH24: 35-44 | CI24: 20-34 | CJ24: <20 | CO24: 0
A25: ='CONDICION DE SALUD INICIAL'!A25 -> 0 | B25: ='CONDICION DE SALUD INICIAL'!B25 -> 0 | C25: ='CONDICION DE SALUD INICIAL'!C25 -> 0 | D25: ='CONDICION DE SALUD INICIAL'!D25 -> 0 | E25: ='CONDICION DE SALUD POST'!H25 -> 0 | L25: 0 | X25: 0 | Z25: 0 | AH25: 0 | BB25: 0 | BD25: 0 | BL25: 0 | BV25: 0 | BX25: 0 | CA25: >48 | CB25: 34-48 | CC25: 17-33 | CD25: 6-16 | CE25: <6 | CF25: >54 | CG25: 45-54 | CH25: 35-44 | CI25: 20-34 | CJ25: <20 | CO25: 0
A26: ='CONDICION DE SALUD INICIAL'!A26 -> 0 | B26: ='CONDICION DE SALUD INICIAL'!B26 -> 0 | C26: ='CONDICION DE SALUD INICIAL'!C26 -> 0 | D26: ='CONDICION DE SALUD INICIAL'!D26 -> 0 | E26: ='CONDICION DE SALUD POST'!H26 -> 0 | L26: 0 | X26: 0 | Z26: 0 | AH26: 0 | BB26: 0 | BD26: 0 | BL26: 0 | BV26: 0 | BX26: 0 | CA26: >48 | CB26: 34-48 | CC26: 17-33 | CD26: 6-16 | CE26: <6 | CF26: >54 | CG26: 45-54 | CH26: 35-44 | CI26: 20-34 | CJ26: <20 | CO26: 0
A27: ='CONDICION DE SALUD INICIAL'!A27 -> 0 | B27: ='CONDICION DE SALUD INICIAL'!B27 -> 0 | C27: ='CONDICION DE SALUD INICIAL'!C27 -> 0 | D27: ='CONDICION DE SALUD INICIAL'!D27 -> 0 | E27: ='CONDICION DE SALUD POST'!H27 -> 0 | L27: 0 | X27: 0 | Z27: 0 | AH27: 0 | BB27: 0 | BD27: 0 | BL27: 0 | BV27: 0 | BX27: 0 | CA27: >48 | CB27: 34-48 | CC27: 17-33 | CD27: 6-16 | CE27: <6 | CF27: >54 | CG27: 45-54 | CH27: 35-44 | CI27: 20-34 | CJ27: <20 | CO27: 0
BL28: suma total de dolor/ 50 x 100 = % | BV28: Puntuación total de discapacidad: / 80 x 100 =% | BX28: Puntuación total: suma dolor y dicapacidad / 130 x 100 =%

Sheet CAPACIDAD FUNC COLUMNA POST
A2: Base de Datos Intervención Terapeútica Evaluación capacidad funcional columna - Posterior a intervención
A4: Nº | B4: Empresa | C4: Apellidos | D4: Nombres | E4: Edad | G4: INDICE DE DISCAPACIDAD EN COLUMNA CERVICAL - POSTERIOR A INTERVENCIÓN | AD4: FUNCIONALIDAD (ESCALA DE LIMITACIÓN FUNCIONAL POR DOLOR LUMBAR DE OSWESTRY) - POSTERIOR A INTERVENCIÓN | BA4: FUERZA - POSTERIOR A INTERVENCIÓN | BJ4: FLEXIBILIDAD - POSTERIOR A INTERVENCIÓN | BM4: Observaciones
G5: Este cuestionario ha sido diseñado para darnos información sobre cómo su dolor de cuello ha afectado su capacidad de manejar en la vida cotidiana. Por favor, conteste cada sección y marca en cada sección sólo el cuadro que se aplica a su caso. | AD5: Este cuestionario ha sido diseñado para dar la información de cuanto y cómo el dolor de espalda ha afectado la capacidad para realizar actividades en la vida diaria. | BA5: La capacidad de vencer una resistencia externa o reaccionar contra la misma mediante una tensión muscular. | BJ5: Capacidad del individuo para aprovechar las posibilidades de movimiento de las articulaciones de la manera más optimas posible
G6: Intensidad del Dolor | H6: Calificación | I6: Cuidado Personal (lavarse, vestirse, etc.) | J6: Calificación | K6: Levantar pesos | L6: Calificación | M6: Lectura | N6: Calificación | O6: Dolor de cabeza | P6: Calificación | Q6: Concentrarse en algo | R6: Calificación | S6: Trabajo | T6: Calificación | U6: Conducción de vehículos | V6: Calificación | W6: Sueño | X6: Calificación | Y6: Actividades de ocio | Z6: Calificación | AA6: Calificación Total | AB6: Interpretación | BA6: Prueba de puente en prono | BJ6: Prueba de flexión de tronco en V | BK6: Interpretación
BA7: Mujer | BD7: Hombre | BG7: Resultado de la prueba (min) | BH7: Interpretación de la prueba
AD8: Intensidad del dolor | AE8: Calificación | AF8: Cuidados personales (lavarse, vestirse, etc) | AG8: Calificación | AH8: Levatar peso | AI8: Calificación | AJ8: Andar | AK8: Calificación | AL8: Estar sentado | AM8: Calificación | AN8: Estar de pie | AO8: Calificación | AP8: Dormir | AQ8: Calificación | AR8: Actividad Sexual | AS8: Calificación | AT8: Vida social | AU8: Calificación | AV8: Viajar | AW8: Calificación | AX8: Calificación ODI | AY8: Interpretación | BA8: Excelente | BB8: Satisfactorio | BC8: Necesita mejorar | BD8: Excelente | BE8: Satisfactorio | BF8: Necesita mejorar
A9: ='CONDICION DE SALUD INICIAL'!A8 -> 0 | B9: ='CONDICION DE SALUD INICIAL'!B8 -> 0 | C9: ='CONDICION DE SALUD INICIAL'!C8 -> 0 | D9: ='CONDICION DE SALUD INICIAL'!D8 -> 0 | E9: ='CONDICION DE SALUD POST'!H8 -> 0 | H9: =IF(G9="No tengo dolor en este momento","0",IF(G9="El dolor es muy leve en este momento","1",IF(G9="El dolor es moderado en este momento","2",IF(G9="El dolor es bastante severo en este momento","3",IF(G9="El dolor es muy severo en este momento","4",IF(G9="El dolor es el peor imaginable en este momento","5",IF(G9="",""))))))) ->  | J9: =IF(I9="Puedo cuidarme con normalidad sin causar dolor adicional","0",IF(I9="Puedo cuidarme con normalidad pero esto me aumenta el dolor","1",IF(I9="Cuidarme me duele de forma que tengo que hacerlo despacio y con cuidado","2",IF(I9="Aunque necesito alguna ayuda me las arreglo para casi todos mis cuidados","3",IF(I9="Todos los días necesito ayuda para la mayor parte de mis cuidados","4",IF(I9="No puedo vestirme, me baño con dificultad y me quedo en la cama","5",IF(I9="",""))))))) ->  | L9: =IF(K9="Puedo levantar objetos pesados sin aumento del dolor","0",IF(K9="Puedo levantar objetos pesados pero me aumenta el dolor","1",IF(K9="El dolor me impide levantar objetos pesados del suelo, pero lo puedo hacer si están colocados en un sitio fácil, como por ejemplo en una mesa","2",IF(K9="El dolor me impide levantar objetos pesados del suelo, pero puedo levantar objetos medianos o ligeros si están colocados en un sitio fácil","3",IF(K9="Solo puedo levantar objetos muy ligeros","4",IF(K9="No puedo levantar ni llevar ningún tipo de objeto","5",IF(K9="",""))))))) ->  | N9: =IF(M9="Puedo leer todo lo que quiera sin que me duela el cuello","0",IF(M9="Puedo leer todo lo que quiera con un dolor leve en el cuello","1",IF(M9="Puedo leer todo lo que quiera con un dolor moderado en el cuello","2",IF(M9="No puedo leer todo lo que quiero debido a un dolor moderado en el cuello","3",IF(M9="Apenas puedo leer por el gran dolor que me produce en el cuello","4",IF(M9="No puedo leer nada en absoluto","5",IF(M9="",""))))))) ->  | P9: =IF(O9="No tengo ningún dolor de cabeza","0",IF(O9="A veces tengo un pequeño dolor de cabeza","1",IF(O9="A veces tengo un dolor moderado de cabeza","2",IF(O9="Con frecuencia tengo un dolor moderado de cabeza","3",IF(O9="Con frecuencia tengo un dolor fuerte de cabeza","4",IF(O9="Tengo dolor de cabeza casi continuo","5",IF(O9="",""))))))) ->  | R9: =IF(Q9="Me concentro totalmente en algo cuando quiero sin dificultad","0",IF(Q9="Me concentro totalmente en algo cuando quiero con alguna dificultad","1",IF(Q9="Tengo alguna dificultad para concentrarme cuando quiero","2",IF(Q9="Tengo bastante dificultad para concentrarme cuando quiero","3",IF(Q9="Tengo mucha dificultad para concentrarme cuando quiero","4",IF(Q9="No puedo concentrarme nunca","5",IF(Q9="",""))))))) ->  | T9: =IF(S9="Puedo trabajar todo lo que quiero","0",IF(S9="Puedo hacer mi trabajo habitual, pero no más","1",IF(S9="Puedo hacer casi todo mi trabajo habitual, pero no más","2",IF(S9="No puedo hacer mi trabajo habitual","3",IF(S9="A duras penas puedo hacer algún tipo de trabajo","4",IF(S9="No puedo trabajar en nada","5",IF(S9="",""))))))) ->  | V9: =IF(U9="Puedo conducir sin dolor en el cuello","0",IF(U9="Puedo conducir todo lo que quiero, pero con un ligero dolor en el cuello","1",IF(U9="Puedo conducir todo lo que quiero, pero con un moderado dolor en el cuello","2",IF(U9="No puedo conducir todo lo que quiero debido al dolor de cuello","3",IF(U9="Apenas puedo conducir debido al intenso dolor de cuello","4",IF(U9="No puedo conducir nada por el dolor de cuello","5",IF(U9="",""))))))) ->  | X9: =IF(W9="No tengo ningún problema para dormir","0",IF(W9="Pierdo menos de 1 hora de sueño cada noche por el dolor de cuello","1",IF(W9="Pierdo de 1 a 2 horas de sueño cada noche por el dolor de cuello","2",IF(W9="Pierdo de 2 a 3 horas de sueño cada noche por el dolor de cuello","3",IF(W9="Pierdo de 3 a 5 horas de sueño cada noche por el dolor de cuello","4",IF(W9="Pierdo de 5 a 7 horas de sueño cada noche por el dolor de cuello","5",IF(W9="",""))))))) ->  | Z9: =IF(Y9="Puedo hacer todas mis actividades de ocio sin dolor de cuello","0",IF(Y9="Puedo hacer todas mis actividades de ocio con algún dolor de cuello","1",IF(Y9="No puedo hacer alguna de mis actividades de ocio por el dolor de cuello","2",IF(Y9="Solo puedo hacer unas pocas actividades de ocio por el dolor de cuello","3",IF(Y9="Apenas puedo hacer las cosas que me gustan debido al dolor de cuello","4",IF(Y9="No puedo realizar ninguna actividad de ocio","5",IF(Y9="",""))))))) ->  | AA9: =(H9+J9+L9+N9+P9+R9+T9+V9+X9+Z9)/50 ->  | AB9: =IF(AA9=0%,"",IF(AA9<=15%,"Discapacidad mínima",IF(AA9<=34%,"Discapacidad moderada",IF(AA9>=35%,"Discapacidad máxima",)))) ->  | AE9: =IF(AD9="Puedo soportar el dolor sin necesidad de tomar calmantes","0",IF(AD9="El dolor es fuerte pero me arreglo sin tomar calmantes","1",IF(AD9="Los calmantes me alivian completamente el dolor","2",IF(AD9="Los calmantes me alivian un poco el dolor","3",IF(AD9="Los calmantes apenas me alivian el dolor","4",IF(AD9="Los calmantes no me quitan el dolor y no los tomo","5",IF(AD9="",""))))))) ->  | AG9: =IF(AF9="Me las puedo arreglar solo sin que aumente el dolor","0",IF(AF9="Me las puedo arreglar solo pero esto me aumenta el dolor","1",IF(AF9="Lavarme, vestirme, etc., me produce dolor y tengo que hacerlo despacio y con cuidado","2",IF(AF9="Necesito alguna ayuda pero consigo hacer la mayoría de las cosas yo solo","3",IF(AF9="Necesito ayuda para hacer la mayoría de las cosas","4",IF(AF9="No puedo vestirme, me cuesta lavarme, y suelo quedarme en la cama","5",IF(AF9="",""))))))) ->  | AI9: =IF(AH9="Puedo levantar objetos pesados sin que me aumente el dolor","0",IF(AH9="Puedo levantar objetos pesados pero me aumenta el dolor","1",IF(AH9="El dolor me impide levantar objetos pesados del suelo, pero puedo hacerlo si están en un sitio cómodo (ej. En una mesa)","2",IF(AH9="El dolor me impide levantar objetos pesados, pero si puedo levantar objetos ligeros o medianos si están en un sitio cómodo","3",IF(AH9="Solo puedo levantar objetos muy ligeros","4",IF(AH9="No puedo levantar ni elevar ningún objeto","5",IF(AH9="",""))))))) ->  | AK9: =IF(AJ9="El dolor no me impide andar","0",IF(AJ9="El dolor me impide andar más de 1 kilómetro","1",IF(AJ9="El dolor me impide andar más de 500 metros","2",IF(AJ9="El dolor me impide andar más de 250 metros","3",IF(AJ9="Sólo puedo andar con bastón o muletas","4",IF(AJ9="Permanezco en la cama casi todo el tiempo y tengo que ir a rastras al baño","5",IF(AJ9="",""))))))) ->  | AM9: =IF(AL9="Puedo estar sentado en cualquier tipo de silla todo el tiempo que quiera","0",IF(AL9="Puedo estar sentado en mi silla favorita todo el tiempo que quiera","1",IF(AL9="El dolor me impide estar sentado más de una hora","2",IF(AL9="El dolor me impide estar sentado más de media hora","3",IF(AL9="El dolor me impide estar sentado más de diez minutos","4",IF(AL9="El dolor me impide estar sentado","5",IF(AL9="",""))))))) ->  | AO9: =IF(AN9="Puedo estar de pie tanto tiempo como quiera sin que me aumente el dolor","0",IF(AN9="Puedo estar de pie tanto tiempo como quiera pero me aumenta el dolor","1",IF(AN9="El dolor me impide estar de pie más de una hora","2",IF(AN9="El dolor me impide estar de pie más de media hora","3",IF(AN9="El dolor me impide estar de pie más de diez minutos","4",IF(AN9="El dolor me impide estar de pie","5",IF(AN9="",""))))))) ->  | AQ9: =IF(AP9="El dolor no me impide dormir bien","0",IF(AP9="Sólo puedo dormir si tomo pastillas","1",IF(AP9="Incluso tomando pastillas duermo menos de seis horas","2",IF(AP9="Incluso tomando pastillas duermo menos de cuatro horas","3",IF(AP9="Incluso tomando pastillas duermo menos de dos horas","4",IF(AP9="El dolor me impide totalmente dormir","5",IF(AP9="",""))))))) ->  | AS9: =IF(AR9="Mi actividad sexual es normal y no me aumenta el dolor","0",IF(AR9="Mi actividad sexual es normal pero me aumenta el dolor","1",IF(AR9="Mi actividad sexual es casi normal pero me aumenta mucho el dolor","2",IF(AR9="Mi actividad sexual se ha visto muy limitada a causa del dolor","3",IF(AR9="Mi actividad sexual es casi nula a causa del dolor","4",IF(AR9="El dolor me impide todo tipo de actividad sexual","5",IF(AR9="",""))))))) ->  | AU9: =IF(AT9="Mi vida social es uy normal y no me aumenta el dolor","0",IF(AT9="Mi vida social es normal, pero me aumenta el dolor","1",IF(AT9="El dolor no tiene un efecto importante en mi vida social, pero impide mis actividades más enérgicas, como bailar, etc","2",IF(AT9="El dolor ha limitado mi vida social y no salgo tan a menudo","3",IF(AT9="El dolor ha limitado mi vida social al hogar","4",IF(AT9="No tengo vida social a causa del dolor","5",IF(AT9="",""))))))) ->  | AW9: =IF(AV9="Puedo viajar a cualquier sitio sin que aumente el dolor","0",IF(AV9="Puedo viajar a cualquier sitio, pero me aumenta el dolor","1",IF(AV9="El dolor es fuerte, pero aguanto viajes de más de dos horas","2",IF(AV9="El dolor me limita a viajes de menos de una hora","3",IF(AV9="El dolor me limita a viajes cortos y necesarios de menos de media hora","4",IF(AV9="El dolor me impide viajar excepto para ir al médico o al hospital","5",IF(AV9="",""))))))) ->  | AX9: =(AE9+AG9+AI9+AK9+AM9+AO9+AQ9+AS9+AU9+AW9)*0.02 ->  | AY9: =IF(AX9<20%,"Limitación funcional mínima",IF(AX9<40%,"Limitación funcional moderada",IF(AX9<60%,"Discapacidad intensa",IF(AX9<80%,"Discapacidad 80%",IF(AX9>=81%,"Discapacidad máxima",IF(AX9="","")))))) ->  | BA9: > 2.5 min | BB9: 1.8-2.2 min | BC9: < 1.8 min | BD9: > 3 min | BE9: 2.0-2.5 min | BF9: < 2 min | BK9: =IF(BJ9="","",IF(BJ9=">0","Buena",IF(BJ9=0,"Regular",IF(BJ9="<0","Mala",)))) -> 
A10: ='CONDICION DE SALUD INICIAL'!A9 -> 0 | B10: ='CONDICION DE SALUD INICIAL'!B9 -> 0 | C10: ='CONDICION DE SALUD INICIAL'!C9 -> 0 | D10: ='CONDICION DE SALUD INICIAL'!D9 -> 0 | E10: ='CONDICION DE SALUD POST'!H9 -> 0 | G10: El dolor es moderado en este momento | H10: 2 | I10: Cuidarme me duele de forma que tengo que hacerlo despacio y con cuidado | J10: 2 | K10: El dolor me impide levantar objetos pesados del suelo, pero lo puedo hacer si están colocados en un sitio fácil, como por ejemplo en una mesa | L10: 2 | M10: Puedo leer todo lo que quiera con un dolor leve en el cuello | N10: 1 | O10: Con frecuencia tengo un dolor fuerte de cabeza | P10: 4 | Q10: Tengo bastante dificultad para concentrarme cuando quiero | R10: 3 | S10: No puedo hacer mi trabajo habitual | T10: 3 | U10: No puedo conducir nada por el dolor de cuello | V10: 5 | W10: Pierdo menos de 1 hora de sueño cada noche por el dolor de cuello | X10: 1 | Y10: No puedo realizar ninguna actividad de ocio | Z10: 5 | AA10: 0.56 | AB10: =IF(AA10=0%,"",IF(AA10<=15%,"Discapacidad mínima",IF(AA10<=34%,"Discapacidad moderada",IF(AA10>=35%,"Discapacidad máxima",)))) -> Discapacidad máxima | AD10: Puedo soportar el dolor sin necesidad de tomar calmantes | AE10: 0 | AF10: Lavarme, vestirme, etc., me produce dolor y tengo que hacerlo despacio y con cuidado | AG10: 2 | AH10: El dolor me impide levantar objetos pesados del suelo, pero puedo hacerlo si están en un sitio cómodo (ej. En una mesa) | AI10: 2 | AJ10: El dolor no me impide andar | AK10: 0 | AL10: El dolor me impide estar sentado más de una hora | AM10: 2 | AN10: El dolor me impide estar de pie más de una hora | AO10: 2 | AP10: Incluso tomando pastillas duermo menos de seis horas | AQ10: 2 | AR10: Mi actividad sexual se ha visto muy limitada a causa del dolor | AS10: 3 | AT10: El dolor no tiene un efecto importante en mi vida social, pero impide mis actividades más enérgicas, como bailar, etc | AU10: 2 | AV10: Puedo viajar a cualquier sitio, pero me aumenta el dolor | AW10: 1 | AX10: 0.32 | AY10: Limitación funcional moderada | BA10: > 2.5 min | BB10: 1.8-2.2 min | BC10: < 1.8 min | BD10: > 3 min | BE10: 2.0-2.5 min | BF10: < 2 min
A11: ='CONDICION DE SALUD INICIAL'!A10 -> 0 | B11: ='CONDICION DE SALUD INICIAL'!B10 -> 0 | C11: ='CONDICION DE SALUD INICIAL'!C10 -> 0 | D11: ='CONDICION DE SALUD INICIAL'!D10 -> 0 | E11: ='CONDICION DE SALUD POST'!H10 -> 0 | BA11: > 2.5 min | BB11: 1.8-2.2 min | BC11: < 1.8 min | BD11: > 3 min | BE11: 2.0-2.5 min | BF11: < 2 min
A12: ='CONDICION DE SALUD INICIAL'!A11 -> 0 | B12: ='CONDICION DE SALUD INICIAL'!B11 -> 0 | C12: ='CONDICION DE SALUD INICIAL'!C11 -> 0 | D12: ='CONDICION DE SALUD INICIAL'!D11 -> 0 | E12: ='CONDICION DE SALUD POST'!H11 -> 0 | BA12: > 2.5 min | BB12: 1.8-2.2 min | BC12: < 1.8 min | BD12: > 3 min | BE12: 2.0-2.5 min | BF12: < 2 min
A13: ='CONDICION DE SALUD INICIAL'!A12 -> 0 | B13: ='CONDICION DE SALUD INICIAL'!B12 -> 0 | C13: ='CONDICION DE SALUD INICIAL'!C12 -> 0 | D13: ='CONDICION DE SALUD INICIAL'!D12 -> 0 | E13: ='CONDICION DE SALUD POST'!H12 -> 0 | BA13: > 2.5 min | BB13: 1.8-2.2 min | BC13: < 1.8 min | BD13: > 3 min | BE13: 2.0-2.5 min | BF13: < 2 min
A14: ='CONDICION DE SALUD INICIAL'!A13 -> 0 | B14: ='CONDICION DE SALUD INICIAL'!B13 -> 0 | C14: ='CONDICION DE SALUD INICIAL'!C13 -> 0 | D14: ='CONDICION DE SALUD INICIAL'!D13 -> 0 | E14: ='CONDICION DE SALUD POST'!H13 -> 0 | G14: El dolor es moderado en este momento | H14: 2 | I14: Puedo cuidarme con normalidad sin causar dolor adicional | J14: 0 | K14: Puedo levantar objetos pesados sin aumento del dolor | L14: 0 | M14: Puedo leer todo lo que quiera con un dolor moderado en el cuello | N14: 2 | O14: No tengo ningún dolor de cabeza | P14: 0 | Q14: Me concentro totalmente en algo cuando quiero sin dificultad | R14: 0 | S14: Puedo trabajar todo lo que quiero | T14: 0 | U14: Puedo conducir sin dolor en el cuello | V14: 0 | W14: Pierdo menos de 1 hora de sueño cada noche por el dolor de cuello | X14: 1 | Y14: Puedo hacer todas mis actividades de ocio con algún dolor de cuello | Z14: 1 | AA14: 0.12 | AB14: Discapacidad mínima | AD14: Puedo soportar el dolor sin necesidad de tomar calmantes | AE14: 0 | AF14: Me las puedo arreglar solo sin que aumente el dolor | AG14: 0 | AH14: Puedo levantar objetos pesados sin que me aumente el dolor | AI14: 0 | AJ14: El dolor no me impide andar | AK14: 0 | AL14: Puedo estar sentado en cualquier tipo de silla todo el tiempo que quiera | AM14: 0 | AN14: Puedo estar de pie tanto tiempo como quiera sin que me aumente el dolor | AO14: 0 | AP14: El dolor no me impide dormir bien | AQ14: 0 | AR14: Mi actividad sexual es normal y no me aumenta el dolor | AS14: 0 | AT14: Mi vida social es uy normal y no me aumenta el dolor | AU14: 0 | AV14: Puedo viajar a cualquier sitio sin que aumente el dolor | AW14: 0 | AX14: 0 | AY14: Limitación funcional mínima | BA14: > 2.5 min | BB14: 1.8-2.2 min | BC14: < 1.8 min | BD14: > 3 min | BE14: 2.0-2.5 min | BF14: < 2 min
A15: ='CONDICION DE SALUD INICIAL'!A14 -> 0 | B15: ='CONDICION DE SALUD INICIAL'!B14 -> 0 | C15: ='CONDICION DE SALUD INICIAL'!C14 -> 0 | D15: ='CONDICION DE SALUD INICIAL'!D14 -> 0 | E15: ='CONDICION DE SALUD POST'!H14 -> 0 | G15: El dolor es muy leve en este momento | H15: 1 | I15: Puedo cuidarme con normalidad sin causar dolor adicional | J15: 0 | K15: Puedo levantar objetos pesados pero me aumenta el dolor | L15: 1 | M15: Puedo leer todo lo que quiera con un dolor leve en el cuello | N15: 1 | O15: Con frecuencia tengo un dolor moderado de cabeza | P15: 3 | Q15: Me concentro totalmente en algo cuando quiero con alguna dificultad | R15: 1 | S15: Puedo hacer casi todo mi trabajo habitual, pero no más | T15: 2 | U15: Puedo conducir sin dolor en el cuello | V15: 0 | W15: Pierdo menos de 1 hora de sueño cada noche por el dolor de cuello | X15: 1 | Y15: Puedo hacer todas mis actividades de ocio con algún dolor de cuello | Z15: 1 | AA15: 0.22 | AB15: Discapacidad moderada | AD15: Puedo soportar el dolor sin necesidad de tomar calmantes | AE15: 0 | AF15: Me las puedo arreglar solo sin que aumente el dolor | AG15: 0 | AH15: Puedo levantar objetos pesados pero me aumenta el dolor | AI15: 1 | AJ15: El dolor no me impide andar | AK15: 0 | AL15: Puedo estar sentado en mi silla favorita todo el tiempo que quiera | AM15: 1 | AN15: Puedo estar de pie tanto tiempo como quiera sin que me aumente el dolor | AO15: 0 | AP15: El dolor no me impide dormir bien | AQ15: 0 | AR15: Mi actividad sexual es normal y no me aumenta el dolor | AS15: 0 | AT15: Mi vida social es uy normal y no me aumenta el dolor | AU15: 0 | AV15: Puedo viajar a cualquier sitio sin que aumente el dolor | AW15: 0 | AX15: 0.04 | AY15: Limitación funcional mínima | BA15: > 2.5 min | BB15: 1.8-2.2 min | BC15: < 1.8 min | BD15: > 3 min | BE15: 2.0-2.5 min | BF15: < 2 min
A16: ='CONDICION DE SALUD INICIAL'!A15 -> 0 | B16: ='CONDICION DE SALUD INICIAL'!B15 -> 0 | C16: ='CONDICION DE SALUD INICIAL'!C15 -> 0 | D16: ='CONDICION DE SALUD INICIAL'!D15 -> 0 | E16: ='CONDICION DE SALUD POST'!H15 -> 0 | BA16: > 2.5 min | BB16: 1.8-2.2 min | BC16: < 1.8 min | BD16: > 3 min | BE16: 2.0-2.5 min | BF16: < 2 min
A17: ='CONDICION DE SALUD INICIAL'!A16 -> 0 | B17: ='CONDICION DE SALUD INICIAL'!B16 -> 0 | C17: ='CONDICION DE SALUD INICIAL'!C16 -> 0 | D17: ='CONDICION DE SALUD INICIAL'!D16 -> 0 | E17: ='CONDICION DE SALUD POST'!H16 -> 0 | BA17: > 2.5 min | BB17: 1.8-2.2 min | BC17: < 1.8 min | BD17: > 3 min | BE17: 2.0-2.5 min | BF17: < 2 min
A18: ='CONDICION DE SALUD INICIAL'!A17 -> 0 | B18: ='CONDICION DE SALUD INICIAL'!B17 -> 0 | C18: ='CONDICION DE SALUD INICIAL'!C17 -> 0 | D18: ='CONDICION DE SALUD INICIAL'!D17 -> 0 | E18: ='CONDICION DE SALUD POST'!H17 -> 0 | BA18: > 2.5 min | BB18: 1.8-2.2 min | BC18: < 1.8 min | BD18: > 3 min | BE18: 2.0-2.5 min | BF18: < 2 min
A19: ='CONDICION DE SALUD INICIAL'!A18 -> 0 | B19: ='CONDICION DE SALUD INICIAL'!B18 -> 0 | C19: ='CONDICION DE SALUD INICIAL'!C18 -> 0 | D19: ='CONDICION DE SALUD INICIAL'!D18 -> 0 | E19: ='CONDICION DE SALUD POST'!H18 -> 0 | BA19: > 2.5 min | BB19: 1.8-2.2 min | BC19: < 1.8 min | BD19: > 3 min | BE19: 2.0-2.5 min | BF19: < 2 min
A20: ='CONDICION DE SALUD INICIAL'!A19 -> 0 | B20: ='CONDICION DE SALUD INICIAL'!B19 -> 0 | C20: ='CONDICION DE SALUD INICIAL'!C19 -> 0 | D20: ='CONDICION DE SALUD INICIAL'!D19 -> 0 | E20: ='CONDICION DE SALUD POST'!H19 -> 0 | BA20: > 2.5 min | BB20: 1.8-2.2 min | BC20: < 1.8 min | BD20: > 3 min | BE20: 2.0-2.5 min | BF20: < 2 min
A21: ='CONDICION DE SALUD INICIAL'!A20 -> 0 | B21: ='CONDICION DE SALUD INICIAL'!B20 -> 0 | C21: ='CONDICION DE SALUD INICIAL'!C20 -> 0 | D21: ='CONDICION DE SALUD INICIAL'!D20 -> 0 | E21: ='CONDICION DE SALUD POST'!H20 -> 0 | BA21: > 2.5 min | BB21: 1.8-2.2 min | BC21: < 1.8 min | BD21: > 3 min | BE21: 2.0-2.5 min | BF21: < 2 min
A22: ='CONDICION DE SALUD INICIAL'!A21 -> 0 | B22: ='CONDICION DE SALUD INICIAL'!B21 -> 0 | C22: ='CONDICION DE SALUD INICIAL'!C21 -> 0 | D22: ='CONDICION DE SALUD INICIAL'!D21 -> 0 | E22: ='CONDICION DE SALUD POST'!H21 -> 0 | G22: El dolor es moderado en este momento | H22: 2 | I22: Cuidarme me duele de forma que tengo que hacerlo despacio y con cuidado | J22: 2 | K22: Solo puedo levantar objetos muy ligeros | L22: 4 | M22: No puedo leer todo lo que quiero debido a un dolor moderado en el cuello | N22: 3 | O22: A veces tengo un dolor moderado de cabeza | P22: 2 | Q22: Tengo alguna dificultad para concentrarme cuando quiero | R22: 2 | S22: Puedo hacer casi todo mi trabajo habitual, pero no más | T22: 2 | BA22: > 2.5 min | BB22: 1.8-2.2 min | BC22: < 1.8 min | BD22: > 3 min | BE22: 2.0-2.5 min | BF22: < 2 min
A23: ='CONDICION DE SALUD INICIAL'!A22 -> 0 | B23: ='CONDICION DE SALUD INICIAL'!B22 -> 0 | C23: ='CONDICION DE SALUD INICIAL'!C22 -> 0 | D23: ='CONDICION DE SALUD INICIAL'!D22 -> 0 | E23: ='CONDICION DE SALUD POST'!H22 -> 0 | BA23: > 2.5 min | BB23: 1.8-2.2 min | BC23: < 1.8 min | BD23: > 3 min | BE23: 2.0-2.5 min | BF23: < 2 min
A24: ='CONDICION DE SALUD INICIAL'!A23 -> 0 | B24: ='CONDICION DE SALUD INICIAL'!B23 -> 0 | C24: ='CONDICION DE SALUD INICIAL'!C23 -> 0 | D24: ='CONDICION DE SALUD INICIAL'!D23 -> 0 | E24: ='CONDICION DE SALUD POST'!H23 -> 0 | BA24: > 2.5 min | BB24: 1.8-2.2 min | BC24: < 1.8 min | BD24: > 3 min | BE24: 2.0-2.5 min | BF24: < 2 min
A25: ='CONDICION DE SALUD INICIAL'!A24 -> 0 | B25: ='CONDICION DE SALUD INICIAL'!B24 -> 0 | C25: ='CONDICION DE SALUD INICIAL'!C24 -> 0 | D25: ='CONDICION DE SALUD INICIAL'!D24 -> 0 | E25: ='CONDICION DE SALUD POST'!H24 -> 0 | BA25: > 2.5 min | BB25: 1.8-2.2 min | BC25: < 1.8 min | BD25: > 3 min | BE25: 2.0-2.5 min | BF25: < 2 min
A26: ='CONDICION DE SALUD INICIAL'!A25 -> 0 | B26: ='CONDICION DE SALUD INICIAL'!B25 -> 0 | C26: ='CONDICION DE SALUD INICIAL'!C25 -> 0 | D26: ='CONDICION DE SALUD INICIAL'!D25 -> 0 | E26: ='CONDICION DE SALUD POST'!H25 -> 0 | BA26: > 2.5 min | BB26: 1.8-2.2 min | BC26: < 1.8 min | BD26: > 3 min | BE26: 2.0-2.5 min | BF26: < 2 min
A27: ='CONDICION DE SALUD INICIAL'!A26 -> 0 | B27: ='CONDICION DE SALUD INICIAL'!B26 -> 0 | C27: ='CONDICION DE SALUD INICIAL'!C26 -> 0 | D27: ='CONDICION DE SALUD INICIAL'!D26 -> 0 | E27: ='CONDICION DE SALUD POST'!H26 -> 0 | BA27: > 2.5 min | BB27: 1.8-2.2 min | BC27: < 1.8 min | BD27: > 3 min | BE27: 2.0-2.5 min | BF27: < 2 min
A28: ='CONDICION DE SALUD INICIAL'!A27 -> 0 | B28: ='CONDICION DE SALUD INICIAL'!B27 -> 0 | C28: ='CONDICION DE SALUD INICIAL'!C27 -> 0 | D28: ='CONDICION DE SALUD INICIAL'!D27 -> 0 | E28: ='CONDICION DE SALUD POST'!H27 -> 0 | BA28: > 2.5 min | BB28: 1.8-2.2 min | BC28: < 1.8 min | BD28: > 3 min | BE28: 2.0-2.5 min | BF28: < 2 min
BJ44: abdominales

Sheet BASE DE DATOS CONSOLIDADO
A2: Base de datos consolidados
A4: Nº | B4: Apellidos | C4: Nombres | D4: Empresa | E4: Fecha de evaluación inicial | F4: Fecha de evaluación posterior a intervención | G4: Cédula | H4: Fecha de Nacimiento | I4: Edad | J4: Presenta algún desorden músculo esquelético | K4: Listado de desórdenes músculo esqueléticos | L4: Nivel de dolor inicial | M4: Nivel de dolor posterior | O4: CONDICIÓN DE SALUD | W4: CAPACIDAD FUNCIONAL MIEMBROS SUPERIORES | AU4: CAPACIDAD FUNCIONAL COLUMNA | BO4: CONCLUSIONES DE LA ACTIVIDAD LABORAL | BQ4: RECOMENDACIONES DE LA ACTIVIDAD LABORAL
O5: INICIAL | S5: POSTERIOR A INTERVENCIÓN | W5: INICIAL | AI5: POSTERIOR A INTERVENCIÓN | AU5: INICIAL | BE5: POSTERIOR A INTERVENCIÓN
O6: Calificación total | P6: Interpretación | Q6: Observaciones | S6: Calificación total | T6: Interpretación | U6: Observaciones | W6: DOLOR ( PATIENT RATED WRIST EVALUATION (PRWE)) | Y6: THE PATIENT - RATED ELBOW EVALUATION (PREE) - CODO | AA6: SHOULDER PAIN DISABILITY INDEX (SPADI) | AC6: FUERZA | AE6: FLEXIBILIDAD | AG6: Observaciones | AI6: DOLOR (PATIENT RATED WRIST EVALUATION (PRWE)) | AK6: THE PATIENT - RATED ELBOW EVALUATION (PREE) - CODO | AM6: SHOULDER PAIN DISABILITY INDEX (SPADI) | AO6: FUERZA | AQ6: FLEXIBILIDAD | AS6: Observaciones | AU6: INDICE DE DISCAPACIDAD EN COLUMNA CERVICAL | AW6: FUNCIONALIDAD (ESCALA DE DISCAPACIDAD POR DOLOR LUMBAR DE OSWESTRY) | AY6: FUERZA | BA6: FLEXIBILIDAD | BC6: Observaciones | BE6: INDICE DE DISCAPACIDAD EN COLUMNA CERVICAL | BG6: FUNCIONALIDAD (ESCALA DE DISCAPACIDAD POR DOLOR LUMBAR DE OSWESTRY) | BI6: FUERZA | BK6: FLEXIBILIDAD | BM6: Observaciones
W7: Puntuación total | X7: Interpretación | Y7: Puntuación total | Z7: Interpretación | AA7: Puntuación total | AB7: Interpretación | AC7: No. de flexiones ejecutadas | AD7: Interpretación | AE7: Alcance posterior manos | AF7: Interpretación | AI7: Puntuación total | AJ7: Interpretación | AK7: Puntuación total | AL7: Interpretación | AM7: Puntuación total | AN7: Interpretación | AO7: No. de flexiones ejecutadas | AP7: Interpretación | AQ7: Alcance posterior manos | AR7: Interpretación | AU7: Calificación Total | AV7: Interpretación | AW7: Calificación ODI | AX7: Interpretación | AY7: Resultado de la prueba (min) | AZ7: Interpretación de la prueba | BA7: Prueba de flexión de tronco en V | BB7: Interpretación | BE7: Calificación Total | BF7: Interpretación | BG7: Calificación ODI | BH7: Interpretación | BI7: Resultado de la prueba (min) | BJ7: Interpretación de la prueba | BK7: Prueba de flexión de tronco en V | BL7: Interpretación
A10: ='CONDICION DE SALUD INICIAL'!A8 -> 0 | B10: ='CONDICION DE SALUD INICIAL'!C8 -> 0 | C10: ='CONDICION DE SALUD INICIAL'!D8 -> 0 | D10: ='CONDICION DE SALUD INICIAL'!B8 -> 0 | E10: ='CONDICION DE SALUD INICIAL'!F8 -> 00:00:00 | F10: ='CONDICION DE SALUD POST'!F8 -> 00:00:00 | G10: ='CONDICION DE SALUD INICIAL'!E8 -> 0 | H10: ='CONDICION DE SALUD INICIAL'!G8 -> 00:00:00 | I10: ='CONDICION DE SALUD INICIAL'!H8 -> 0 | J10: ='CONDICION DE SALUD INICIAL'!I8 -> SI | K10: ='CONDICION DE SALUD INICIAL'!J8 -> 0 | L10: ='CONDICION DE SALUD INICIAL'!K8 -> MEDIO | M10: ='CONDICION DE SALUD POST'!K8 -> 0 | O10: ='CONDICION DE SALUD INICIAL'!AJ8 -> 30 | P10: ='CONDICION DE SALUD INICIAL'!AK8 -> REGULAR | Q10: ='CONDICION DE SALUD INICIAL'!AL8 -> 0 | S10: ='CONDICION DE SALUD POST'!AJ8 -> 11 | T10: ='CONDICION DE SALUD POST'!AK8 -> BUENO | U10: ='CONDICION DE SALUD POST'!AL8 -> 0 | W10: ='CAPACIDAD FUNC MMSS INICIAL'!Z8 -> 0 | X10: ='CAPACIDAD FUNC MMSS INICIAL'!AA8 ->  | Y10: ='CAPACIDAD FUNC MMSS INICIAL'!BD8 -> 0 | Z10: ='CAPACIDAD FUNC MMSS INICIAL'!BE8 ->  | AA10: ='CAPACIDAD FUNC MMSS INICIAL'!BX8 -> 0 | AB10: ='CAPACIDAD FUNC MMSS INICIAL'!BY8 ->  | AC10: ='CAPACIDAD FUNC MMSS INICIAL'!CK8 -> 0 | AD10: ='CAPACIDAD FUNC MMSS INICIAL'!CL8 -> Pobre | AE10: ='CAPACIDAD FUNC MMSS INICIAL'!CN8 -> No se logra el contacto entre las manos | AF10: ='CAPACIDAD FUNC MMSS INICIAL'!CO8 -> Mala | AG10: ='CAPACIDAD FUNC MMSS INICIAL'!CQ9 -> 0 | AI10: ='CAPACIDAD FUNC MMSS POST'!Z8 -> 0 | AJ10: ='CAPACIDAD FUNC MMSS POST'!AA8 ->  | AK10: ='CAPACIDAD FUNC MMSS POST'!BD8 -> 0 | AL10: ='CAPACIDAD FUNC MMSS POST'!BE8 ->  | AM10: ='CAPACIDAD FUNC MMSS POST'!BX8 -> 0.01875 | AN10: ='CAPACIDAD FUNC MMSS POST'!BY8 -> Limitación funcional mínima | AO10: ='CAPACIDAD FUNC MMSS POST'!CK8 -> 0 | AP10: ='CAPACIDAD FUNC MMSS POST'!CL8 -> 0 | AQ10: ='CAPACIDAD FUNC COLUMNA POST'!BJ9 -> 0 | AR10: ='CAPACIDAD FUNC COLUMNA POST'!BK9 ->  | AS10: ='CAPACIDAD FUNC COLUMNA POST'!BM9 -> 0 | AU10: ='CAPACIDAD FUNC COLUMNA INICIAL'!AA9 -> 0.64 | AV10: ='CAPACIDAD FUNC COLUMNA INICIAL'!AB9 -> Discapacidad máxima | AW10: ='CAPACIDAD FUNC COLUMNA INICIAL'!AX9 -> 0.34 | AX10: ='CAPACIDAD FUNC COLUMNA INICIAL'!AY9 -> Limitación funcional moderada | AY10: ='CAPACIDAD FUNC COLUMNA INICIAL'!BG9 -> <2min | AZ10: ='CAPACIDAD FUNC COLUMNA INICIAL'!BH9 -> Necesita Mejorar | BA10: ='CAPACIDAD FUNC COLUMNA INICIAL'!BJ9 -> 0 | BB10: ='CAPACIDAD FUNC COLUMNA INICIAL'!BK9 ->  | BC10: ='CAPACIDAD FUNC COLUMNA INICIAL'!BM9 -> 0 | BE10: ='CAPACIDAD FUNC COLUMNA POST'!AA9 ->  | BF10: ='CAPACIDAD FUNC COLUMNA POST'!AB9 ->  | BG10: ='CAPACIDAD FUNC COLUMNA POST'!AX9 ->  | BH10: ='CAPACIDAD FUNC COLUMNA POST'!AY9 ->  | BI10: ='CAPACIDAD FUNC COLUMNA POST'!BG9 -> 0 | BJ10: ='CAPACIDAD FUNC COLUMNA POST'!BH9 -> 0 | BK10: ='CAPACIDAD FUNC COLUMNA POST'!BJ9 -> 0 | BL10: ='CAPACIDAD FUNC COLUMNA POST'!BK9 ->  | BM10: ='CAPACIDAD FUNC COLUMNA POST'!BM9 -> 0
A11: ='CONDICION DE SALUD INICIAL'!A9 -> 0 | B11: ='CONDICION DE SALUD INICIAL'!C9 -> 0 | C11: ='CONDICION DE SALUD INICIAL'!D9 -> 0 | D11: ='CONDICION DE SALUD INICIAL'!B9 -> 0 | E11: ='CONDICION DE SALUD INICIAL'!F9 -> 00:00:00 | F11: ='CONDICION DE SALUD POST'!F9 -> 00:00:00 | G11: ='CONDICION DE SALUD INICIAL'!E9 -> 0 | H11: ='CONDICION DE SALUD INICIAL'!G9 -> 00:00:00 | I11: ='CONDICION DE SALUD INICIAL'!H9 -> 0 | J11: ='CONDICION DE SALUD INICIAL'!I9 -> 0 | K11: ='CONDICION DE SALUD INICIAL'!J9 -> 0 | L11: ='CONDICION DE SALUD INICIAL'!K9 -> ALTO | M11: ='CONDICION DE SALUD POST'!K9 -> MEDIO | O11: ='CONDICION DE SALUD INICIAL'!AJ9 -> 30 | P11: ='CONDICION DE SALUD INICIAL'!AK9 -> REGULAR | Q11: ='CONDICION DE SALUD INICIAL'!AL9 -> 0 | S11: ='CONDICION DE SALUD POST'!AJ9 -> 23 | T11: ='CONDICION DE SALUD POST'!AK9 -> REGULAR | U11: ='CONDICION DE SALUD POST'!AL9 -> 0 | W11: ='CAPACIDAD FUNC MMSS INICIAL'!Z9 -> 0.64 | X11: ='CAPACIDAD FUNC MMSS INICIAL'!AA9 -> Limitación funcional moderada | Y11: ='CAPACIDAD FUNC MMSS INICIAL'!BD9 -> 0.5811111111 | Z11: ='CAPACIDAD FUNC MMSS INICIAL'!BE9 -> Limitación funcional moderada | AA11: ='CAPACIDAD FUNC MMSS INICIAL'!BX9 -> 0.66625 | AB11: ='CAPACIDAD FUNC MMSS INICIAL'!BY9 -> Limitación funcional alta | AC11: ='CAPACIDAD FUNC MMSS INICIAL'!CK9 -> 0 | AD11: ='CAPACIDAD FUNC MMSS INICIAL'!CL9 -> 0 | AE11: ='CAPACIDAD FUNC MMSS INICIAL'!CN9 -> 0 | AF11: ='CAPACIDAD FUNC MMSS INICIAL'!CO9 -> 0 | AG11: ='CAPACIDAD FUNC MMSS INICIAL'!CQ10 -> 0 | AI11: ='CAPACIDAD FUNC MMSS POST'!Z9 -> 0.55 | AJ11: ='CAPACIDAD FUNC MMSS POST'!AA9 -> Limitación funcional moderada | AK11: ='CAPACIDAD FUNC MMSS POST'!BD9 -> 0.4633333333 | AL11: ='CAPACIDAD FUNC MMSS POST'!BE9 -> Limitación funcional moderada | AM11: ='CAPACIDAD FUNC MMSS POST'!BX9 -> 0.5461538462 | AN11: ='CAPACIDAD FUNC MMSS POST'!BY9 -> Limitación funcional moderada | AO11: ='CAPACIDAD FUNC MMSS POST'!CK9 -> 0 | AP11: ='CAPACIDAD FUNC MMSS POST'!CL9 -> 0 | AQ11: ='CAPACIDAD FUNC COLUMNA POST'!BJ10 -> 0 | AR11: ='CAPACIDAD FUNC COLUMNA POST'!BK10 ->  | AS11: ='CAPACIDAD FUNC COLUMNA POST'!BM10 -> 0 | AU11: ='CAPACIDAD FUNC COLUMNA INICIAL'!AA10 -> 0.08 | AV11: ='CAPACIDAD FUNC COLUMNA INICIAL'!AB10 -> Discapacidad mínima | AW11: ='CAPACIDAD FUNC COLUMNA INICIAL'!AX10 -> 0.44 | AX11: ='CAPACIDAD FUNC COLUMNA INICIAL'!AY10 -> Discapacidad intensa | AY11: ='CAPACIDAD FUNC COLUMNA INICIAL'!BG10 -> 0 | AZ11: ='CAPACIDAD FUNC COLUMNA INICIAL'!BH10 -> 0 | BA11: ='CAPACIDAD FUNC COLUMNA INICIAL'!BJ10 -> <0 | BB11: ='CAPACIDAD FUNC COLUMNA INICIAL'!BK10 -> Mala | BC11: ='CAPACIDAD FUNC COLUMNA INICIAL'!BM10 -> 0 | BE11: ='CAPACIDAD FUNC COLUMNA POST'!AA10 -> 0.56 | BF11: ='CAPACIDAD FUNC COLUMNA POST'!AB10 -> Discapacidad máxima | BG11: ='CAPACIDAD FUNC COLUMNA POST'!AX10 -> 0.32 | BH11: ='CAPACIDAD FUNC COLUMNA POST'!AY10 -> Limitación funcional moderada | BI11: ='CAPACIDAD FUNC COLUMNA POST'!BG10 -> 0 | BJ11: ='CAPACIDAD FUNC COLUMNA POST'!BH10 -> 0 | BK11: ='CAPACIDAD FUNC COLUMNA POST'!BJ10 -> 0 | BL11: ='CAPACIDAD FUNC COLUMNA POST'!BK10 ->  | BM11: ='CAPACIDAD FUNC COLUMNA POST'!BM10 -> 0
A12: ='CONDICION DE SALUD INICIAL'!A10 -> 0 | B12: ='CONDICION DE SALUD INICIAL'!C10 -> 0 | C12: ='CONDICION DE SALUD INICIAL'!D10 -> 0 | D12: ='CONDICION DE SALUD INICIAL'!B10 -> 0 | E12: ='CONDICION DE SALUD INICIAL'!F10 -> 00:00:00 | F12: ='CONDICION DE SALUD POST'!F10 -> 00:00:00 | G12: ='CONDICION DE SALUD INICIAL'!E10 -> 0 | H12: ='CONDICION DE SALUD INICIAL'!G10 -> 00:00:00 | I12: ='CONDICION DE SALUD INICIAL'!H10 -> 0 | J12: ='CONDICION DE SALUD INICIAL'!I10 -> SI | K12: ='CONDICION DE SALUD INICIAL'!J10 -> 0 | L12: ='CONDICION DE SALUD INICIAL'!K10 -> MEDIO | M12: ='CONDICION DE SALUD POST'!K10 -> 0 | O12: ='CONDICION DE SALUD INICIAL'!AJ10 -> 26 | P12: ='CONDICION DE SALUD INICIAL'!AK10 -> REGULAR | Q12: ='CONDICION DE SALUD INICIAL'!AL10 -> 0 | S12: ='CONDICION DE SALUD POST'!AJ10 -> 0 | T12: ='CONDICION DE SALUD POST'!AK10 ->  | U12: ='CONDICION DE SALUD POST'!AL10 -> 0 | W12: ='CAPACIDAD FUNC MMSS INICIAL'!Z10 -> 0.165 | X12: ='CAPACIDAD FUNC MMSS INICIAL'!AA10 -> Limitación funcional mínima | Y12: ='CAPACIDAD FUNC MMSS INICIAL'!BD10 -> 0 | Z12: ='CAPACIDAD FUNC MMSS INICIAL'!BE10 ->  | AA12: ='CAPACIDAD FUNC MMSS INICIAL'!BX10 -> 0 | AB12: ='CAPACIDAD FUNC MMSS INICIAL'!BY10 ->  | AC12: ='CAPACIDAD FUNC MMSS INICIAL'!CK10 -> 0 | AD12: ='CAPACIDAD FUNC MMSS INICIAL'!CL10 -> 0 | AE12: ='CAPACIDAD FUNC MMSS INICIAL'!CN10 -> Entran en contacto puntas de los dedos medios | AF12: ='CAPACIDAD FUNC MMSS INICIAL'!CO10 -> Regular | AG12: ='CAPACIDAD FUNC MMSS INICIAL'!CQ11 -> 0 | AI12: ='CAPACIDAD FUNC MMSS POST'!Z10 -> 0 | AJ12: ='CAPACIDAD FUNC MMSS POST'!AA10 ->  | AK12: ='CAPACIDAD FUNC MMSS POST'!BD10 -> 0 | AL12: ='CAPACIDAD FUNC MMSS POST'!BE10 ->  | AM12: ='CAPACIDAD FUNC MMSS POST'!BX10 -> 0.007692307692 | AN12: ='CAPACIDAD FUNC MMSS POST'!BY10 -> Limitación funcional mínima | AO12: ='CAPACIDAD FUNC MMSS POST'!CK10 -> 0 | AP12: ='CAPACIDAD FUNC MMSS POST'!CL10 -> Excelente | AQ12: ='CAPACIDAD FUNC COLUMNA POST'!BJ11 -> 0 | AR12: ='CAPACIDAD FUNC COLUMNA POST'!BK11 ->  | AS12: ='CAPACIDAD FUNC COLUMNA POST'!BM11 -> 0 | AU12: ='CAPACIDAD FUNC COLUMNA INICIAL'!AA11 -> 0.3 | AV12: ='CAPACIDAD FUNC COLUMNA INICIAL'!AB11 -> Discapacidad moderada | AW12: ='CAPACIDAD FUNC COLUMNA INICIAL'!AX11 -> 0.02 | AX12: ='CAPACIDAD FUNC COLUMNA INICIAL'!AY11 -> Limitación funcional mínima | AY12: ='CAPACIDAD FUNC COLUMNA INICIAL'!BG11 -> 37 segundos | AZ12: ='CAPACIDAD FUNC COLUMNA INICIAL'!BH11 -> Necesita Mejorar | BA12: ='CAPACIDAD FUNC COLUMNA INICIAL'!BJ11 -> 0 | BB12: ='CAPACIDAD FUNC COLUMNA INICIAL'!BK11 ->  | BC12: ='CAPACIDAD FUNC COLUMNA INICIAL'!BM11 -> 0 | BE12: ='CAPACIDAD FUNC COLUMNA POST'!AA11 ->  | BF12: ='CAPACIDAD FUNC COLUMNA POST'!AB11 ->  | BG12: ='CAPACIDAD FUNC COLUMNA POST'!AX11 ->  | BH12: ='CAPACIDAD FUNC COLUMNA POST'!AY11 ->  | BI12: ='CAPACIDAD FUNC COLUMNA POST'!BG11 -> 0 | BJ12: ='CAPACIDAD FUNC COLUMNA POST'!BH11 -> 0 | BK12: ='CAPACIDAD FUNC COLUMNA POST'!BJ11 -> 0 | BL12: ='CAPACIDAD FUNC COLUMNA POST'!BK11 ->  | BM12: ='CAPACIDAD FUNC COLUMNA POST'!BM11 -> 0
A13: ='CONDICION DE SALUD INICIAL'!A11 -> 0 | B13: ='CONDICION DE SALUD INICIAL'!C11 -> 0 | C13: ='CONDICION DE SALUD INICIAL'!D11 -> 0 | D13: ='CONDICION DE SALUD INICIAL'!B11 -> 0 | E13: ='CONDICION DE SALUD INICIAL'!F11 -> 00:00:00 | F13: ='CONDICION DE SALUD POST'!F11 -> 00:00:00 | G13: ='CONDICION DE SALUD INICIAL'!E11 -> 0 | H13: ='CONDICION DE SALUD INICIAL'!G11 -> 00:00:00 | I13: ='CONDICION DE SALUD INICIAL'!H11 -> 0 | J13: ='CONDICION DE SALUD INICIAL'!I11 -> SI | K13: ='CONDICION DE SALUD INICIAL'!J11 -> 0 | L13: ='CONDICION DE SALUD INICIAL'!K11 -> ALTO | M13: ='CONDICION DE SALUD POST'!K11 -> 0 | O13: ='CONDICION DE SALUD INICIAL'!AJ11 -> 27 | P13: ='CONDICION DE SALUD INICIAL'!AK11 -> REGULAR | Q13: ='CONDICION DE SALUD INICIAL'!AL11 -> 0 | S13: ='CONDICION DE SALUD POST'!AJ11 -> 0 | T13: ='CONDICION DE SALUD POST'!AK11 ->  | U13: ='CONDICION DE SALUD POST'!AL11 -> 0 | W13: ='CAPACIDAD FUNC MMSS INICIAL'!Z11 -> 0.81 | X13: ='CAPACIDAD FUNC MMSS INICIAL'!AA11 -> Limitación funcional alta | Y13: ='CAPACIDAD FUNC MMSS INICIAL'!BD11 -> 0.8472222222 | Z13: ='CAPACIDAD FUNC MMSS INICIAL'!BE11 -> Limitación funcional alta | AA13: ='CAPACIDAD FUNC MMSS INICIAL'!BX11 -> 0.885 | AB13: ='CAPACIDAD FUNC MMSS INICIAL'!BY11 -> Limitación funcional alta | AC13: ='CAPACIDAD FUNC MMSS INICIAL'!CK11 -> 0 | AD13: ='CAPACIDAD FUNC MMSS INICIAL'!CL11 -> 0 | AE13: ='CAPACIDAD FUNC MMSS INICIAL'!CN11 -> No se logra el contacto entre las manos | AF13: ='CAPACIDAD FUNC MMSS INICIAL'!CO11 -> Mala | AG13: ='CAPACIDAD FUNC MMSS INICIAL'!CQ12 -> 0 | AI13: ='CAPACIDAD FUNC MMSS POST'!Z11 -> 0 | AJ13: ='CAPACIDAD FUNC MMSS POST'!AA11 ->  | AK13: ='CAPACIDAD FUNC MMSS POST'!BD11 -> 0 | AL13: ='CAPACIDAD FUNC MMSS POST'!BE11 ->  | AM13: ='CAPACIDAD FUNC MMSS POST'!BX11 -> 0.02307692308 | AN13: ='CAPACIDAD FUNC MMSS POST'!BY11 -> Limitación funcional mínima | AO13: ='CAPACIDAD FUNC MMSS POST'!CK11 -> 0 | AP13: ='CAPACIDAD FUNC MMSS POST'!CL11 -> 0 | AQ13: ='CAPACIDAD FUNC COLUMNA POST'!BJ12 -> 0 | AR13: ='CAPACIDAD FUNC COLUMNA POST'!BK12 ->  | AS13: ='CAPACIDAD FUNC COLUMNA POST'!BM12 -> 0 | AU13: ='CAPACIDAD FUNC COLUMNA INICIAL'!AA12 ->  | AV13: ='CAPACIDAD FUNC COLUMNA INICIAL'!AB12 ->  | AW13: ='CAPACIDAD FUNC COLUMNA INICIAL'!AX12 -> 0.74 | AX13: ='CAPACIDAD FUNC COLUMNA INICIAL'!AY12 -> Discapacidad 80% | AY13: ='CAPACIDAD FUNC COLUMNA INICIAL'!BG12 -> 1 min y 7 segundos | AZ13: ='CAPACIDAD FUNC COLUMNA INICIAL'!BH12 -> Necesita Mejorar | BA13: ='CAPACIDAD FUNC COLUMNA INICIAL'!BJ12 -> 0 | BB13: ='CAPACIDAD FUNC COLUMNA INICIAL'!BK12 -> Regular | BC13: ='CAPACIDAD FUNC COLUMNA INICIAL'!BM12 -> 0 | BE13: ='CAPACIDAD FUNC COLUMNA POST'!AA12 ->  | BF13: ='CAPACIDAD FUNC COLUMNA POST'!AB12 ->  | BG13: ='CAPACIDAD FUNC COLUMNA POST'!AX12 ->  | BH13: ='CAPACIDAD FUNC COLUMNA POST'!AY12 ->  | BI13: ='CAPACIDAD FUNC COLUMNA POST'!BG12 -> 0 | BJ13: ='CAPACIDAD FUNC COLUMNA POST'!BH12 -> 0 | BK13: ='CAPACIDAD FUNC COLUMNA POST'!BJ12 -> 0 | BL13: ='CAPACIDAD FUNC COLUMNA POST'!BK12 ->  | BM13: ='CAPACIDAD FUNC COLUMNA POST'!BM12 -> 0
A14: ='CONDICION DE SALUD INICIAL'!A12 -> 0 | B14: ='CONDICION DE SALUD INICIAL'!C12 -> 0 | C14: ='CONDICION DE SALUD INICIAL'!D12 -> 0 | D14: ='CONDICION DE SALUD INICIAL'!B12 -> 0 | E14: ='CONDICION DE SALUD INICIAL'!F12 -> 00:00:00 | F14: ='CONDICION DE SALUD POST'!F12 -> 00:00:00 | G14: ='CONDICION DE SALUD INICIAL'!E12 -> 0 | H14: ='CONDICION DE SALUD INICIAL'!G12 -> 00:00:00 | I14: ='CONDICION DE SALUD INICIAL'!H12 -> 0 | J14: ='CONDICION DE SALUD INICIAL'!I12 -> SI | K14: ='CONDICION DE SALUD INICIAL'!J12 -> 0 | L14: ='CONDICION DE SALUD INICIAL'!K12 -> MEDIO | M14: ='CONDICION DE SALUD POST'!K12 -> 0 | O14: ='CONDICION DE SALUD INICIAL'!AJ12 -> 22 | P14: ='CONDICION DE SALUD INICIAL'!AK12 -> REGULAR | Q14: ='CONDICION DE SALUD INICIAL'!AL12 -> 0 | S14: ='CONDICION DE SALUD POST'!AJ12 -> 0 | T14: ='CONDICION DE SALUD POST'!AK12 ->  | U14: ='CONDICION DE SALUD POST'!AL12 -> 0 | W14: ='CAPACIDAD FUNC MMSS INICIAL'!Z12 -> 0 | X14: ='CAPACIDAD FUNC MMSS INICIAL'!AA12 ->  | Y14: ='CAPACIDAD FUNC MMSS INICIAL'!BD12 -> 0 | Z14: ='CAPACIDAD FUNC MMSS INICIAL'!BE12 ->  | AA14: ='CAPACIDAD FUNC MMSS INICIAL'!BX12 -> 0 | AB14: ='CAPACIDAD FUNC MMSS INICIAL'!BY12 ->  | AC14: ='CAPACIDAD FUNC MMSS INICIAL'!CK12 -> 30 | AD14: ='CAPACIDAD FUNC MMSS INICIAL'!CL12 -> Bien | AE14: ='CAPACIDAD FUNC MMSS INICIAL'!CN12 -> Se sobreponen las manos | AF14: ='CAPACIDAD FUNC MMSS INICIAL'!CO12 -> Buena | AG14: ='CAPACIDAD FUNC MMSS INICIAL'!CQ13 -> 0 | AI14: ='CAPACIDAD FUNC MMSS POST'!Z12 -> 0 | AJ14: ='CAPACIDAD FUNC MMSS POST'!AA12 ->  | AK14: ='CAPACIDAD FUNC MMSS POST'!BD12 -> 0 | AL14: ='CAPACIDAD FUNC MMSS POST'!BE12 ->  | AM14: ='CAPACIDAD FUNC MMSS POST'!BX12 -> 0.4923076923 | AN14: ='CAPACIDAD FUNC MMSS POST'!BY12 -> Limitación funcional moderada | AO14: ='CAPACIDAD FUNC MMSS POST'!CK12 -> 0 | AP14: ='CAPACIDAD FUNC MMSS POST'!CL12 -> 0 | AQ14: ='CAPACIDAD FUNC COLUMNA POST'!BJ13 -> 0 | AR14: ='CAPACIDAD FUNC COLUMNA POST'!BK13 ->  | AS14: ='CAPACIDAD FUNC COLUMNA POST'!BM13 -> 0 | AU14: ='CAPACIDAD FUNC COLUMNA INICIAL'!AA13 ->  | AV14: ='CAPACIDAD FUNC COLUMNA INICIAL'!AB13 ->  | AW14: ='CAPACIDAD FUNC COLUMNA INICIAL'!AX13 -> 0.02 | AX14: ='CAPACIDAD FUNC COLUMNA INICIAL'!AY13 -> Limitación funcional mínima | AY14: ='CAPACIDAD FUNC COLUMNA INICIAL'!BG13 -> 23 segundos | AZ14: ='CAPACIDAD FUNC COLUMNA INICIAL'!BH13 -> Necesita Mejorar | BA14: ='CAPACIDAD FUNC COLUMNA INICIAL'!BJ13 -> <0 | BB14: ='CAPACIDAD FUNC COLUMNA INICIAL'!BK13 -> Mala | BC14: ='CAPACIDAD FUNC COLUMNA INICIAL'!BM13 -> 0 | BE14: ='CAPACIDAD FUNC COLUMNA POST'!AA13 ->  | BF14: ='CAPACIDAD FUNC COLUMNA POST'!AB13 ->  | BG14: ='CAPACIDAD FUNC COLUMNA POST'!AX13 ->  | BH14: ='CAPACIDAD FUNC COLUMNA POST'!AY13 ->  | BI14: ='CAPACIDAD FUNC COLUMNA POST'!BG13 -> 0 | BJ14: ='CAPACIDAD FUNC COLUMNA POST'!BH13 -> 0 | BK14: ='CAPACIDAD FUNC COLUMNA POST'!BJ13 -> 0 | BL14: ='CAPACIDAD FUNC COLUMNA POST'!BK13 ->  | BM14: ='CAPACIDAD FUNC COLUMNA POST'!BM13 -> 0
A15: ='CONDICION DE SALUD INICIAL'!A13 -> 0 | B15: ='CONDICION DE SALUD INICIAL'!C13 -> 0 | C15: ='CONDICION DE SALUD INICIAL'!D13 -> 0 | D15: ='CONDICION DE SALUD INICIAL'!B13 -> 0 | E15: ='CONDICION DE SALUD INICIAL'!F13 -> 00:00:00 | F15: ='CONDICION DE SALUD POST'!F13 -> 00:00:00 | G15: ='CONDICION DE SALUD INICIAL'!E13 -> 0 | H15: ='CONDICION DE SALUD INICIAL'!G13 -> 00:00:00 | I15: ='CONDICION DE SALUD INICIAL'!H13 -> 0 | J15: ='CONDICION DE SALUD INICIAL'!I13 -> SI | K15: ='CONDICION DE SALUD INICIAL'!J13 -> 0 | L15: ='CONDICION DE SALUD INICIAL'!K13 -> ALTO | M15: ='CONDICION DE SALUD POST'!K13 -> ALTO | O15: ='CONDICION DE SALUD INICIAL'!AJ13 -> 24 | P15: ='CONDICION DE SALUD INICIAL'!AK13 -> REGULAR | Q15: ='CONDICION DE SALUD INICIAL'!AL13 -> 0 | S15: ='CONDICION DE SALUD POST'!AJ13 -> 13 | T15: ='CONDICION DE SALUD POST'!AK13 -> BUENO | U15: ='CONDICION DE SALUD POST'!AL13 -> 0 | W15: ='CAPACIDAD FUNC MMSS INICIAL'!Z13 -> 0 | X15: ='CAPACIDAD FUNC MMSS INICIAL'!AA13 ->  | Y15: ='CAPACIDAD FUNC MMSS INICIAL'!BD13 -> 0 | Z15: ='CAPACIDAD FUNC MMSS INICIAL'!BE13 ->  | AA15: ='CAPACIDAD FUNC MMSS INICIAL'!BX13 -> 0 | AB15: ='CAPACIDAD FUNC MMSS INICIAL'!BY13 ->  | AC15: ='CAPACIDAD FUNC MMSS INICIAL'!CK13 -> 0 | AD15: ='CAPACIDAD FUNC MMSS INICIAL'!CL13 -> 0 | AE15: ='CAPACIDAD FUNC MMSS INICIAL'!CN13 -> No se logra el contacto entre las manos | AF15: ='CAPACIDAD FUNC MMSS INICIAL'!CO13 -> Mala | AG15: ='CAPACIDAD FUNC MMSS INICIAL'!CQ14 -> 0 | AI15: ='CAPACIDAD FUNC MMSS POST'!Z13 -> 0 | AJ15: ='CAPACIDAD FUNC MMSS POST'!AA13 ->  | AK15: ='CAPACIDAD FUNC MMSS POST'!BD13 -> 0.6766666667 | AL15: ='CAPACIDAD FUNC MMSS POST'!BE13 -> Limitación funcional alta | AM15: ='CAPACIDAD FUNC MMSS POST'!BX13 -> 0 | AN15: ='CAPACIDAD FUNC MMSS POST'!BY13 ->  | AO15: ='CAPACIDAD FUNC MMSS POST'!CK13 -> 0 | AP15: ='CAPACIDAD FUNC MMSS POST'!CL13 -> 0 | AQ15: ='CAPACIDAD FUNC COLUMNA POST'!BJ14 -> 0 | AR15: ='CAPACIDAD FUNC COLUMNA POST'!BK14 ->  | AS15: ='CAPACIDAD FUNC COLUMNA POST'!BM14 -> 0 | AU15: ='CAPACIDAD FUNC COLUMNA INICIAL'!AA14 -> 0.1 | AV15: ='CAPACIDAD FUNC COLUMNA INICIAL'!AB14 -> Discapacidad mínima | AW15: ='CAPACIDAD FUNC COLUMNA INICIAL'!AX14 -> 0.06 | AX15: ='CAPACIDAD FUNC COLUMNA INICIAL'!AY14 -> Limitación funcional mínima | AY15: ='CAPACIDAD FUNC COLUMNA INICIAL'!BG14 -> 23 segundos | AZ15: ='CAPACIDAD FUNC COLUMNA INICIAL'!BH14 -> Necesita Mejorar | BA15: ='CAPACIDAD FUNC COLUMNA INICIAL'!BJ14 -> <0 | BB15: ='CAPACIDAD FUNC COLUMNA INICIAL'!BK14 -> Mala | BC15: ='CAPACIDAD FUNC COLUMNA INICIAL'!BM14 -> 0 | BE15: ='CAPACIDAD FUNC COLUMNA POST'!AA14 -> 0.12 | BF15: ='CAPACIDAD FUNC COLUMNA POST'!AB14 -> Discapacidad mínima | BG15: ='CAPACIDAD FUNC COLUMNA POST'!AX14 -> 0 | BH15: ='CAPACIDAD FUNC COLUMNA POST'!AY14 -> Limitación funcional mínima | BI15: ='CAPACIDAD FUNC COLUMNA POST'!BG14 -> 0 | BJ15: ='CAPACIDAD FUNC COLUMNA POST'!BH14 -> 0 | BK15: ='CAPACIDAD FUNC COLUMNA POST'!BJ14 -> 0 | BL15: ='CAPACIDAD FUNC COLUMNA POST'!BK14 ->  | BM15: ='CAPACIDAD FUNC COLUMNA POST'!BM14 -> 0
A16: ='CONDICION DE SALUD INICIAL'!A14 -> 0 | B16: ='CONDICION DE SALUD INICIAL'!C14 -> 0 | C16: ='CONDICION DE SALUD INICIAL'!D14 -> 0 | D16: ='CONDICION DE SALUD INICIAL'!B14 -> 0 | E16: ='CONDICION DE SALUD INICIAL'!F14 -> 00:00:00 | F16: ='CONDICION DE SALUD POST'!F14 -> 00:00:00 | G16: ='CONDICION DE SALUD INICIAL'!E14 -> 0 | H16: ='CONDICION DE SALUD INICIAL'!G14 -> 00:00:00 | I16: ='CONDICION DE SALUD INICIAL'!H14 -> 0 | J16: ='CONDICION DE SALUD INICIAL'!I14 -> SI | K16: ='CONDICION DE SALUD INICIAL'!J14 -> 0 | L16: ='CONDICION DE SALUD INICIAL'!K14 -> MEDIO | M16: ='CONDICION DE SALUD POST'!K14 -> MEDIO | O16: ='CONDICION DE SALUD INICIAL'!AJ14 -> 0 | P16: ='CONDICION DE SALUD INICIAL'!AK14 ->  | Q16: ='CONDICION DE SALUD INICIAL'!AL14 -> 0 | S16: ='CONDICION DE SALUD POST'!AJ14 -> 28 | T16: ='CONDICION DE SALUD POST'!AK14 -> REGULAR | U16: ='CONDICION DE SALUD POST'!AL14 -> 0 | W16: ='CAPACIDAD FUNC MMSS INICIAL'!Z14 -> 0.195 | X16: ='CAPACIDAD FUNC MMSS INICIAL'!AA14 -> Limitación funcional mínima | Y16: ='CAPACIDAD FUNC MMSS INICIAL'!BD14 -> 0.05444444444 | Z16: ='CAPACIDAD FUNC MMSS INICIAL'!BE14 -> Limitación funcional mínima | AA16: ='CAPACIDAD FUNC MMSS INICIAL'!BX14 -> 0.04875 | AB16: ='CAPACIDAD FUNC MMSS INICIAL'!BY14 -> Limitación funcional mínima | AC16: ='CAPACIDAD FUNC MMSS INICIAL'!CK14 -> 0 | AD16: ='CAPACIDAD FUNC MMSS INICIAL'!CL14 -> 0 | AE16: ='CAPACIDAD FUNC MMSS INICIAL'!CN14 -> 0 | AF16: ='CAPACIDAD FUNC MMSS INICIAL'!CO14 -> 0 | AG16: ='CAPACIDAD FUNC MMSS INICIAL'!CQ15 -> 0 | AI16: ='CAPACIDAD FUNC MMSS POST'!Z14 -> 0.255 | AJ16: ='CAPACIDAD FUNC MMSS POST'!AA14 -> Limitación funcional moderada | AK16: ='CAPACIDAD FUNC MMSS POST'!BD14 -> 0.04833333333 | AL16: ='CAPACIDAD FUNC MMSS POST'!BE14 -> Limitación funcional mínima | AM16: ='CAPACIDAD FUNC MMSS POST'!BX14 -> 0.05384615385 | AN16: ='CAPACIDAD FUNC MMSS POST'!BY14 -> Limitación funcional mínima | AO16: ='CAPACIDAD FUNC MMSS POST'!CK14 -> 0 | AP16: ='CAPACIDAD FUNC MMSS POST'!CL14 -> 0 | AQ16: ='CAPACIDAD FUNC COLUMNA POST'!BJ15 -> 0 | AR16: ='CAPACIDAD FUNC COLUMNA POST'!BK15 ->  | AS16: ='CAPACIDAD FUNC COLUMNA POST'!BM15 -> 0 | AU16: ='CAPACIDAD FUNC COLUMNA INICIAL'!AA15 -> 0.8 | AV16: ='CAPACIDAD FUNC COLUMNA INICIAL'!AB15 -> Discapacidad máxima | AW16: ='CAPACIDAD FUNC COLUMNA INICIAL'!AX15 ->  | AX16: ='CAPACIDAD FUNC COLUMNA INICIAL'!AY15 ->  | AY16: ='CAPACIDAD FUNC COLUMNA INICIAL'!BG15 -> 0 | AZ16: ='CAPACIDAD FUNC COLUMNA INICIAL'!BH15 -> 0 | BA16: ='CAPACIDAD FUNC COLUMNA INICIAL'!BJ15 -> 0 | BB16: ='CAPACIDAD FUNC COLUMNA INICIAL'!BK15 ->  | BC16: ='CAPACIDAD FUNC COLUMNA INICIAL'!BM15 -> 0 | BE16: ='CAPACIDAD FUNC COLUMNA POST'!AA15 -> 0.22 | BF16: ='CAPACIDAD FUNC COLUMNA POST'!AB15 -> Discapacidad moderada | BG16: ='CAPACIDAD FUNC COLUMNA POST'!AX15 -> 0.04 | BH16: ='CAPACIDAD FUNC COLUMNA POST'!AY15 -> Limitación funcional mínima | BI16: ='CAPACIDAD FUNC COLUMNA POST'!BG15 -> 0 | BJ16: ='CAPACIDAD FUNC COLUMNA POST'!BH15 -> 0 | BK16: ='CAPACIDAD FUNC COLUMNA POST'!BJ15 -> 0 | BL16: ='CAPACIDAD FUNC COLUMNA POST'!BK15 ->  | BM16: ='CAPACIDAD FUNC COLUMNA POST'!BM15 -> 0
A17: ='CONDICION DE SALUD INICIAL'!A15 -> 0 | B17: ='CONDICION DE SALUD INICIAL'!C15 -> 0 | C17: ='CONDICION DE SALUD INICIAL'!D15 -> 0 | D17: ='CONDICION DE SALUD INICIAL'!B15 -> 0 | E17: ='CONDICION DE SALUD INICIAL'!F15 -> 00:00:00 | F17: ='CONDICION DE SALUD POST'!F15 -> 00:00:00 | G17: ='CONDICION DE SALUD INICIAL'!E15 -> 0 | H17: ='CONDICION DE SALUD INICIAL'!G15 -> 00:00:00 | I17: ='CONDICION DE SALUD INICIAL'!H15 -> 0 | J17: ='CONDICION DE SALUD INICIAL'!I15 -> SI | K17: ='CONDICION DE SALUD INICIAL'!J15 -> 0 | L17: ='CONDICION DE SALUD INICIAL'!K15 -> ALTO | M17: ='CONDICION DE SALUD POST'!K15 -> MEDIO | O17: ='CONDICION DE SALUD INICIAL'!AJ15 -> 33 | P17: ='CONDICION DE SALUD INICIAL'!AK15 -> REGULAR | Q17: ='CONDICION DE SALUD INICIAL'!AL15 -> 0 | S17: ='CONDICION DE SALUD POST'!AJ15 -> 23 | T17: ='CONDICION DE SALUD POST'!AK15 -> REGULAR | U17: ='CONDICION DE SALUD POST'!AL15 -> 0 | W17: ='CAPACIDAD FUNC MMSS INICIAL'!Z15 -> 0.955 | X17: ='CAPACIDAD FUNC MMSS INICIAL'!AA15 -> Limitación funcional alta | Y17: ='CAPACIDAD FUNC MMSS INICIAL'!BD15 -> 0.9422222222 | Z17: ='CAPACIDAD FUNC MMSS INICIAL'!BE15 -> Limitación funcional alta | AA17: ='CAPACIDAD FUNC MMSS INICIAL'!BX15 -> 0.9 | AB17: ='CAPACIDAD FUNC MMSS INICIAL'!BY15 -> Limitación funcional alta | AC17: ='CAPACIDAD FUNC MMSS INICIAL'!CK15 -> 0 | AD17: ='CAPACIDAD FUNC MMSS INICIAL'!CL15 -> 0 | AE17: ='CAPACIDAD FUNC MMSS INICIAL'!CN15 -> Entran en contacto puntas de los dedos medios | AF17: ='CAPACIDAD FUNC MMSS INICIAL'!CO15 -> Regular | AG17: ='CAPACIDAD FUNC MMSS INICIAL'!CQ16 -> 0 | AI17: ='CAPACIDAD FUNC MMSS POST'!Z15 -> 0.715 | AJ17: ='CAPACIDAD FUNC MMSS POST'!AA15 -> Limitación funcional alta | AK17: ='CAPACIDAD FUNC MMSS POST'!BD15 -> 0.7572222222 | AL17: ='CAPACIDAD FUNC MMSS POST'!BE15 -> Limitación funcional alta | AM17: ='CAPACIDAD FUNC MMSS POST'!BX15 -> 0.7846153846 | AN17: ='CAPACIDAD FUNC MMSS POST'!BY15 -> Limitación funcional alta | AO17: ='CAPACIDAD FUNC MMSS POST'!CK15 -> 0 | AP17: ='CAPACIDAD FUNC MMSS POST'!CL15 -> 0 | AQ17: ='CAPACIDAD FUNC COLUMNA POST'!BJ16 -> 0 | AR17: ='CAPACIDAD FUNC COLUMNA POST'!BK16 ->  | AS17: ='CAPACIDAD FUNC COLUMNA POST'!BM16 -> 0 | AU17: ='CAPACIDAD FUNC COLUMNA INICIAL'!AA16 -> 0.22 | AV17: ='CAPACIDAD FUNC COLUMNA INICIAL'!AB16 -> Discapacidad moderada | AW17: ='CAPACIDAD FUNC COLUMNA INICIAL'!AX16 -> 0.28 | AX17: ='CAPACIDAD FUNC COLUMNA INICIAL'!AY16 -> Limitación funcional moderada | AY17: ='CAPACIDAD FUNC COLUMNA INICIAL'!BG16 -> 0 | AZ17: ='CAPACIDAD FUNC COLUMNA INICIAL'!BH16 -> 0 | BA17: ='CAPACIDAD FUNC COLUMNA INICIAL'!BJ16 -> <0 | BB17: ='CAPACIDAD FUNC COLUMNA INICIAL'!BK16 -> Mala | BC17: ='CAPACIDAD FUNC COLUMNA INICIAL'!BM16 -> 0 | BE17: ='CAPACIDAD FUNC COLUMNA POST'!AA16 ->  | BF17: ='CAPACIDAD FUNC COLUMNA POST'!AB16 ->  | BG17: ='CAPACIDAD FUNC COLUMNA POST'!AX16 ->  | BH17: ='CAPACIDAD FUNC COLUMNA POST'!AY16 ->  | BI17: ='CAPACIDAD FUNC COLUMNA POST'!BG16 -> 0 | BJ17: ='CAPACIDAD FUNC COLUMNA POST'!BH16 -> 0 | BK17: ='CAPACIDAD FUNC COLUMNA POST'!BJ16 -> 0 | BL17: ='CAPACIDAD FUNC COLUMNA POST'!BK16 ->  | BM17: ='CAPACIDAD FUNC COLUMNA POST'!BM16 -> 0
A18: ='CONDICION DE SALUD INICIAL'!A16 -> 0 | B18: ='CONDICION DE SALUD INICIAL'!C16 -> 0 | C18: ='CONDICION DE SALUD INICIAL'!D16 -> 0 | D18: ='CONDICION DE SALUD INICIAL'!B16 -> 0 | E18: ='CONDICION DE SALUD INICIAL'!F16 -> 00:00:00 | F18: ='CONDICION DE SALUD POST'!F16 -> 00:00:00 | G18: ='CONDICION DE SALUD INICIAL'!E16 -> 0 | H18: ='CONDICION DE SALUD INICIAL'!G16 -> 00:00:00 | I18: ='CONDICION DE SALUD INICIAL'!H16 -> 0 | J18: ='CONDICION DE SALUD INICIAL'!I16 -> SI | K18: ='CONDICION DE SALUD INICIAL'!J16 -> 0 | L18: ='CONDICION DE SALUD INICIAL'!K16 -> MEDIO | M18: ='CONDICION DE SALUD POST'!K16 -> 0 | O18: ='CONDICION DE SALUD INICIAL'!AJ16 -> 29 | P18: ='CONDICION DE SALUD INICIAL'!AK16 -> REGULAR | Q18: ='CONDICION DE SALUD INICIAL'!AL16 -> 0 | S18: ='CONDICION DE SALUD POST'!AJ16 -> 0 | T18: ='CONDICION DE SALUD POST'!AK16 ->  | U18: ='CONDICION DE SALUD POST'!AL16 -> 0 | W18: ='CAPACIDAD FUNC MMSS INICIAL'!Z16 -> 0.515 | X18: ='CAPACIDAD FUNC MMSS INICIAL'!AA16 -> Limitación funcional moderada | Y18: ='CAPACIDAD FUNC MMSS INICIAL'!BD16 -> 0.4127777778 | Z18: ='CAPACIDAD FUNC MMSS INICIAL'!BE16 -> Limitación funcional moderada | AA18: ='CAPACIDAD FUNC MMSS INICIAL'!BX16 -> 0.5075 | AB18: ='CAPACIDAD FUNC MMSS INICIAL'!BY16 -> Limitación funcional moderada | AC18: ='CAPACIDAD FUNC MMSS INICIAL'!CK16 -> 0 | AD18: ='CAPACIDAD FUNC MMSS INICIAL'!CL16 -> 0 | AE18: ='CAPACIDAD FUNC MMSS INICIAL'!CN16 -> Entran en contacto puntas de los dedos medios | AF18: ='CAPACIDAD FUNC MMSS INICIAL'!CO16 -> Regular | AG18: ='CAPACIDAD FUNC MMSS INICIAL'!CQ17 -> 0 | AI18: ='CAPACIDAD FUNC MMSS POST'!Z16 -> 0 | AJ18: ='CAPACIDAD FUNC MMSS POST'!AA16 ->  | AK18: ='CAPACIDAD FUNC MMSS POST'!BD16 -> 0 | AL18: ='CAPACIDAD FUNC MMSS POST'!BE16 ->  | AM18: ='CAPACIDAD FUNC MMSS POST'!BX16 -> 0 | AN18: ='CAPACIDAD FUNC MMSS POST'!BY16 ->  | AO18: ='CAPACIDAD FUNC MMSS POST'!CK16 -> 0 | AP18: ='CAPACIDAD FUNC MMSS POST'!CL16 -> 0 | AQ18: ='CAPACIDAD FUNC COLUMNA POST'!BJ17 -> 0 | AR18: ='CAPACIDAD FUNC COLUMNA POST'!BK17 ->  | AS18: ='CAPACIDAD FUNC COLUMNA POST'!BM17 -> 0 | AU18: ='CAPACIDAD FUNC COLUMNA INICIAL'!AA17 ->  | AV18: ='CAPACIDAD FUNC COLUMNA INICIAL'!AB17 ->  | AW18: ='CAPACIDAD FUNC COLUMNA INICIAL'!AX17 -> 0.26 | AX18: ='CAPACIDAD FUNC COLUMNA INICIAL'!AY17 -> Limitación funcional moderada | AY18: ='CAPACIDAD FUNC COLUMNA INICIAL'!BG17 -> No realiza prueba por reciente cirugia en codo | AZ18: ='CAPACIDAD FUNC COLUMNA INICIAL'!BH17 -> 0 | BA18: ='CAPACIDAD FUNC COLUMNA INICIAL'!BJ17 -> >0 | BB18: ='CAPACIDAD FUNC COLUMNA INICIAL'!BK17 -> Buena | BC18: ='CAPACIDAD FUNC COLUMNA INICIAL'!BM17 -> 0 | BE18: ='CAPACIDAD FUNC COLUMNA POST'!AA17 ->  | BF18: ='CAPACIDAD FUNC COLUMNA POST'!AB17 ->  | BG18: ='CAPACIDAD FUNC COLUMNA POST'!AX17 ->  | BH18: ='CAPACIDAD FUNC COLUMNA POST'!AY17 ->  | BI18: ='CAPACIDAD FUNC COLUMNA POST'!BG17 -> 0 | BJ18: ='CAPACIDAD FUNC COLUMNA POST'!BH17 -> 0 | BK18: ='CAPACIDAD FUNC COLUMNA POST'!BJ17 -> 0 | BL18: ='CAPACIDAD FUNC COLUMNA POST'!BK17 ->  | BM18: ='CAPACIDAD FUNC COLUMNA POST'!BM17 -> 0
A19: ='CONDICION DE SALUD INICIAL'!A17 -> 0 | B19: ='CONDICION DE SALUD INICIAL'!C17 -> 0 | C19: ='CONDICION DE SALUD INICIAL'!D17 -> 0 | D19: ='CONDICION DE SALUD INICIAL'!B17 -> 0 | E19: ='CONDICION DE SALUD INICIAL'!F17 -> 00:00:00 | F19: ='CONDICION DE SALUD POST'!F17 -> 00:00:00 | G19: ='CONDICION DE SALUD INICIAL'!E17 -> 0 | H19: ='CONDICION DE SALUD INICIAL'!G17 -> 00:00:00 | I19: ='CONDICION DE SALUD INICIAL'!H17 -> 0 | J19: ='CONDICION DE SALUD INICIAL'!I17 -> SI | K19: ='CONDICION DE SALUD INICIAL'!J17 -> 0 | L19: ='CONDICION DE SALUD INICIAL'!K17 -> ALTO | M19: ='CONDICION DE SALUD POST'!K17 -> 0 | O19: ='CONDICION DE SALUD INICIAL'!AJ17 -> 28 | P19: ='CONDICION DE SALUD INICIAL'!AK17 -> REGULAR | Q19: ='CONDICION DE SALUD INICIAL'!AL17 -> 0 | S19: ='CONDICION DE SALUD POST'!AJ17 -> 0 | T19: ='CONDICION DE SALUD POST'!AK17 ->  | U19: ='CONDICION DE SALUD POST'!AL17 -> 0 | W19: ='CAPACIDAD FUNC MMSS INICIAL'!Z17 -> 0.6 | X19: ='CAPACIDAD FUNC MMSS INICIAL'!AA17 -> Limitación funcional moderada | Y19: ='CAPACIDAD FUNC MMSS INICIAL'!BD17 -> 0.5583333333 | Z19: ='CAPACIDAD FUNC MMSS INICIAL'!BE17 -> Limitación funcional moderada | AA19: ='CAPACIDAD FUNC MMSS INICIAL'!BX17 -> 0.3925 | AB19: ='CAPACIDAD FUNC MMSS INICIAL'!BY17 -> Limitación funcional moderada | AC19: ='CAPACIDAD FUNC MMSS INICIAL'!CK17 -> 0 | AD19: ='CAPACIDAD FUNC MMSS INICIAL'!CL17 -> 0 | AE19: ='CAPACIDAD FUNC MMSS INICIAL'!CN17 -> No se logra el contacto entre las manos | AF19: ='CAPACIDAD FUNC MMSS INICIAL'!CO17 -> Mala | AG19: ='CAPACIDAD FUNC MMSS INICIAL'!CQ18 -> 0 | AI19: ='CAPACIDAD FUNC MMSS POST'!Z17 -> 0 | AJ19: ='CAPACIDAD FUNC MMSS POST'!AA17 ->  | AK19: ='CAPACIDAD FUNC MMSS POST'!BD17 -> 0 | AL19: ='CAPACIDAD FUNC MMSS POST'!BE17 ->  | AM19: ='CAPACIDAD FUNC MMSS POST'!BX17 -> 0 | AN19: ='CAPACIDAD FUNC MMSS POST'!BY17 ->  | AO19: ='CAPACIDAD FUNC MMSS POST'!CK17 -> 0 | AP19: ='CAPACIDAD FUNC MMSS POST'!CL17 -> 0 | AQ19: ='CAPACIDAD FUNC COLUMNA POST'!BJ18 -> 0 | AR19: ='CAPACIDAD FUNC COLUMNA POST'!BK18 ->  | AS19: ='CAPACIDAD FUNC COLUMNA POST'!BM18 -> 0 | AU19: ='CAPACIDAD FUNC COLUMNA INICIAL'!AA18 ->  | AV19: ='CAPACIDAD FUNC COLUMNA INICIAL'!AB18 ->  | AW19: ='CAPACIDAD FUNC COLUMNA INICIAL'!AX18 -> 0 | AX19: ='CAPACIDAD FUNC COLUMNA INICIAL'!AY18 -> Limitación funcional mínima | AY19: ='CAPACIDAD FUNC COLUMNA INICIAL'!BG18 -> 4 segundos | AZ19: ='CAPACIDAD FUNC COLUMNA INICIAL'!BH18 -> Necesita Mejorar | BA19: ='CAPACIDAD FUNC COLUMNA INICIAL'!BJ18 -> >0 | BB19: ='CAPACIDAD FUNC COLUMNA INICIAL'!BK18 -> Buena | BC19: ='CAPACIDAD FUNC COLUMNA INICIAL'!BM18 -> 0 | BE19: ='CAPACIDAD FUNC COLUMNA POST'!AA18 ->  | BF19: ='CAPACIDAD FUNC COLUMNA POST'!AB18 ->  | BG19: ='CAPACIDAD FUNC COLUMNA POST'!AX18 ->  | BH19: ='CAPACIDAD FUNC COLUMNA POST'!AY18 ->  | BI19: ='CAPACIDAD FUNC COLUMNA POST'!BG18 -> 0 | BJ19: ='CAPACIDAD FUNC COLUMNA POST'!BH18 -> 0 | BK19: ='CAPACIDAD FUNC COLUMNA POST'!BJ18 -> 0 | BL19: ='CAPACIDAD FUNC COLUMNA POST'!BK18 ->  | BM19: ='CAPACIDAD FUNC COLUMNA POST'!BM18 -> 0
A20: ='CONDICION DE SALUD INICIAL'!A18 -> 0 | B20: ='CONDICION DE SALUD INICIAL'!C18 -> 0 | C20: ='CONDICION DE SALUD INICIAL'!D18 -> 0 | D20: ='CONDICION DE SALUD INICIAL'!B18 -> 0 | E20: ='CONDICION DE SALUD INICIAL'!F18 -> 00:00:00 | F20: ='CONDICION DE SALUD POST'!F18 -> 00:00:00 | G20: ='CONDICION DE SALUD INICIAL'!E18 -> 0 | H20: ='CONDICION DE SALUD INICIAL'!G18 -> 00:00:00 | I20: ='CONDICION DE SALUD INICIAL'!H18 -> 0 | J20: ='CONDICION DE SALUD INICIAL'!I18 -> SI | K20: ='CONDICION DE SALUD INICIAL'!J18 -> 0 | L20: ='CONDICION DE SALUD INICIAL'!K18 -> ALTO | M20: ='CONDICION DE SALUD POST'!K18 -> 0 | O20: ='CONDICION DE SALUD INICIAL'!AJ18 -> 24 | P20: ='CONDICION DE SALUD INICIAL'!AK18 -> REGULAR | Q20: ='CONDICION DE SALUD INICIAL'!AL18 -> 0 | S20: ='CONDICION DE SALUD POST'!AJ18 -> 0 | T20: ='CONDICION DE SALUD POST'!AK18 ->  | U20: ='CONDICION DE SALUD POST'!AL18 -> 0 | W20: ='CAPACIDAD FUNC MMSS INICIAL'!Z18 -> 0.485 | X20: ='CAPACIDAD FUNC MMSS INICIAL'!AA18 -> Limitación funcional moderada | Y20: ='CAPACIDAD FUNC MMSS INICIAL'!BD18 -> 0.4261111111 | Z20: ='CAPACIDAD FUNC MMSS INICIAL'!BE18 -> Limitación funcional moderada | AA20: ='CAPACIDAD FUNC MMSS INICIAL'!BX18 -> 0.3575 | AB20: ='CAPACIDAD FUNC MMSS INICIAL'!BY18 -> Limitación funcional moderada | AC20: ='CAPACIDAD FUNC MMSS INICIAL'!CK18 -> 0 | AD20: ='CAPACIDAD FUNC MMSS INICIAL'!CL18 -> 0 | AE20: ='CAPACIDAD FUNC MMSS INICIAL'!CN18 -> 0 | AF20: ='CAPACIDAD FUNC MMSS INICIAL'!CO18 -> 0 | AG20: ='CAPACIDAD FUNC MMSS INICIAL'!CQ19 -> 0 | AI20: ='CAPACIDAD FUNC MMSS POST'!Z18 -> 0 | AJ20: ='CAPACIDAD FUNC MMSS POST'!AA18 ->  | AK20: ='CAPACIDAD FUNC MMSS POST'!BD18 -> 0 | AL20: ='CAPACIDAD FUNC MMSS POST'!BE18 ->  | AM20: ='CAPACIDAD FUNC MMSS POST'!BX18 -> 0 | AN20: ='CAPACIDAD FUNC MMSS POST'!BY18 ->  | AO20: ='CAPACIDAD FUNC MMSS POST'!CK18 -> 0 | AP20: ='CAPACIDAD FUNC MMSS POST'!CL18 -> 0 | AQ20: ='CAPACIDAD FUNC COLUMNA POST'!BJ19 -> 0 | AR20: ='CAPACIDAD FUNC COLUMNA POST'!BK19 ->  | AS20: ='CAPACIDAD FUNC COLUMNA POST'!BM19 -> 0 | AU20: ='CAPACIDAD FUNC COLUMNA INICIAL'!AA19 ->  | AV20: ='CAPACIDAD FUNC COLUMNA INICIAL'!AB19 ->  | AW20: ='CAPACIDAD FUNC COLUMNA INICIAL'!AX19 ->  | AX20: ='CAPACIDAD FUNC COLUMNA INICIAL'!AY19 ->  | AY20: ='CAPACIDAD FUNC COLUMNA INICIAL'!BG19 -> 0 | AZ20: ='CAPACIDAD FUNC COLUMNA INICIAL'!BH19 -> 0 | BA20: ='CAPACIDAD FUNC COLUMNA INICIAL'!BJ19 -> 0 | BB20: ='CAPACIDAD FUNC COLUMNA INICIAL'!BK19 ->  | BC20: ='CAPACIDAD FUNC COLUMNA INICIAL'!BM19 -> 0 | BE20: ='CAPACIDAD FUNC COLUMNA POST'!AA19 ->  | BF20: ='CAPACIDAD FUNC COLUMNA POST'!AB19 ->  | BG20: ='CAPACIDAD FUNC COLUMNA POST'!AX19 ->  | BH20: ='CAPACIDAD FUNC COLUMNA POST'!AY19 ->  | BI20: ='CAPACIDAD FUNC COLUMNA POST'!BG19 -> 0 | BJ20: ='CAPACIDAD FUNC COLUMNA POST'!BH19 -> 0 | BK20: ='CAPACIDAD FUNC COLUMNA POST'!BJ19 -> 0 | BL20: ='CAPACIDAD FUNC COLUMNA POST'!BK19 ->  | BM20: ='CAPACIDAD FUNC COLUMNA POST'!BM19 -> 0
A21: ='CONDICION DE SALUD INICIAL'!A19 -> 0 | B21: ='CONDICION DE SALUD INICIAL'!C19 -> 0 | C21: ='CONDICION DE SALUD INICIAL'!D19 -> 0 | D21: ='CONDICION DE SALUD INICIAL'!B19 -> 0 | E21: ='CONDICION DE SALUD INICIAL'!F19 -> 00:00:00 | F21: ='CONDICION DE SALUD POST'!F19 -> 00:00:00 | G21: ='CONDICION DE SALUD INICIAL'!E19 -> 0 | H21: ='CONDICION DE SALUD INICIAL'!G19 -> 00:00:00 | I21: ='CONDICION DE SALUD INICIAL'!H19 -> 0 | J21: ='CONDICION DE SALUD INICIAL'!I19 -> SI | K21: ='CONDICION DE SALUD INICIAL'!J19 -> 0 | L21: ='CONDICION DE SALUD INICIAL'!K19 -> MEDIO | M21: ='CONDICION DE SALUD POST'!K19 -> 0 | O21: ='CONDICION DE SALUD INICIAL'!AJ19 -> 29 | P21: ='CONDICION DE SALUD INICIAL'!AK19 -> REGULAR | Q21: ='CONDICION DE SALUD INICIAL'!AL19 -> 0 | S21: ='CONDICION DE SALUD POST'!AJ19 -> 0 | T21: ='CONDICION DE SALUD POST'!AK19 ->  | U21: ='CONDICION DE SALUD POST'!AL19 -> 0 | W21: ='CAPACIDAD FUNC MMSS INICIAL'!Z19 -> 0.625 | X21: ='CAPACIDAD FUNC MMSS INICIAL'!AA19 -> Limitación funcional moderada | Y21: ='CAPACIDAD FUNC MMSS INICIAL'!BD19 -> 0.6444444444 | Z21: ='CAPACIDAD FUNC MMSS INICIAL'!BE19 -> Limitación funcional moderada | AA21: ='CAPACIDAD FUNC MMSS INICIAL'!BX19 -> 0.72875 | AB21: ='CAPACIDAD FUNC MMSS INICIAL'!BY19 -> Limitación funcional alta | AC21: ='CAPACIDAD FUNC MMSS INICIAL'!CK19 -> 0 | AD21: ='CAPACIDAD FUNC MMSS INICIAL'!CL19 -> 0 | AE21: ='CAPACIDAD FUNC MMSS INICIAL'!CN19 -> 0 | AF21: ='CAPACIDAD FUNC MMSS INICIAL'!CO19 -> 0 | AG21: ='CAPACIDAD FUNC MMSS INICIAL'!CQ20 -> 0 | AI21: ='CAPACIDAD FUNC MMSS POST'!Z19 -> 0 | AJ21: ='CAPACIDAD FUNC MMSS POST'!AA19 ->  | AK21: ='CAPACIDAD FUNC MMSS POST'!BD19 -> 0 | AL21: ='CAPACIDAD FUNC MMSS POST'!BE19 ->  | AM21: ='CAPACIDAD FUNC MMSS POST'!BX19 -> 0 | AN21: ='CAPACIDAD FUNC MMSS POST'!BY19 ->  | AO21: ='CAPACIDAD FUNC MMSS POST'!CK19 -> 0 | AP21: ='CAPACIDAD FUNC MMSS POST'!CL19 -> 0 | AQ21: ='CAPACIDAD FUNC COLUMNA POST'!BJ20 -> 0 | AR21: ='CAPACIDAD FUNC COLUMNA POST'!BK20 ->  | AS21: ='CAPACIDAD FUNC COLUMNA POST'!BM20 -> 0 | AU21: ='CAPACIDAD FUNC COLUMNA INICIAL'!AA20 ->  | AV21: ='CAPACIDAD FUNC COLUMNA INICIAL'!AB20 ->  | AW21: ='CAPACIDAD FUNC COLUMNA INICIAL'!AX20 -> 0.34 | AX21: ='CAPACIDAD FUNC COLUMNA INICIAL'!AY20 -> Limitación funcional moderada | AY21: ='CAPACIDAD FUNC COLUMNA INICIAL'!BG20 -> 0 | AZ21: ='CAPACIDAD FUNC COLUMNA INICIAL'!BH20 -> 0 | BA21: ='CAPACIDAD FUNC COLUMNA INICIAL'!BJ20 -> 0 | BB21: ='CAPACIDAD FUNC COLUMNA INICIAL'!BK20 ->  | BC21: ='CAPACIDAD FUNC COLUMNA INICIAL'!BM20 -> 0 | BE21: ='CAPACIDAD FUNC COLUMNA POST'!AA20 ->  | BF21: ='CAPACIDAD FUNC COLUMNA POST'!AB20 ->  | BG21: ='CAPACIDAD FUNC COLUMNA POST'!AX20 ->  | BH21: ='CAPACIDAD FUNC COLUMNA POST'!AY20 ->  | BI21: ='CAPACIDAD FUNC COLUMNA POST'!BG20 -> 0 | BJ21: ='CAPACIDAD FUNC COLUMNA POST'!BH20 -> 0 | BK21: ='CAPACIDAD FUNC COLUMNA POST'!BJ20 -> 0 | BL21: ='CAPACIDAD FUNC COLUMNA POST'!BK20 ->  | BM21: ='CAPACIDAD FUNC COLUMNA POST'!BM20 -> 0
A22: ='CONDICION DE SALUD INICIAL'!A20 -> 0 | B22: ='CONDICION DE SALUD INICIAL'!C20 -> 0 | C22: ='CONDICION DE SALUD INICIAL'!D20 -> 0 | D22: ='CONDICION DE SALUD INICIAL'!B20 -> 0 | E22: ='CONDICION DE SALUD INICIAL'!F20 -> 00:00:00 | F22: ='CONDICION DE SALUD POST'!F20 -> 00:00:00 | G22: ='CONDICION DE SALUD INICIAL'!E20 -> 0 | H22: ='CONDICION DE SALUD INICIAL'!G20 -> 00:00:00 | I22: ='CONDICION DE SALUD INICIAL'!H20 -> 0 | J22: ='CONDICION DE SALUD INICIAL'!I20 -> SI | K22: ='CONDICION DE SALUD INICIAL'!J20 -> 0 | L22: ='CONDICION DE SALUD INICIAL'!K20 -> MEDIO | M22: ='CONDICION DE SALUD POST'!K20 -> 0 | O22: ='CONDICION DE SALUD INICIAL'!AJ20 -> 19 | P22: ='CONDICION DE SALUD INICIAL'!AK20 -> BUENO | Q22: ='CONDICION DE SALUD INICIAL'!AL20 -> 0 | S22: ='CONDICION DE SALUD POST'!AJ20 -> 0 | T22: ='CONDICION DE SALUD POST'!AK20 ->  | U22: ='CONDICION DE SALUD POST'!AL20 -> 0 | W22: ='CAPACIDAD FUNC MMSS INICIAL'!Z20 -> 0.21 | X22: ='CAPACIDAD FUNC MMSS INICIAL'!AA20 -> Limitación funcional moderada | Y22: ='CAPACIDAD FUNC MMSS INICIAL'!BD20 -> 0.1633333333 | Z22: ='CAPACIDAD FUNC MMSS INICIAL'!BE20 -> Limitación funcional mínima | AA22: ='CAPACIDAD FUNC MMSS INICIAL'!BX20 -> 0.21 | AB22: ='CAPACIDAD FUNC MMSS INICIAL'!BY20 -> Limitación funcional moderada | AC22: ='CAPACIDAD FUNC MMSS INICIAL'!CK20 -> 0 | AD22: ='CAPACIDAD FUNC MMSS INICIAL'!CL20 -> 0 | AE22: ='CAPACIDAD FUNC MMSS INICIAL'!CN20 -> No se logra el contacto entre las manos | AF22: ='CAPACIDAD FUNC MMSS INICIAL'!CO20 -> Mala | AG22: ='CAPACIDAD FUNC MMSS INICIAL'!CQ21 -> 0 | AI22: ='CAPACIDAD FUNC MMSS POST'!Z20 -> 0 | AJ22: ='CAPACIDAD FUNC MMSS POST'!AA20 ->  | AK22: ='CAPACIDAD FUNC MMSS POST'!BD20 -> 0 | AL22: ='CAPACIDAD FUNC MMSS POST'!BE20 ->  | AM22: ='CAPACIDAD FUNC MMSS POST'!BX20 -> 0 | AN22: ='CAPACIDAD FUNC MMSS POST'!BY20 ->  | AO22: ='CAPACIDAD FUNC MMSS POST'!CK20 -> 0 | AP22: ='CAPACIDAD FUNC MMSS POST'!CL20 -> 0 | AQ22: ='CAPACIDAD FUNC COLUMNA POST'!BJ21 -> 0 | AR22: ='CAPACIDAD FUNC COLUMNA POST'!BK21 ->  | AS22: ='CAPACIDAD FUNC COLUMNA POST'!BM21 -> 0 | AU22: ='CAPACIDAD FUNC COLUMNA INICIAL'!AA21 ->  | AV22: ='CAPACIDAD FUNC COLUMNA INICIAL'!AB21 ->  | AW22: ='CAPACIDAD FUNC COLUMNA INICIAL'!AX21 ->  | AX22: ='CAPACIDAD FUNC COLUMNA INICIAL'!AY21 ->  | AY22: ='CAPACIDAD FUNC COLUMNA INICIAL'!BG21 -> 0 | AZ22: ='CAPACIDAD FUNC COLUMNA INICIAL'!BH21 -> 0 | BA22: ='CAPACIDAD FUNC COLUMNA INICIAL'!BJ21 -> 0 | BB22: ='CAPACIDAD FUNC COLUMNA INICIAL'!BK21 ->  | BC22: ='CAPACIDAD FUNC COLUMNA INICIAL'!BM21 -> 0 | BE22: ='CAPACIDAD FUNC COLUMNA POST'!AA21 ->  | BF22: ='CAPACIDAD FUNC COLUMNA POST'!AB21 ->  | BG22: ='CAPACIDAD FUNC COLUMNA POST'!AX21 ->  | BH22: ='CAPACIDAD FUNC COLUMNA POST'!AY21 ->  | BI22: ='CAPACIDAD FUNC COLUMNA POST'!BG21 -> 0 | BJ22: ='CAPACIDAD FUNC COLUMNA POST'!BH21 -> 0 | BK22: ='CAPACIDAD FUNC COLUMNA POST'!BJ21 -> 0 | BL22: ='CAPACIDAD FUNC COLUMNA POST'!BK21 ->  | BM22: ='CAPACIDAD FUNC COLUMNA POST'!BM21 -> 0
A23: ='CONDICION DE SALUD INICIAL'!A21 -> 0 | B23: ='CONDICION DE SALUD INICIAL'!C21 -> 0 | C23: ='CONDICION DE SALUD INICIAL'!D21 -> 0 | D23: ='CONDICION DE SALUD INICIAL'!B21 -> 0 | E23: ='CONDICION DE SALUD INICIAL'!F21 -> 00:00:00 | F23: ='CONDICION DE SALUD POST'!F21 -> 00:00:00 | G23: ='CONDICION DE SALUD INICIAL'!E21 -> 0 | H23: ='CONDICION DE SALUD INICIAL'!G21 -> 00:00:00 | I23: ='CONDICION DE SALUD INICIAL'!H21 -> 0 | J23: ='CONDICION DE SALUD INICIAL'!I21 -> SI | K23: ='CONDICION DE SALUD INICIAL'!J21 -> 0 | L23: ='CONDICION DE SALUD INICIAL'!K21 -> ALTO | M23: ='CONDICION DE SALUD POST'!K21 -> ALTO | O23: ='CONDICION DE SALUD INICIAL'!AJ21 -> 30 | P23: ='CONDICION DE SALUD INICIAL'!AK21 -> REGULAR | Q23: ='CONDICION DE SALUD INICIAL'!AL21 -> 0 | S23: ='CONDICION DE SALUD POST'!AJ21 -> 28 | T23: ='CONDICION DE SALUD POST'!AK21 -> REGULAR | U23: ='CONDICION DE SALUD POST'!AL21 -> 0 | W23: ='CAPACIDAD FUNC MMSS INICIAL'!Z21 -> 0.69 | X23: ='CAPACIDAD FUNC MMSS INICIAL'!AA21 -> Limitación funcional alta | Y23: ='CAPACIDAD FUNC MMSS INICIAL'!BD21 -> 0.6616666667 | Z23: ='CAPACIDAD FUNC MMSS INICIAL'!BE21 -> Limitación funcional alta | AA23: ='CAPACIDAD FUNC MMSS INICIAL'!BX21 -> 0.8175 | AB23: ='CAPACIDAD FUNC MMSS INICIAL'!BY21 -> Limitación funcional alta | AC23: ='CAPACIDAD FUNC MMSS INICIAL'!CK21 -> 14 | AD23: ='CAPACIDAD FUNC MMSS INICIAL'!CL21 -> Regular | AE23: ='CAPACIDAD FUNC MMSS INICIAL'!CN21 -> No se logra el contacto entre las manos | AF23: ='CAPACIDAD FUNC MMSS INICIAL'!CO21 -> Mala | AG23: ='CAPACIDAD FUNC MMSS INICIAL'!CQ22 -> 0 | AI23: ='CAPACIDAD FUNC MMSS POST'!Z21 -> 0.64 | AJ23: ='CAPACIDAD FUNC MMSS POST'!AA21 -> Limitación funcional moderada | AK23: ='CAPACIDAD FUNC MMSS POST'!BD21 -> 0.4216666667 | AL23: ='CAPACIDAD FUNC MMSS POST'!BE21 -> Limitación funcional moderada | AM23: ='CAPACIDAD FUNC MMSS POST'!BX21 -> 0.6923076923 | AN23: ='CAPACIDAD FUNC MMSS POST'!BY21 -> Limitación funcional alta | AO23: ='CAPACIDAD FUNC MMSS POST'!CK21 -> 0 | AP23: ='CAPACIDAD FUNC MMSS POST'!CL21 -> 0 | AQ23: ='CAPACIDAD FUNC COLUMNA POST'!BJ22 -> 0 | AR23: ='CAPACIDAD FUNC COLUMNA POST'!BK22 ->  | AS23: ='CAPACIDAD FUNC COLUMNA POST'!BM22 -> 0 | AU23: ='CAPACIDAD FUNC COLUMNA INICIAL'!AA22 ->  | AV23: ='CAPACIDAD FUNC COLUMNA INICIAL'!AB22 ->  | AW23: ='CAPACIDAD FUNC COLUMNA INICIAL'!AX22 -> 0.34 | AX23: ='CAPACIDAD FUNC COLUMNA INICIAL'!AY22 -> Limitación funcional moderada | AY23: ='CAPACIDAD FUNC COLUMNA INICIAL'!BG22 -> 0 | AZ23: ='CAPACIDAD FUNC COLUMNA INICIAL'!BH22 -> 0 | BA23: ='CAPACIDAD FUNC COLUMNA INICIAL'!BJ22 -> 0 | BB23: ='CAPACIDAD FUNC COLUMNA INICIAL'!BK22 ->  | BC23: ='CAPACIDAD FUNC COLUMNA INICIAL'!BM22 -> 0 | BE23: ='CAPACIDAD FUNC COLUMNA POST'!AA22 ->  | BF23: ='CAPACIDAD FUNC COLUMNA POST'!AB22 ->  | BG23: ='CAPACIDAD FUNC COLUMNA POST'!AX22 ->  | BH23: ='CAPACIDAD FUNC COLUMNA POST'!AY22 ->  | BI23: ='CAPACIDAD FUNC COLUMNA POST'!BG22 -> 0 | BJ23: ='CAPACIDAD FUNC COLUMNA POST'!BH22 -> 0 | BK23: ='CAPACIDAD FUNC COLUMNA POST'!BJ22 -> 0 | BL23: ='CAPACIDAD FUNC COLUMNA POST'!BK22 ->  | BM23: ='CAPACIDAD FUNC COLUMNA POST'!BM22 -> 0
A24: ='CONDICION DE SALUD INICIAL'!A22 -> 0 | B24: ='CONDICION DE SALUD INICIAL'!C22 -> 0 | C24: ='CONDICION DE SALUD INICIAL'!D22 -> 0 | D24: ='CONDICION DE SALUD INICIAL'!B22 -> 0 | E24: ='CONDICION DE SALUD INICIAL'!F22 -> 00:00:00 | F24: ='CONDICION DE SALUD POST'!F22 -> 00:00:00 | G24: ='CONDICION DE SALUD INICIAL'!E22 -> 0 | H24: ='CONDICION DE SALUD INICIAL'!G22 -> 00:00:00 | I24: ='CONDICION DE SALUD INICIAL'!H22 -> 0 | J24: ='CONDICION DE SALUD INICIAL'!I22 -> SI | K24: ='CONDICION DE SALUD INICIAL'!J22 -> 0 | L24: ='CONDICION DE SALUD INICIAL'!K22 -> MEDIO | M24: ='CONDICION DE SALUD POST'!K22 -> 0 | O24: ='CONDICION DE SALUD INICIAL'!AJ22 -> 0 | P24: ='CONDICION DE SALUD INICIAL'!AK22 ->  | Q24: ='CONDICION DE SALUD INICIAL'!AL22 -> 0 | S24: ='CONDICION DE SALUD POST'!AJ22 -> 0 | T24: ='CONDICION DE SALUD POST'!AK22 ->  | U24: ='CONDICION DE SALUD POST'!AL22 -> 0 | W24: ='CAPACIDAD FUNC MMSS INICIAL'!Z22 -> 0.06 | X24: ='CAPACIDAD FUNC MMSS INICIAL'!AA22 -> Limitación funcional mínima | Y24: ='CAPACIDAD FUNC MMSS INICIAL'!BD22 -> 0.02222222222 | Z24: ='CAPACIDAD FUNC MMSS INICIAL'!BE22 -> Limitación funcional mínima | AA24: ='CAPACIDAD FUNC MMSS INICIAL'!BX22 -> 0 | AB24: ='CAPACIDAD FUNC MMSS INICIAL'!BY22 ->  | AC24: ='CAPACIDAD FUNC MMSS INICIAL'!CK22 -> 0 | AD24: ='CAPACIDAD FUNC MMSS INICIAL'!CL22 -> 0 | AE24: ='CAPACIDAD FUNC MMSS INICIAL'!CN22 -> 0 | AF24: ='CAPACIDAD FUNC MMSS INICIAL'!CO22 -> 0 | AG24: ='CAPACIDAD FUNC MMSS INICIAL'!CQ23 -> 0 | AI24: ='CAPACIDAD FUNC MMSS POST'!Z22 -> 0 | AJ24: ='CAPACIDAD FUNC MMSS POST'!AA22 ->  | AK24: ='CAPACIDAD FUNC MMSS POST'!BD22 -> 0 | AL24: ='CAPACIDAD FUNC MMSS POST'!BE22 ->  | AM24: ='CAPACIDAD FUNC MMSS POST'!BX22 -> 0 | AN24: ='CAPACIDAD FUNC MMSS POST'!BY22 ->  | AO24: ='CAPACIDAD FUNC MMSS POST'!CK22 -> 0 | AP24: ='CAPACIDAD FUNC MMSS POST'!CL22 -> 0 | AQ24: ='CAPACIDAD FUNC COLUMNA POST'!BJ23 -> 0 | AR24: ='CAPACIDAD FUNC COLUMNA POST'!BK23 ->  | AS24: ='CAPACIDAD FUNC COLUMNA POST'!BM23 -> 0 | AU24: ='CAPACIDAD FUNC COLUMNA INICIAL'!AA23 ->  | AV24: ='CAPACIDAD FUNC COLUMNA INICIAL'!AB23 ->  | AW24: ='CAPACIDAD FUNC COLUMNA INICIAL'!AX23 ->  | AX24: ='CAPACIDAD FUNC COLUMNA INICIAL'!AY23 ->  | AY24: ='CAPACIDAD FUNC COLUMNA INICIAL'!BG23 -> 0 | AZ24: ='CAPACIDAD FUNC COLUMNA INICIAL'!BH23 -> 0 | BA24: ='CAPACIDAD FUNC COLUMNA INICIAL'!BJ23 -> 0 | BB24: ='CAPACIDAD FUNC COLUMNA INICIAL'!BK23 ->  | BC24: ='CAPACIDAD FUNC COLUMNA INICIAL'!BM23 -> 0 | BE24: ='CAPACIDAD FUNC COLUMNA POST'!AA23 ->  | BF24: ='CAPACIDAD FUNC COLUMNA POST'!AB23 ->  | BG24: ='CAPACIDAD FUNC COLUMNA POST'!AX23 ->  | BH24: ='CAPACIDAD FUNC COLUMNA POST'!AY23 ->  | BI24: ='CAPACIDAD FUNC COLUMNA POST'!BG23 -> 0 | BJ24: ='CAPACIDAD FUNC COLUMNA POST'!BH23 -> 0 | BK24: ='CAPACIDAD FUNC COLUMNA POST'!BJ23 -> 0 | BL24: ='CAPACIDAD FUNC COLUMNA POST'!BK23 ->  | BM24: ='CAPACIDAD FUNC COLUMNA POST'!BM23 -> 0
A25: ='CONDICION DE SALUD INICIAL'!A23 -> 0 | B25: ='CONDICION DE SALUD INICIAL'!C23 -> 0 | C25: ='CONDICION DE SALUD INICIAL'!D23 -> 0 | D25: ='CONDICION DE SALUD INICIAL'!B23 -> 0 | E25: ='CONDICION DE SALUD INICIAL'!F23 -> 00:00:00 | F25: ='CONDICION DE SALUD POST'!F23 -> 00:00:00 | G25: ='CONDICION DE SALUD INICIAL'!E23 -> 0 | H25: ='CONDICION DE SALUD INICIAL'!G23 -> 00:00:00 | I25: ='CONDICION DE SALUD INICIAL'!H23 -> 0 | J25: ='CONDICION DE SALUD INICIAL'!I23 -> SI | K25: ='CONDICION DE SALUD INICIAL'!J23 -> 0 | L25: ='CONDICION DE SALUD INICIAL'!K23 -> MEDIO | M25: ='CONDICION DE SALUD POST'!K23 -> 0 | O25: ='CONDICION DE SALUD INICIAL'!AJ23 -> 0 | P25: ='CONDICION DE SALUD INICIAL'!AK23 ->  | Q25: ='CONDICION DE SALUD INICIAL'!AL23 -> 0 | S25: ='CONDICION DE SALUD POST'!AJ23 -> 0 | T25: ='CONDICION DE SALUD POST'!AK23 ->  | U25: ='CONDICION DE SALUD POST'!AL23 -> 0 | W25: ='CAPACIDAD FUNC MMSS INICIAL'!Z23 -> 0.19 | X25: ='CAPACIDAD FUNC MMSS INICIAL'!AA23 -> Limitación funcional mínima | Y25: ='CAPACIDAD FUNC MMSS INICIAL'!BD23 -> 0.02777777778 | Z25: ='CAPACIDAD FUNC MMSS INICIAL'!BE23 -> Limitación funcional mínima | AA25: ='CAPACIDAD FUNC MMSS INICIAL'!BX23 -> 0.79875 | AB25: ='CAPACIDAD FUNC MMSS INICIAL'!BY23 -> Limitación funcional alta | AC25: ='CAPACIDAD FUNC MMSS INICIAL'!CK23 -> 0 | AD25: ='CAPACIDAD FUNC MMSS INICIAL'!CL23 -> pobre | AE25: ='CAPACIDAD FUNC MMSS INICIAL'!CN23 -> No se logra el contacto entre las manos | AF25: ='CAPACIDAD FUNC MMSS INICIAL'!CO23 -> Mala | AG25: ='CAPACIDAD FUNC MMSS INICIAL'!CQ24 -> 0 | AI25: ='CAPACIDAD FUNC MMSS POST'!Z23 -> 0 | AJ25: ='CAPACIDAD FUNC MMSS POST'!AA23 ->  | AK25: ='CAPACIDAD FUNC MMSS POST'!BD23 -> 0 | AL25: ='CAPACIDAD FUNC MMSS POST'!BE23 ->  | AM25: ='CAPACIDAD FUNC MMSS POST'!BX23 -> 0 | AN25: ='CAPACIDAD FUNC MMSS POST'!BY23 ->  | AO25: ='CAPACIDAD FUNC MMSS POST'!CK23 -> 0 | AP25: ='CAPACIDAD FUNC MMSS POST'!CL23 -> 0 | AQ25: ='CAPACIDAD FUNC COLUMNA POST'!BJ24 -> 0 | AR25: ='CAPACIDAD FUNC COLUMNA POST'!BK24 ->  | AS25: ='CAPACIDAD FUNC COLUMNA POST'!BM24 -> 0 | AU25: ='CAPACIDAD FUNC COLUMNA INICIAL'!AA24 ->  | AV25: ='CAPACIDAD FUNC COLUMNA INICIAL'!AB24 ->  | AW25: ='CAPACIDAD FUNC COLUMNA INICIAL'!AX24 ->  | AX25: ='CAPACIDAD FUNC COLUMNA INICIAL'!AY24 ->  | AY25: ='CAPACIDAD FUNC COLUMNA INICIAL'!BG24 -> 0 | AZ25: ='CAPACIDAD FUNC COLUMNA INICIAL'!BH24 -> 0 | BA25: ='CAPACIDAD FUNC COLUMNA INICIAL'!BJ24 -> 0 | BB25: ='CAPACIDAD FUNC COLUMNA INICIAL'!BK24 ->  | BC25: ='CAPACIDAD FUNC COLUMNA INICIAL'!BM24 -> 0 | BE25: ='CAPACIDAD FUNC COLUMNA POST'!AA24 ->  | BF25: ='CAPACIDAD FUNC COLUMNA POST'!AB24 ->  | BG25: ='CAPACIDAD FUNC COLUMNA POST'!AX24 ->  | BH25: ='CAPACIDAD FUNC COLUMNA POST'!AY24 ->  | BI25: ='CAPACIDAD FUNC COLUMNA POST'!BG24 -> 0 | BJ25: ='CAPACIDAD FUNC COLUMNA POST'!BH24 -> 0 | BK25: ='CAPACIDAD FUNC COLUMNA POST'!BJ24 -> 0 | BL25: ='CAPACIDAD FUNC COLUMNA POST'!BK24 ->  | BM25: ='CAPACIDAD FUNC COLUMNA POST'!BM24 -> 0
A26: ='CONDICION DE SALUD INICIAL'!A24 -> 0 | B26: ='CONDICION DE SALUD INICIAL'!C24 -> 0 | C26: ='CONDICION DE SALUD INICIAL'!D24 -> 0 | D26: ='CONDICION DE SALUD INICIAL'!B24 -> 0 | E26: ='CONDICION DE SALUD INICIAL'!F24 -> 00:00:00 | F26: ='CONDICION DE SALUD POST'!F24 -> 00:00:00 | G26: ='CONDICION DE SALUD INICIAL'!E24 -> 0 | H26: ='CONDICION DE SALUD INICIAL'!G24 -> 00:00:00 | I26: ='CONDICION DE SALUD INICIAL'!H24 -> 0 | J26: ='CONDICION DE SALUD INICIAL'!I24 -> 0 | K26: ='CONDICION DE SALUD INICIAL'!J24 -> 0 | L26: ='CONDICION DE SALUD INICIAL'!K24 -> 0 | M26: ='CONDICION DE SALUD POST'!K24 -> 0 | O26: ='CONDICION DE SALUD INICIAL'!AJ24 -> 0 | P26: ='CONDICION DE SALUD INICIAL'!AK24 ->  | Q26: ='CONDICION DE SALUD INICIAL'!AL24 -> 0 | S26: ='CONDICION DE SALUD POST'!AJ24 -> 0 | T26: ='CONDICION DE SALUD POST'!AK24 ->  | U26: ='CONDICION DE SALUD POST'!AL24 -> 0 | W26: ='CAPACIDAD FUNC MMSS INICIAL'!Z24 -> 0 | X26: ='CAPACIDAD FUNC MMSS INICIAL'!AA24 ->  | Y26: ='CAPACIDAD FUNC MMSS INICIAL'!BD24 -> 0 | Z26: ='CAPACIDAD FUNC MMSS INICIAL'!BE24 ->  | AA26: ='CAPACIDAD FUNC MMSS INICIAL'!BX24 -> 0 | AB26: ='CAPACIDAD FUNC MMSS INICIAL'!BY24 ->  | AC26: ='CAPACIDAD FUNC MMSS INICIAL'!CK24 -> 0 | AD26: ='CAPACIDAD FUNC MMSS INICIAL'!CL24 -> 0 | AE26: ='CAPACIDAD FUNC MMSS INICIAL'!CN24 -> 0 | AF26: ='CAPACIDAD FUNC MMSS INICIAL'!CO24 -> 0 | AG26: ='CAPACIDAD FUNC MMSS INICIAL'!CQ25 -> 0 | AI26: ='CAPACIDAD FUNC MMSS POST'!Z24 -> 0 | AJ26: ='CAPACIDAD FUNC MMSS POST'!AA24 ->  | AK26: ='CAPACIDAD FUNC MMSS POST'!BD24 -> 0 | AL26: ='CAPACIDAD FUNC MMSS POST'!BE24 ->  | AM26: ='CAPACIDAD FUNC MMSS POST'!BX24 -> 0 | AN26: ='CAPACIDAD FUNC MMSS POST'!BY24 ->  | AO26: ='CAPACIDAD FUNC MMSS POST'!CK24 -> 0 | AP26: ='CAPACIDAD FUNC MMSS POST'!CL24 -> 0 | AQ26: ='CAPACIDAD FUNC COLUMNA POST'!BJ25 -> 0 | AR26: ='CAPACIDAD FUNC COLUMNA POST'!BK25 ->  | AS26: ='CAPACIDAD FUNC COLUMNA POST'!BM25 -> 0 | AU26: ='CAPACIDAD FUNC COLUMNA INICIAL'!AA25 ->  | AV26: ='CAPACIDAD FUNC COLUMNA INICIAL'!AB25 ->  | AW26: ='CAPACIDAD FUNC COLUMNA INICIAL'!AX25 ->  | AX26: ='CAPACIDAD FUNC COLUMNA INICIAL'!AY25 ->  | AY26: ='CAPACIDAD FUNC COLUMNA INICIAL'!BG25 -> 0 | AZ26: ='CAPACIDAD FUNC COLUMNA INICIAL'!BH25 -> 0 | BA26: ='CAPACIDAD FUNC COLUMNA INICIAL'!BJ25 -> 0 | BB26: ='CAPACIDAD FUNC COLUMNA INICIAL'!BK25 ->  | BC26: ='CAPACIDAD FUNC COLUMNA INICIAL'!BM25 -> 0 | BE26: ='CAPACIDAD FUNC COLUMNA POST'!AA25 ->  | BF26: ='CAPACIDAD FUNC COLUMNA POST'!AB25 ->  | BG26: ='CAPACIDAD FUNC COLUMNA POST'!AX25 ->  | BH26: ='CAPACIDAD FUNC COLUMNA POST'!AY25 ->  | BI26: ='CAPACIDAD FUNC COLUMNA POST'!BG25 -> 0 | BJ26: ='CAPACIDAD FUNC COLUMNA POST'!BH25 -> 0 | BK26: ='CAPACIDAD FUNC COLUMNA POST'!BJ25 -> 0 | BL26: ='CAPACIDAD FUNC COLUMNA POST'!BK25 ->  | BM26: ='CAPACIDAD FUNC COLUMNA POST'!BM25 -> 0
A27: ='CONDICION DE SALUD INICIAL'!A25 -> 0 | B27: ='CONDICION DE SALUD INICIAL'!C25 -> 0 | C27: ='CONDICION DE SALUD INICIAL'!D25 -> 0 | D27: ='CONDICION DE SALUD INICIAL'!B25 -> 0 | E27: ='CONDICION DE SALUD INICIAL'!F25 -> 00:00:00 | F27: ='CONDICION DE SALUD POST'!F25 -> 00:00:00 | G27: ='CONDICION DE SALUD INICIAL'!E25 -> 0 | H27: ='CONDICION DE SALUD INICIAL'!G25 -> 00:00:00 | I27: ='CONDICION DE SALUD INICIAL'!H25 -> 0 | J27: ='CONDICION DE SALUD INICIAL'!I25 -> SI | K27: ='CONDICION DE SALUD INICIAL'!J25 -> 0 | L27: ='CONDICION DE SALUD INICIAL'!K25 -> 0 | M27: ='CONDICION DE SALUD POST'!K25 -> 0 | O27: ='CONDICION DE SALUD INICIAL'!AJ25 -> 0 | P27: ='CONDICION DE SALUD INICIAL'!AK25 ->  | Q27: ='CONDICION DE SALUD INICIAL'!AL25 -> 0 | S27: ='CONDICION DE SALUD POST'!AJ25 -> 0 | T27: ='CONDICION DE SALUD POST'!AK25 ->  | U27: ='CONDICION DE SALUD POST'!AL25 -> 0 | W27: ='CAPACIDAD FUNC MMSS INICIAL'!Z25 -> 0 | X27: ='CAPACIDAD FUNC MMSS INICIAL'!AA25 ->  | Y27: ='CAPACIDAD FUNC MMSS INICIAL'!BD25 -> 0 | Z27: ='CAPACIDAD FUNC MMSS INICIAL'!BE25 ->  | AA27: ='CAPACIDAD FUNC MMSS INICIAL'!BX25 -> 0 | AB27: ='CAPACIDAD FUNC MMSS INICIAL'!BY25 ->  | AC27: ='CAPACIDAD FUNC MMSS INICIAL'!CK25 -> 0 | AD27: ='CAPACIDAD FUNC MMSS INICIAL'!CL25 -> 0 | AE27: ='CAPACIDAD FUNC MMSS INICIAL'!CN25 -> 0 | AF27: ='CAPACIDAD FUNC MMSS INICIAL'!CO25 -> 0 | AG27: ='CAPACIDAD FUNC MMSS INICIAL'!CQ26 -> 0 | AI27: ='CAPACIDAD FUNC MMSS POST'!Z25 -> 0 | AJ27: ='CAPACIDAD FUNC MMSS POST'!AA25 ->  | AK27: ='CAPACIDAD FUNC MMSS POST'!BD25 -> 0 | AL27: ='CAPACIDAD FUNC MMSS POST'!BE25 ->  | AM27: ='CAPACIDAD FUNC MMSS POST'!BX25 -> 0 | AN27: ='CAPACIDAD FUNC MMSS POST'!BY25 ->  | AO27: ='CAPACIDAD FUNC MMSS POST'!CK25 -> 0 | AP27: ='CAPACIDAD FUNC MMSS POST'!CL25 -> 0 | AQ27: ='CAPACIDAD FUNC COLUMNA POST'!BJ26 -> 0 | AR27: ='CAPACIDAD FUNC COLUMNA POST'!BK26 ->  | AS27: ='CAPACIDAD FUNC COLUMNA POST'!BM26 -> 0 | AU27: ='CAPACIDAD FUNC COLUMNA INICIAL'!AA26 ->  | AV27: ='CAPACIDAD FUNC COLUMNA INICIAL'!AB26 ->  | AW27: ='CAPACIDAD FUNC COLUMNA INICIAL'!AX26 ->  | AX27: ='CAPACIDAD FUNC COLUMNA INICIAL'!AY26 ->  | AY27: ='CAPACIDAD FUNC COLUMNA INICIAL'!BG26 -> 0 | AZ27: ='CAPACIDAD FUNC COLUMNA INICIAL'!BH26 -> 0 | BA27: ='CAPACIDAD FUNC COLUMNA INICIAL'!BJ26 -> 0 | BB27: ='CAPACIDAD FUNC COLUMNA INICIAL'!BK26 ->  | BC27: ='CAPACIDAD FUNC COLUMNA INICIAL'!BM26 -> 0 | BE27: ='CAPACIDAD FUNC COLUMNA POST'!AA26 ->  | BF27: ='CAPACIDAD FUNC COLUMNA POST'!AB26 ->  | BG27: ='CAPACIDAD FUNC COLUMNA POST'!AX26 ->  | BH27: ='CAPACIDAD FUNC COLUMNA POST'!AY26 ->  | BI27: ='CAPACIDAD FUNC COLUMNA POST'!BG26 -> 0 | BJ27: ='CAPACIDAD FUNC COLUMNA POST'!BH26 -> 0 | BK27: ='CAPACIDAD FUNC COLUMNA POST'!BJ26 -> 0 | BL27: ='CAPACIDAD FUNC COLUMNA POST'!BK26 ->  | BM27: ='CAPACIDAD FUNC COLUMNA POST'!BM26 -> 0
A28: ='CONDICION DE SALUD INICIAL'!A26 -> 0 | B28: ='CONDICION DE SALUD INICIAL'!C26 -> 0 | C28: ='CONDICION DE SALUD INICIAL'!D26 -> 0 | D28: ='CONDICION DE SALUD INICIAL'!B26 -> 0 | E28: ='CONDICION DE SALUD INICIAL'!F26 -> 00:00:00 | F28: ='CONDICION DE SALUD POST'!F26 -> 00:00:00 | G28: ='CONDICION DE SALUD INICIAL'!E26 -> 0 | H28: ='CONDICION DE SALUD INICIAL'!G26 -> 00:00:00 | I28: ='CONDICION DE SALUD INICIAL'!H26 -> 0 | J28: ='CONDICION DE SALUD INICIAL'!I26 -> SI | K28: ='CONDICION DE SALUD INICIAL'!J26 -> 0 | L28: ='CONDICION DE SALUD INICIAL'!K26 -> 0 | M28: ='CONDICION DE SALUD POST'!K26 -> 0 | O28: ='CONDICION DE SALUD INICIAL'!AJ26 -> 0 | P28: ='CONDICION DE SALUD INICIAL'!AK26 ->  | Q28: ='CONDICION DE SALUD INICIAL'!AL26 -> 0 | S28: ='CONDICION DE SALUD POST'!AJ26 -> 0 | T28: ='CONDICION DE SALUD POST'!AK26 ->  | U28: ='CONDICION DE SALUD POST'!AL26 -> 0 | W28: ='CAPACIDAD FUNC MMSS INICIAL'!Z26 -> 0 | X28: ='CAPACIDAD FUNC MMSS INICIAL'!AA26 ->  | Y28: ='CAPACIDAD FUNC MMSS INICIAL'!BD26 -> 0 | Z28: ='CAPACIDAD FUNC MMSS INICIAL'!BE26 ->  | AA28: ='CAPACIDAD FUNC MMSS INICIAL'!BX26 -> 0 | AB28: ='CAPACIDAD FUNC MMSS INICIAL'!BY26 ->  | AC28: ='CAPACIDAD FUNC MMSS INICIAL'!CK26 -> 0 | AD28: ='CAPACIDAD FUNC MMSS INICIAL'!CL26 -> 0 | AE28: ='CAPACIDAD FUNC MMSS INICIAL'!CN26 -> 0 | AF28: ='CAPACIDAD FUNC MMSS INICIAL'!CO26 -> 0 | AG28: ='CAPACIDAD FUNC MMSS INICIAL'!CQ27 -> 0 | AI28: ='CAPACIDAD FUNC MMSS POST'!Z26 -> 0 | AJ28: ='CAPACIDAD FUNC MMSS POST'!AA26 ->  | AK28: ='CAPACIDAD FUNC MMSS POST'!BD26 -> 0 | AL28: ='CAPACIDAD FUNC MMSS POST'!BE26 ->  | AM28: ='CAPACIDAD FUNC MMSS POST'!BX26 -> 0 | AN28: ='CAPACIDAD FUNC MMSS POST'!BY26 ->  | AO28: ='CAPACIDAD FUNC MMSS POST'!CK26 -> 0 | AP28: ='CAPACIDAD FUNC MMSS POST'!CL26 -> 0 | AQ28: ='CAPACIDAD FUNC COLUMNA POST'!BJ27 -> 0 | AR28: ='CAPACIDAD FUNC COLUMNA POST'!BK27 ->  | AS28: ='CAPACIDAD FUNC COLUMNA POST'!BM27 -> 0 | AU28: ='CAPACIDAD FUNC COLUMNA INICIAL'!AA27 ->  | AV28: ='CAPACIDAD FUNC COLUMNA INICIAL'!AB27 ->  | AW28: ='CAPACIDAD FUNC COLUMNA INICIAL'!AX27 ->  | AX28: ='CAPACIDAD FUNC COLUMNA INICIAL'!AY27 ->  | AY28: ='CAPACIDAD FUNC COLUMNA INICIAL'!BG27 -> 0 | AZ28: ='CAPACIDAD FUNC COLUMNA INICIAL'!BH27 -> 0 | BA28: ='CAPACIDAD FUNC COLUMNA INICIAL'!BJ27 -> 0 | BB28: ='CAPACIDAD FUNC COLUMNA INICIAL'!BK27 ->  | BC28: ='CAPACIDAD FUNC COLUMNA INICIAL'!BM27 -> 0 | BE28: ='CAPACIDAD FUNC COLUMNA POST'!AA27 ->  | BF28: ='CAPACIDAD FUNC COLUMNA POST'!AB27 ->  | BG28: ='CAPACIDAD FUNC COLUMNA POST'!AX27 ->  | BH28: ='CAPACIDAD FUNC COLUMNA POST'!AY27 ->  | BI28: ='CAPACIDAD FUNC COLUMNA POST'!BG27 -> 0 | BJ28: ='CAPACIDAD FUNC COLUMNA POST'!BH27 -> 0 | BK28: ='CAPACIDAD FUNC COLUMNA POST'!BJ27 -> 0 | BL28: ='CAPACIDAD FUNC COLUMNA POST'!BK27 ->  | BM28: ='CAPACIDAD FUNC COLUMNA POST'!BM27 -> 0
A29: ='CONDICION DE SALUD INICIAL'!A27 -> 0 | B29: ='CONDICION DE SALUD INICIAL'!C27 -> 0 | C29: ='CONDICION DE SALUD INICIAL'!D27 -> 0 | D29: ='CONDICION DE SALUD INICIAL'!B27 -> 0 | E29: ='CONDICION DE SALUD INICIAL'!F27 -> 00:00:00 | F29: ='CONDICION DE SALUD POST'!F27 -> 00:00:00 | G29: ='CONDICION DE SALUD INICIAL'!E27 -> 0 | H29: ='CONDICION DE SALUD INICIAL'!G27 -> 00:00:00 | I29: ='CONDICION DE SALUD INICIAL'!H27 -> 0 | J29: ='CONDICION DE SALUD INICIAL'!I27 -> 0 | K29: ='CONDICION DE SALUD INICIAL'!J27 -> 0 | L29: ='CONDICION DE SALUD INICIAL'!K27 -> 0 | M29: ='CONDICION DE SALUD POST'!K27 -> 0 | O29: ='CONDICION DE SALUD INICIAL'!AJ27 -> 0 | P29: ='CONDICION DE SALUD INICIAL'!AK27 ->  | Q29: ='CONDICION DE SALUD INICIAL'!AL27 -> 0 | S29: ='CONDICION DE SALUD POST'!AJ27 -> 0 | T29: ='CONDICION DE SALUD POST'!AK27 ->  | U29: ='CONDICION DE SALUD POST'!AL27 -> 0 | W29: ='CAPACIDAD FUNC MMSS INICIAL'!Z27 -> 0 | X29: ='CAPACIDAD FUNC MMSS INICIAL'!AA27 ->  | Y29: ='CAPACIDAD FUNC MMSS INICIAL'!BD27 -> 0 | Z29: ='CAPACIDAD FUNC MMSS INICIAL'!BE27 ->  | AA29: ='CAPACIDAD FUNC MMSS INICIAL'!BX27 -> 0 | AB29: ='CAPACIDAD FUNC MMSS INICIAL'!BY27 ->  | AC29: ='CAPACIDAD FUNC MMSS INICIAL'!CK27 -> 0 | AD29: ='CAPACIDAD FUNC MMSS INICIAL'!CL27 -> 0 | AE29: ='CAPACIDAD FUNC MMSS INICIAL'!CN27 -> 0 | AF29: ='CAPACIDAD FUNC MMSS INICIAL'!CO27 -> 0 | AG29: ='CAPACIDAD FUNC MMSS INICIAL'!CQ28 -> 0 | AI29: ='CAPACIDAD FUNC MMSS POST'!Z27 -> 0 | AJ29: ='CAPACIDAD FUNC MMSS POST'!AA27 ->  | AK29: ='CAPACIDAD FUNC MMSS POST'!BD27 -> 0 | AL29: ='CAPACIDAD FUNC MMSS POST'!BE27 ->  | AM29: ='CAPACIDAD FUNC MMSS POST'!BX27 -> 0 | AN29: ='CAPACIDAD FUNC MMSS POST'!BY27 ->  | AO29: ='CAPACIDAD FUNC MMSS POST'!CK27 -> 0 | AP29: ='CAPACIDAD FUNC MMSS POST'!CL27 -> 0 | AQ29: ='CAPACIDAD FUNC COLUMNA POST'!BJ28 -> 0 | AR29: ='CAPACIDAD FUNC COLUMNA POST'!BK28 ->  | AS29: ='CAPACIDAD FUNC COLUMNA POST'!BM28 -> 0 | AU29: ='CAPACIDAD FUNC COLUMNA INICIAL'!AA28 ->  | AV29: ='CAPACIDAD FUNC COLUMNA INICIAL'!AB28 ->  | AW29: ='CAPACIDAD FUNC COLUMNA INICIAL'!AX28 ->  | AX29: ='CAPACIDAD FUNC COLUMNA INICIAL'!AY28 ->  | AY29: ='CAPACIDAD FUNC COLUMNA INICIAL'!BG28 -> 0 | AZ29: ='CAPACIDAD FUNC COLUMNA INICIAL'!BH28 -> 0 | BA29: ='CAPACIDAD FUNC COLUMNA INICIAL'!BJ28 -> 0 | BB29: ='CAPACIDAD FUNC COLUMNA INICIAL'!BK28 ->  | BC29: ='CAPACIDAD FUNC COLUMNA INICIAL'!BM28 -> 0 | BE29: ='CAPACIDAD FUNC COLUMNA POST'!AA28 ->  | BF29: ='CAPACIDAD FUNC COLUMNA POST'!AB28 ->  | BG29: ='CAPACIDAD FUNC COLUMNA POST'!AX28 ->  | BH29: ='CAPACIDAD FUNC COLUMNA POST'!AY28 ->  | BI29: ='CAPACIDAD FUNC COLUMNA POST'!BG28 -> 0 | BJ29: ='CAPACIDAD FUNC COLUMNA POST'!BH28 -> 0 | BK29: ='CAPACIDAD FUNC COLUMNA POST'!BJ28 -> 0 | BL29: ='CAPACIDAD FUNC COLUMNA POST'!BK28 ->  | BM29: ='CAPACIDAD FUNC COLUMNA POST'!BM28 -> 0

Sheet CONSOLIDADO POR TRABAJADOR
A2: Consolidado por trabajador
A4: INFORMACIÓN GENERAL
A6: ='BASE DE DATOS CONSOLIDADO'!E4 -> Fecha de evaluación inicial | D6: =VLOOKUP(D8,SUPERTABLA,4,0) -> 00:00:00 | G6: ='CONDICION DE SALUD POST'!F5 -> Fecha de evaluación posterior a intervención | I6: =VLOOKUP(D8,SUPERTABLA,5,0) -> 00:00:00 | L6: ='BASE DE DATOS CONSOLIDADO'!D4 -> Empresa | N6: =VLOOKUP(D8,SUPERTABLA,3,0) -> 0
A8: ='BASE DE DATOS CONSOLIDADO'!B4 -> Apellidos | D8: 0 | G8: ='BASE DE DATOS CONSOLIDADO'!C4 -> Nombres | I8: =VLOOKUP(D8,SUPERTABLA,2,0) -> 0 | L8: ='BASE DE DATOS CONSOLIDADO'!G4 -> Cédula | N8: =VLOOKUP(D8,SUPERTABLA,6,0) -> 0
A10: ='BASE DE DATOS CONSOLIDADO'!H4 -> Fecha de Nacimiento | D10: =VLOOKUP(D8,SUPERTABLA,7,0) -> 00:00:00 | G10: ='BASE DE DATOS CONSOLIDADO'!I4 -> Edad | I10: =VLOOKUP(D8,SUPERTABLA,8,0) -> 0 | L10: ='BASE DE DATOS CONSOLIDADO'!J4 -> Presenta algún desorden músculo esquelético | N10: =VLOOKUP(D8,SUPERTABLA,9,0) -> SI
A12: ='BASE DE DATOS CONSOLIDADO'!K4 -> Listado de desórdenes músculo esqueléticos
A13: =VLOOKUP(D8,SUPERTABLA,10,0) -> 0
B15: ='BASE DE DATOS CONSOLIDADO'!O4 -> CONDICIÓN DE SALUD
B17: ='BASE DE DATOS CONSOLIDADO'!O6 -> Calificación total | D17: ='BASE DE DATOS CONSOLIDADO'!P6 -> Interpretación | F17: ='BASE DE DATOS CONSOLIDADO'!Q6 -> Observaciones
A18: ='BASE DE DATOS CONSOLIDADO'!O5 -> INICIAL | B18: =VLOOKUP(D8,SUPERTABLA,14,0) -> 30 | D18: =VLOOKUP(D8,SUPERTABLA,15,0) -> REGULAR | F18: =VLOOKUP(D8,SUPERTABLA,16,0) -> 0
A19: ='BASE DE DATOS CONSOLIDADO'!S5 -> POSTERIOR A INTERVENCIÓN | B19: =VLOOKUP(D8,SUPERTABLA,18,0) -> 11 | D19: =VLOOKUP(D8,SUPERTABLA,19,0) -> BUENO | F19: =VLOOKUP(D8,SUPERTABLA,20,0) -> 0
B23: ='BASE DE DATOS CONSOLIDADO'!W4 -> CAPACIDAD FUNCIONAL MIEMBROS SUPERIORES
B25: ='BASE DE DATOS CONSOLIDADO'!W6 -> DOLOR ( PATIENT RATED WRIST EVALUATION (PRWE)) | D25: ='BASE DE DATOS CONSOLIDADO'!Y6 -> THE PATIENT - RATED ELBOW EVALUATION (PREE) - CODO | H25: ='BASE DE DATOS CONSOLIDADO'!AA6 -> SHOULDER PAIN DISABILITY INDEX (SPADI) | L25: ='BASE DE DATOS CONSOLIDADO'!AC6 -> FUERZA | N25: ='BASE DE DATOS CONSOLIDADO'!AE6 -> FLEXIBILIDAD
A26: ='BASE DE DATOS CONSOLIDADO'!W5 -> INICIAL | B26: Puntuación total | C26: Interpretación | D26: Puntuación total | E26: Interpretación | H26: Puntuación total | I26: Interpretación | L26: No. de flexiones ejecutadas | M26: Interpretación | N26: Alcance posterior manos | O26: Interpretación
B27: =VLOOKUP(D8,SUPERTABLA,22,0) -> 0 | C27: =VLOOKUP(D8,SUPERTABLA,23,0) ->  | D27: =VLOOKUP(D8,SUPERTABLA,24,0) -> 0 | E27: =VLOOKUP(D8,SUPERTABLA,25,0) ->  | H27: =VLOOKUP(D8,SUPERTABLA,26,0) -> 0 | I27: =VLOOKUP(D8,SUPERTABLA,27,0) ->  | L27: =VLOOKUP(D8,SUPERTABLA,28,0) -> 0 | M27: =VLOOKUP(D8,SUPERTABLA,29,0) -> Pobre | N27: =VLOOKUP(D8,SUPERTABLA,30,0) -> No se logra el contacto entre las manos | O27: =VLOOKUP(D8,SUPERTABLA,31,0) -> Mala
B28: =B32 -> 0 | D28: =D32 -> 0 | H28: =H32 -> 0.01875 | L28: =L32 -> 0 | N28: =N32 -> 0
B29: ='BASE DE DATOS CONSOLIDADO'!AG6 -> Observaciones
B30: =VLOOKUP(D8,SUPERTABLA,32,0) -> 0
A31: ='BASE DE DATOS CONSOLIDADO'!AI5 -> POSTERIOR A INTERVENCIÓN | B31: Puntuación total | C31: Interpretación | D31: Puntuación total | E31: Interpretación | H31: Puntuación total | I31: Interpretación | L31: No. de flexiones ejecutadas | M31: Interpretación | N31: Alcance posterior manos | O31: Interpretación
B32: =VLOOKUP(D8,SUPERTABLA,34,0) -> 0 | C32: =VLOOKUP(D8,SUPERTABLA,35,0) ->  | D32: =VLOOKUP(D8,SUPERTABLA,36,0) -> 0 | E32: =VLOOKUP(D8,SUPERTABLA,37,0) ->  | H32: =VLOOKUP(D8,SUPERTABLA,38,0) -> 0.01875 | I32: =VLOOKUP(D8,SUPERTABLA,39,0) -> Limitación funcional mínima | L32: =VLOOKUP(D8,SUPERTABLA,40,0) -> 0 | M32: =VLOOKUP(D8,SUPERTABLA,41,0) -> 0 | N32: =VLOOKUP(D8,SUPERTABLA,42,0) -> 0 | O32: =VLOOKUP(D8,SUPERTABLA,43,0) -> 
B33: ='BASE DE DATOS CONSOLIDADO'!AS6 -> Observaciones
B34: =VLOOKUP(D8,SUPERTABLA,44,0) -> 0
B37: ='BASE DE DATOS CONSOLIDADO'!AU4 -> CAPACIDAD FUNCIONAL COLUMNA
B39: ='BASE DE DATOS CONSOLIDADO'!AU6 -> INDICE DE DISCAPACIDAD EN COLUMNA CERVICAL | E39: ='BASE DE DATOS CONSOLIDADO'!AW6 -> FUNCIONALIDAD (ESCALA DE DISCAPACIDAD POR DOLOR LUMBAR DE OSWESTRY) | I39: ='BASE DE DATOS CONSOLIDADO'!AY6 -> FUERZA | M39: ='BASE DE DATOS CONSOLIDADO'!BA6 -> FLEXIBILIDAD
A40: ='BASE DE DATOS CONSOLIDADO'!AU5 -> INICIAL | B40: ='BASE DE DATOS CONSOLIDADO'!AU7 -> Calificación Total | C40: ='BASE DE DATOS CONSOLIDADO'!AV7 -> Interpretación | E40: ='BASE DE DATOS CONSOLIDADO'!AW7 -> Calificación ODI | F40: ='BASE DE DATOS CONSOLIDADO'!AX7 -> Interpretación | I40: ='BASE DE DATOS CONSOLIDADO'!AY7 -> Resultado de la prueba (min) | J40: ='BASE DE DATOS CONSOLIDADO'!AZ7 -> Interpretación de la prueba | M40: ='BASE DE DATOS CONSOLIDADO'!BA7 -> Prueba de flexión de tronco en V | N40: ='BASE DE DATOS CONSOLIDADO'!BB7 -> Interpretación
B41: =VLOOKUP(D8,SUPERTABLA,46,0) -> 0.64 | C41: =VLOOKUP(D8,SUPERTABLA,47,0) -> Discapacidad máxima | E41: =VLOOKUP(D8,SUPERTABLA,48,0) -> 0.34 | F41: =VLOOKUP(D8,SUPERTABLA,49,0) -> Limitación funcional moderada | I41: =VLOOKUP(D8,SUPERTABLA,50,0) -> <2min | J41: =VLOOKUP(D8,SUPERTABLA,51,0) -> Necesita Mejorar | M41: =VLOOKUP(D8,SUPERTABLA,52,0) -> 0 | N41: =VLOOKUP(D8,SUPERTABLA,53,0) -> 
B42: =B46 ->  | D42: =D46 -> 0 | E42: =E46 ->  | H42: =H46 -> 0 | I42: =I46 -> 0 | L42: =L46 -> 0 | M42: =M46 -> 0 | N42: =N46 -> 
B43: ='BASE DE DATOS CONSOLIDADO'!BC2 -> 0
B44: =VLOOKUP(D8,SUPERTABLA,54,0) -> 0
A45: ='BASE DE DATOS CONSOLIDADO'!BE5 -> POSTERIOR A INTERVENCIÓN | B45: ='CAPACIDAD FUNC COLUMNA POST'!AA6 -> Calificación Total | C45: ='CAPACIDAD FUNC COLUMNA POST'!AB6 -> Interpretación | E45: ='CAPACIDAD FUNC COLUMNA POST'!AX8 -> Calificación ODI | F45: ='CAPACIDAD FUNC COLUMNA POST'!AY8 -> Interpretación | I45: ='CAPACIDAD FUNC COLUMNA POST'!BG7 -> Resultado de la prueba (min) | J45: ='CAPACIDAD FUNC COLUMNA POST'!BH7 -> Interpretación de la prueba | M45: ='CAPACIDAD FUNC COLUMNA POST'!BJ6 -> Prueba de flexión de tronco en V | N45: ='CAPACIDAD FUNC COLUMNA POST'!BK6 -> Interpretación
B46: =VLOOKUP(D8,SUPERTABLA,56,0) ->  | C46: =VLOOKUP(D8,SUPERTABLA,57,0) ->  | E46: =VLOOKUP(D8,SUPERTABLA,58,0) ->  | F46: =VLOOKUP(D8,SUPERTABLA,59,0) ->  | I46: =VLOOKUP(D8,SUPERTABLA,60,0) -> 0 | J46: =VLOOKUP(D8,SUPERTABLA,61,0) -> 0 | M46: =VLOOKUP(D8,SUPERTABLA,62,0) -> 0 | N46: =VLOOKUP(D8,SUPERTABLA,63,0) -> 
B47: ='BASE DE DATOS CONSOLIDADO'!BC6 -> Observaciones
B48: =VLOOKUP(D8,SUPERTABLA,64,0) -> 0
A50: ='BASE DE DATOS CONSOLIDADO'!BO4 -> CONCLUSIONES DE LA ACTIVIDAD LABORAL
A51: =VLOOKUP(D8,SUPERTABLA,66,0) -> 0
A53: ='BASE DE DATOS CONSOLIDADO'!BQ4 -> RECOMENDACIONES DE LA ACTIVIDAD LABORAL
A54: =VLOOKUP(D8,SUPERTABLA,68,0) -> 0

Sheet CATEGORÍAS (hidden)
A2: Excelente | B2: No, no me limita nada | C2: SI | D2: Nada | E2: Siempre | F2: 0 | G2: 0 | H2: No dificultad | I2: Excelente | J2: No es difícil en absoluto | K2: No es difícil en absoluto | L2: Puedo soportar el dolor sin necesidad de tomar calmantes | M2: Me las puedo arreglar solo sin que aumente el dolor | N2: Puedo levantar objetos pesados sin que me aumente el dolor | O2: El dolor no me impide andar | P2: Puedo estar sentado en cualquier tipo de silla todo el tiempo que quiera | Q2: Puedo estar de pie tanto tiempo como quiera sin que me aumente el dolor | R2: El dolor no me impide dormir bien | S2: Mi actividad sexual es normal y no me aumenta el dolor | T2: Mi vida social es uy normal y no me aumenta el dolor | U2: Puedo viajar a cualquier sitio sin que aumente el dolor | V2: No tengo dolor en este momento | W2: Puedo cuidarme con normalidad sin causar dolor adicional | X2: Puedo levantar objetos pesados sin aumento del dolor | Y2: Puedo leer todo lo que quiera sin que me duela el cuello | Z2: No tengo ningún dolor de cabeza | AA2: Me concentro totalmente en algo cuando quiero sin dificultad | AB2: Puedo trabajar todo lo que quiero | AC2: Puedo conducir sin dolor en el cuello | AD2: No tengo ningún problema para dormir | AE2: Puedo hacer todas mis actividades de ocio sin dolor de cuello | AF2: Excelente | AG2: >0 | AH2: ALTO
A3: Muy buena | B3: Si, me limita un poco | C3: NO | D3: Un poco | E3: Casi siempre | F3: 1 | G3: 1 | H3: Un poco de dificultad | I3: Bien | J3: Mínimamente difícil | K3: Mínimamente difícil | L3: El dolor es fuerte pero me arreglo sin tomar calmantes | M3: Me las puedo arreglar solo pero esto me aumenta el dolor | N3: Puedo levantar objetos pesados pero me aumenta el dolor | O3: El dolor me impide andar más de 1 kilómetro | P3: Puedo estar sentado en mi silla favorita todo el tiempo que quiera | Q3: Puedo estar de pie tanto tiempo como quiera pero me aumenta el dolor | R3: Sólo puedo dormir si tomo pastillas | S3: Mi actividad sexual es normal pero me aumenta el dolor | T3: Mi vida social es normal, pero me aumenta el dolor | U3: Puedo viajar a cualquier sitio, pero me aumenta el dolor | V3: El dolor es muy leve en este momento | W3: Puedo cuidarme con normalidad pero esto me aumenta el dolor | X3: Puedo levantar objetos pesados pero me aumenta el dolor | Y3: Puedo leer todo lo que quiera con un dolor leve en el cuello | Z3: A veces tengo un pequeño dolor de cabeza | AA3: Me concentro totalmente en algo cuando quiero con alguna dificultad | AB3: Puedo hacer mi trabajo habitual, pero no más | AC3: Puedo conducir todo lo que quiero, pero con un ligero dolor en el cuello | AD3: Pierdo menos de 1 hora de sueño cada noche por el dolor de cuello | AE3: Puedo hacer todas mis actividades de ocio con algún dolor de cuello | AF3: Satisfactorio | AG3: 0 | AH3: MEDIO
A4: Buena | B4: Si, me limita mucho | D4: Regular | E4: Algunas veces | G4: 2 | H4: Dificultad moderada | I4: Promedio | J4: Algo difícil | K4: Algo difícil | L4: Los calmantes me alivian completamente el dolor | M4: Lavarme, vestirme, etc., me produce dolor y tengo que hacerlo despacio y con cuidado | N4: El dolor me impide levantar objetos pesados del suelo, pero puedo hacerlo si están en un sitio cómodo (ej. En una mesa) | O4: El dolor me impide andar más de 500 metros | P4: El dolor me impide estar sentado más de una hora | Q4: El dolor me impide estar de pie más de una hora | R4: Incluso tomando pastillas duermo menos de seis horas | S4: Mi actividad sexual es casi normal pero me aumenta mucho el dolor | T4: El dolor no tiene un efecto importante en mi vida social, pero impide mis actividades más enérgicas, como bailar, etc | U4: El dolor es fuerte, pero aguanto viajes de más de dos horas | V4: El dolor es moderado en este momento | W4: Cuidarme me duele de forma que tengo que hacerlo despacio y con cuidado | X4: El dolor me impide levantar objetos pesados del suelo, pero lo puedo hacer si están colocados en un sitio fácil, como por ejemplo en una mesa | Y4: Puedo leer todo lo que quiera con un dolor moderado en el cuello | Z4: A veces tengo un dolor moderado de cabeza | AA4: Tengo alguna dificultad para concentrarme cuando quiero | AB4: Puedo hacer casi todo mi trabajo habitual, pero no más | AC4: Puedo conducir todo lo que quiero, pero con un moderado dolor en el cuello | AD4: Pierdo de 1 a 2 horas de sueño cada noche por el dolor de cuello | AE4: No puedo hacer alguna de mis actividades de ocio por el dolor de cuello | AF4: Necesita Mejorar | AG4: <0 | AH4: BAJO
A5: Regular | C5: Bajo/Pobre | D5: Bastante | E5: Solo una vez | G5: 3 | H5: Bastante dificultad | I5: Regular | J5: Bastante difícil | K5: Bastante difícil | L5: Los calmantes me alivian un poco el dolor | M5: Necesito alguna ayuda pero consigo hacer la mayoría de las cosas yo solo | N5: El dolor me impide levantar objetos pesados, pero si puedo levantar objetos ligeros o medianos si están en un sitio cómodo | O5: El dolor me impide andar más de 250 metros | P5: El dolor me impide estar sentado más de media hora | Q5: El dolor me impide estar de pie más de media hora | R5: Incluso tomando pastillas duermo menos de cuatro horas | S5: Mi actividad sexual se ha visto muy limitada a causa del dolor | T5: El dolor ha limitado mi vida social y no salgo tan a menudo | U5: El dolor me limita a viajes de menos de una hora | V5: El dolor es bastante severo en este momento | W5: Aunque necesito alguna ayuda me las arreglo para casi todos mis cuidados | X5: El dolor me impide levantar objetos pesados del suelo, pero puedo levantar objetos medianos o ligeros si están colocados en un sitio fácil | Y5: No puedo leer todo lo que quiero debido a un dolor moderado en el cuello | Z5: Con frecuencia tengo un dolor moderado de cabeza | AA5: Tengo bastante dificultad para concentrarme cuando quiero | AB5: No puedo hacer mi trabajo habitual | AC5: No puedo conducir todo lo que quiero debido al dolor de cuello | AD5: Pierdo de 2 a 3 horas de sueño cada noche por el dolor de cuello | AE5: Solo puedo hacer unas pocas actividades de ocio por el dolor de cuello | AH5: ASINTOMÁTICO
A6: Mala | C6: Debajo del promedio | D6: Mucho | E6: Nunca | G6: 4 | H6: Extrema dificultad o incapaz de realizar la actividad | I6: Pobre | J6: Muy difícil | K6: Muy difícil | L6: Los calmantes apenas me alivian el dolor | M6: Necesito ayuda para hacer la mayoría de las cosas | N6: Solo puedo levantar objetos muy ligeros | O6: Sólo puedo andar con bastón o muletas | P6: El dolor me impide estar sentado más de diez minutos | Q6: El dolor me impide estar de pie más de diez minutos | R6: Incluso tomando pastillas duermo menos de dos horas | S6: Mi actividad sexual es casi nula a causa del dolor | T6: El dolor ha limitado mi vida social al hogar | U6: El dolor me limita a viajes cortos y necesarios de menos de media hora | V6: El dolor es muy severo en este momento | W6: Todos los días necesito ayuda para la mayor parte de mis cuidados | X6: Solo puedo levantar objetos muy ligeros | Y6: Apenas puedo leer por el gran dolor que me produce en el cuello | Z6: Con frecuencia tengo un dolor fuerte de cabeza | AA6: Tengo mucha dificultad para concentrarme cuando quiero | AB6: A duras penas puedo hacer algún tipo de trabajo | AC6: Apenas puedo conducir debido al intenso dolor de cuello | AD6: Pierdo de 3 a 5 horas de sueño cada noche por el dolor de cuello | AE6: Apenas puedo hacer las cosas que me gustan debido al dolor de cuello
C7: Dentro del promedio | G7: 5 | K7: Imposible hacer | L7: Los calmantes no me quitan el dolor y no los tomo | M7: No puedo vestirme, me cuesta lavarme, y suelo quedarme en la cama | N7: No puedo levantar ni elevar ningún objeto | O7: Permanezco en la cama casi todo el tiempo y tengo que ir a rastras al baño | P7: El dolor me impide estar sentado | Q7: El dolor me impide estar de pie | R7: El dolor me impide totalmente dormir | S7: El dolor me impide todo tipo de actividad sexual | T7: No tengo vida social a causa del dolor | U7: El dolor me impide viajar excepto para ir al médico o al hospital | V7: El dolor es el peor imaginable en este momento | W7: No puedo vestirme, me baño con dificultad y me quedo en la cama | X7: No puedo levantar ni llevar ningún tipo de objeto | Y7: No puedo leer nada en absoluto | Z7: Tengo dolor de cabeza casi continuo | AA7: No puedo concentrarme nunca | AB7: No puedo trabajar en nada | AC7: No puedo conducir nada por el dolor de cuello | AD7: Pierdo de 5 a 7 horas de sueño cada noche por el dolor de cuello | AE7: No puedo realizar ninguna actividad de ocio
C8: Excelente | G8: 6 | I8: Se sobreponen las manos
G9: 7 | I9: Entran en contacto puntas de los dedos medios
G10: 8 | I10: No se logra el contacto entre las manos
G11: 9
G12: 10
